{"text_format":"1","workbook":"xlsx","n_sheets":23,"sheets":["088"," 090   "," 093  "," 883  ","007","351","ПНС  -100","ПНС-100 дизель","АР-2(5350)","АГДЗС","отчёт ","Нормы","пила 240","Бензорез К 760","\"Спрут\"","Столб ","Дымосос"," ВРМ-160","Вепрь АПВ-6","SH-6000"," SH-6500","АДП-16","Бензокоса"],"not_rendered":{"charts":0,"images":0,"macros":0,"external_links":0,"defined_names":155,"comments":0,"pivot_tables":0},"unopened":[],"bounds":{"document_bytes":16777216,"sheet_cells":100000,"rows_first":2000,"rows_last":500,"rows_between":2000,"halvings":0,"cell_chars":16384,"cell_head_chars":4096},"cells_cut":0,"cells_raw":0,"read":"whole","date_system":"1900"}

{"sheet":"088","index":0,"n_rows":98,"n_cols":26,"rows_kept":98,"cut":false,"hidden":false,"merged":[[96,11,96,15],[0,0,0,25],[1,6,1,10],[1,21,1,22],[2,0,2,22],[2,23,2,25],[3,11,3,12],[3,13,3,14],[3,15,3,17],[8,4,8,5],[8,6,8,8],[8,9,8,10],[8,11,8,18],[9,4,9,5],[9,6,9,8],[9,9,9,10],[9,11,9,18],[4,11,4,22],[5,0,5,7],[5,8,5,22],[6,0,6,11],[6,12,6,22],[7,0,7,23],[12,16,12,17],[12,18,12,19],[12,20,13,20],[10,0,10,25],[11,0,13,0],[11,1,13,5],[11,6,11,20],[11,21,12,22],[11,23,13,23],[11,24,12,25],[12,6,12,7],[12,8,12,9],[12,10,13,10],[14,1,14,5],[15,1,15,5],[16,1,16,5],[17,1,17,5],[18,1,18,5],[20,1,20,5],[12,11,13,11],[12,12,12,13],[12,14,12,15],[27,1,27,5],[28,1,28,5],[29,1,29,5],[30,1,30,5],[31,1,31,5],[32,1,32,5],[21,1,21,5],[22,1,22,5],[23,1,23,5],[24,1,24,5],[25,1,25,5],[26,1,26,5],[39,1,39,5],[40,1,40,5],[41,1,41,5],[42,1,42,5],[43,1,43,5],[44,1,44,5],[33,1,33,5],[34,1,34,5],[35,1,35,5],[37,1,37,5],[38,1,38,5],[36,1,36,5],[51,1,51,5],[52,1,52,5],[53,1,53,5],[54,1,54,5],[55,1,55,5],[56,1,56,5],[45,1,45,5],[46,1,46,5],[47,1,47,5],[48,1,48,5],[49,1,49,5],[50,1,50,5],[63,1,63,5],[64,1,64,5],[65,1,65,5],[66,1,66,5],[67,1,67,5],[68,1,68,5],[57,1,57,5],[58,1,58,5],[59,1,59,5],[60,1,60,5],[61,1,61,5],[62,1,62,5],[76,1,76,5],[77,1,77,5],[78,1,78,5],[79,1,79,5],[80,1,80,5],[69,1,69,5],[70,1,70,5],[71,1,71,5],[72,1,72,5],[73,1,73,5],[74,1,74,5],[96,19,96,20],[96,21,96,23],[97,21,97,23],[19,1,19,5],[93,16,93,20],[93,21,93,23],[94,19,94,20],[94,21,94,23],[95,19,95,20],[95,21,95,23],[87,1,87,5],[88,1,88,5],[89,1,89,5],[90,0,90,10],[91,0,91,10],[92,0,92,8],[92,9,92,10],[81,1,81,5],[82,1,82,5],[83,1,83,5],[84,1,84,5],[85,1,85,5],[86,1,86,5],[75,1,75,5]]}
["Эксплуатационная карта"]
[null,null,null,"Работы пожарного автомобиля за",null,null,{"$f":"Нормы!G3","v":"Март   2015 г"},null,null,null,null,"Наименование и № подразделения      ",null,null,null,null,null,null,"К Г К У   9 - О П С",null,null,"37 - П Ч"]
["      Тип,марка,модель                                                  Автоцистерна           АЦ 40 (130)                                                                                                                                                  Государственный регистрационный знак",null,null,null,null,null,null,null,null,null,null,null,null,null,null,null,null,null,null,null,null,null,null,"Х 088 ОМ"]
["      Пробег а/м  на 1-е число отчетного месяца от начала эксплуатаций:  шасси",null,null,null,null,null,null,null,null,null,null,{"$f":"Нормы!B98","v":96021},null,"км.двигатель",null,{"$f":"Нормы!C98","v":36707},null,null,"км.(приведенный)"]
["      Остаток топлива в автомобиле на 1-е число отчетного месяца",null,null,null,null,null,null,null,null,null,null,{"$f":"'отчёт '!F14","v":36},null,null,null,null,null,null,null,null,null,null,null,"литр."]
["      Заправлено топлива в автомобиль за отчетный месяц",null,null,null,null,null,null,null,{"$f":"U91","v":0},null,null,null,null,null,null,null,null,null,null,null,null,null,null,"литр."]
["      Остаток топлива в автомобиле на 1-е число следующего за отчетным месяцем",null,null,null,null,null,null,null,null,null,null,null,{"$f":"X91","v":35.505000000000003},null,null,null,null,null,null,null,null,null,null,"литр."]
["Результат расхода топлива за отчетный месяц"]
[null,null,null,null,"фактически",null,{"$f":"V91","v":0.495},null,null,"литр.",null," Экономия _________________литр."]
[null,null,null,null,"по нормам",null,{"$f":"W91","v":0.495},null,null,"литр.",null,"Перерасход _________________литр."]
[]
["дата","Наименование и место работы автомобиля(То,работа на пожаре,учениях и др)",null,null,null,null,"работа пожарного автомобиля",null,null,null,null,null,null,null,null,null,null,null,null,null,null,"расход топлива в литрах",null,"Остаток топлива ","подписи"]
[null,null,null,null,null,null,"время выезда",null,"время возвращения ",null,"показания спидометра перед выездом ","пройдено км к месту работы и обратно","на пожарах     (в мин)",null,"на учениях (в мин)",null," при смене караула (в мин)",null,"на прочих работах",null,"заправлено топлива в автомобиль"]
[null,null,null,null,null,null,"часы","минуты","часы","минуты",null,null,"с насосом","без насоса","с насосом","без насоса","с насосом","без насоса","с насосом","без насоса",null,"фактически","по нормам",null,"водителя","начальника караула"]
[1,2,null,null,null,null,3,4,5,6,7,8,9,10,11,12,13,14,15,16,17,18,19,20,21,22]
["1,03","Смена караула",null,null,null,null,null,null,null,null,{"$f":"L4","v":96021},{"$f":"IF(K17=\"\",\"\",K17-K16)","v":""},null,null,null,null,null,3,null,null,null,{"$f":"W16","v":0.495},{"$f":"IF(L16=\"\",0,L16)*КИЛОМЕТР+(M16+O16+Q16+S16)*НАСОС+(N16+P16+R16+T16)*БЕЗ_НАСОСА","v":0.495},{"$f":"Остаток_на_начало_месяца-W16+U16","v":35.505000000000003}]
[null,null,null,null,null,null,null,null,null,null,null,null,null,null,null,null,null,null,null,null,null,{"$f":"W17","v":0},0,{"$f":"IF(W17=0,\"\",X16-W17+U17)","v":""}]
[null,null,null,null,null,null,null,null,null,null,null,null,null,null,null,null,null,null,null,null,null,{"$f":"W18","v":0},0,""]
[null,null,null,null,null,null,null,null,null,null,null,null,null,null,null,null,null,null,null,null,null,0,0,""]
[null,null,null,null,null,null,null,null,null,null,null,null,null,null,null,null,null,null,null,null,null,0,{"$f":"IF(L20=\"\",0,L20)*КИЛОМЕТР+(M20+O20+Q20+S20)*НАСОС+(N20+P20+R20+T20)*БЕЗ_НАСОСА","v":0},""]
[null,null,null,null,null,null,null,null,null,null,null,null,null,null,null,null,null,null,null,null,null,0,{"$f":"IF(L21=\"\",0,L21)*КИЛОМЕТР+(M21+O21+Q21+S21)*НАСОС+(N21+P21+R21+T21)*БЕЗ_НАСОСА","v":0},""]
[null,null,null,null,null,null,null,null,null,null,null,null,null,null,null,null,null,null,null,null,null,0,0,""]
[null,null,null,null,null,null,null,null,null,null,null,null,null,null,null,null,null,null,null,null,null,0,0,""]
[null,null,null,null,null,null,null,null,null,null,null,null,null,null,null,null,null,null,null,null,null,0,0,""]
[null,null,null,null,null,null,null,null,null,null,null,null,null,null,null,null,null,null,null,null,null,0,0,""]
[null,null,null,null,null,null,null,null,null,null,null,null,null,null,null,null,null,null,null,null,null,0,0,""]
[null,null,null,null,null,null,null,null,null,null,null,null,null,null,null,null,null,null,null,null,null,0,0,""]
[null,null,null,null,null,null,null,null,null,null,null,null,null,null,null,null,null,null,null,null,null,0,0,""]
[null,null,null,null,null,null,null,null,null,null,null,null,null,null,null,null,null,null,null,null,null,0,0,""]
[null,null,null,null,null,null,null,null,null,null,null,null,null,null,null,null,null,null,null,null,null,0,0,""]
[null,null,null,null,null,null,null,null,null,null,null,{"$f":"IF(K32=\"\",\"\",K32-K31)","v":""},null,null,null,null,null,null,null,null,null,0,0,""]
[null,null,null,null,null,null,null,null,null,null,null,"",null,null,null,null,null,null,null,null,null,0,0,""]
[null,null,null,null,null,null,null,null,null,null,null,"",null,null,null,null,null,null,null,null,null,0,0,""]
[null,null,null,null,null,null,null,null,null,null,null,{"$f":"IF(K35=\"\",\"\",K35-K34)","v":""},null,null,null,null,null,null,null,null,null,0,0,""]
[null,null,null,null,null,null,null,null,null,null,null,"",null,null,null,null,null,null,null,null,null,0,0,""]
[null,null,null,null,null,null,null,null,null,null,null,"",null,null,null,null,null,null,null,null,null,0,0,""]
[null,null,null,null,null,null,null,null,null,null,null,"",null,null,null,null,null,null,null,null,null,0,0,""]
[null,null,null,null,null,null,null,null,null,null,null,"",null,null,null,null,null,null,null,null,null,0,0,""]
[null,null,null,null,null,null,null,null,null,null,null,"",null,null,null,null,null,null,null,null,null,0,0,""]
[null,null,null,null,null,null,null,null,null,null,null,"",null,null,null,null,null,null,null,null,null,0,0,""]
[null,null,null,null,null,null,null,null,null,null,null,"",null,null,null,null,null,null,null,null,null,0,0,""]
[null,null,null,null,null,null,null,null,null,null,null,"",null,null,null,null,null,null,null,null,null,0,0,""]
[null,null,null,null,null,null,null,null,null,null,null,"",null,null,null,null,null,null,null,null,null,0,0,""]
[null,null,null,null,null,null,null,null,null,null,null,{"$f":"IF(K45=\"\",\"\",K45-K44)","v":""},null,null,null,null,null,null,null,null,null,0,0,""]
[null,null,null,null,null,null,null,null,null,null,null,{"$f":"IF(K46=\"\",\"\",K46-K45)","v":""},null,null,null,null,null,null,null,null,null,0,0,""]
[null,null,null,null,null,null,null,null,null,null,null,{"$f":"IF(K47=\"\",\"\",K47-K46)","v":""},null,null,null,null,null,null,null,null,null,0,0,""]
[null,null,null,null,null,null,null,null,null,null,null,"",null,null,null,null,null,null,null,null,null,0,0,""]
[null,null,null,null,null,null,null,null,null,null,null,"",null,null,null,null,null,null,null,null,null,0,{"$f":"IF(L48=\"\",0,L48)*КИЛОМЕТР+(M48+O48+Q48+S48)*НАСОС+(N48+P48+R48+T48)*БЕЗ_НАСОСА","v":0},""]
[null,null,null,null,null,null,null,null,null,null,null,"",null,null,null,null,null,null,null,null,null,0,0,""]
[null,null,null,null,null,null,null,null,null,null,null,"",null,null,null,null,null,null,null,null,null,0,0,""]
[null,null,null,null,null,null,null,null,null,null,null,"",null,null,null,null,null,null,null,null,null,0,0,""]
[null,null,null,null,null,null,null,null,null,null,null,"",null,null,null,null,null,null,null,null,null,0,0,""]
[null,null,null,null,null,null,null,null,null,null,null,"",null,null,null,null,null,null,null,null,null,0,0,""]
[null,null,null,null,null,null,null,null,null,null,null,"",null,null,null,null,null,null,null,null,null,0,0,""]
[null,null,null,null,null,null,null,null,null,null,null,"",null,null,null,null,null,null,null,null,null,0,0,""]
[null,null,null,null,null,null,null,null,null,null,null,"",null,null,null,null,null,null,null,null,null,0,0,""]
[null,null,null,null,null,null,null,null,null,null,null,"",null,null,null,null,null,null,null,null,null,0,0,""]
[null,null,null,null,null,null,null,null,null,null,null,"",null,null,null,null,null,null,null,null,null,0,0,""]
[null,null,null,null,null,null,null,null,null,null,null,"",null,null,null,null,null,null,null,null,null,0,0,""]
[null,null,null,null,null,null,null,null,null,null,null,"",null,null,null,null,null,null,null,null,null,0,0,""]
[null,null,null,null,null,null,null,null,null,null,null,"",null,null,null,null,null,null,null,null,null,0,0,""]
[null,null,null,null,null,null,null,null,null,null,null,"",null,null,null,null,null,null,null,null,null,0,0,""]
[null,null,null,null,null,null,null,null,null,null,null,"",null,null,null,null,null,null,null,null,null,0,0,""]
[null,null,null,null,null,null,null,null,null,null,null,"",null,null,null,null,null,null,null,null,null,0,0,""]
[null,null,null,null,null,null,null,null,null,null,null,"",null,null,null,null,null,null,null,null,null,0,0,""]
[null,null,null,null,null,null,null,null,null,null,null,"",null,null,null,null,null,null,null,null,null,0,0,""]
[null,null,null,null,null,null,null,null,null,null,null,"",null,null,null,null,null,null,null,null,null,0,0,""]
[null,null,null,null,null,null,null,null,null,null,null,"",null,null,null,null,null,null,null,null,null,0,0,""]
[null,null,null,null,null,null,null,null,null,null,null,"",null,null,null,null,null,null,null,null,null,0,0,""]
[null,null,null,null,null,null,null,null,null,null,null,"",null,null,null,null,null,null,null,null,null,0,0,""]
[null,null,null,null,null,null,null,null,null,null,null,"",null,null,null,null,null,null,null,null,null,0,0,""]
[null,null,null,null,null,null,null,null,null,null,null,"",null,null,null,null,null,null,null,null,null,0,0,""]
[null,null,null,null,null,null,null,null,null,null,null,"",null,null,null,null,null,null,null,null,null,0,0,""]
[null,null,null,null,null,null,null,null,null,null,null,"",null,null,null,null,null,null,null,null,null,0,0,""]
[null,null,null,null,null,null,null,null,null,null,null,"",null,null,null,null,null,null,null,null,null,0,0,""]
[null,null,null,null,null,null,null,null,null,null,null,"",null,null,null,null,null,null,null,null,null,0,0,""]
[null,null,null,null,null,null,null,null,null,null,null,"",null,null,null,null,null,null,null,null,null,0,0,""]
[null,null,null,null,null,null,null,null,null,null,null,"",null,null,null,null,null,null,null,null,null,0,0,""]
[null,null,null,null,null,null,null,null,null,null,null,"",null,null,null,null,null,null,null,null,null,0,0,""]
[null,null,null,null,null,null,null,null,null,null,null,"",null,null,null,null,null,null,null,null,null,0,{"$f":"IF(L80=\"\",0,L80)*КИЛОМЕТР+(M80+O80+Q80+S80)*НАСОС+(N80+P80+R80+T80)*БЕЗ_НАСОСА","v":0},""]
[null,null,null,null,null,null,null,null,null,null,null,{"$f":"IF(K82=\"\",\"\",K82-K81)","v":""},null,null,null,null,null,null,null,null,null,{"$f":"W81","v":0},0,{"$f":"IF(W81=0,\"\",X80-W81+U81)","v":""}]
[null,null,null,null,null,null,null,null,null,null,null,"",null,null,null,null,null,null,null,null,null,0,0,""]
[null,null,null,null,null,null,null,null,null,null,null,"",null,null,null,null,null,null,null,null,null,0,0,""]
[null,null,null,null,null,null,null,null,null,null,null,"",null,null,null,null,null,null,null,null,null,0,0,""]
[null,null,null,null,null,null,null,null,null,null,null,"",null,null,null,null,null,null,null,null,null,0,0,""]
[null,null,null,null,null,null,null,null,null,null,null,"",null,null,null,null,null,null,null,null,null,0,0,""]
[null,null,null,null,null,null,null,null,null,null,null,"",null,null,null,null,null,null,null,null,null,0,0,""]
[null,null,null,null,null,null,null,null,null,null,null,"",null,null,null,null,null,null,null,null,null,0,0,""]
[null,null,null,null,null,null,null,null,null,null,null,"",null,null,null,null,null,null,null,null,null,0,0,{"$f":"IF(W89=0,\"\",X88-W89+U89)","v":""}]
[null,null,null,null,null,null,null,null,null,null,null,"",null,null,null,null,null,null,null,null,null,0,0,""]
["                    ИТОГО за месяц",null,null,null,null,null,null,null,null,null,null,{"$f":"SUM(L16:L90)","v":0},0,0,0,0,0,3,0,0,0,0.495,0.495,{"$f":"Остаток_на_начало_месяца+Заправлено-W91","v":35.505000000000003}]
["                    Израсходовано топлива по элементам работы(в литрах)",null,null,null,null,null,null,null,null,null,null,{"$f":"L91*КИЛОМЕТР","v":0},{"$f":"M91*НАСОС","v":0},{"$f":"N91*БЕЗ_НАСОСА","v":0},{"$f":"O91*НАСОС","v":0},{"$f":"P91*БЕЗ_НАСОСА","v":0},{"$f":"Q91*НАСОС","v":0},{"$f":"R91*БЕЗ_НАСОСА","v":0.495},{"$f":"S91*НАСОС","v":0},{"$f":"T91*БЕЗ_НАСОСА","v":0}]
["    Наработка а/м  за отчетный месяц в км.(с учетом приведенного)",null,null,null,null,null,null,null,null,{"$f":"(M91+O91+Q91+S91)/60*50+L91","v":0},null,"км. "]
[null,null,null,null,null,null,null,null,null,null,null,null,null,null,null,null,"Текущая норма",null,null,null,null,"Пробег по спидометру, км",null,null,{"$f":"L91","v":0}]
[null,null,"Руководитель подразделения",null,null,null,null,null,null,null,null,"Старший водитель",null,null,null,null,"1 км",null,null,0.498,null,"Наработка с насосом м.ч.",null,null,{"$f":"(M91+O91+Q91+S91)/60","v":0}]
[null,null,"<_____>______________________2015г.",null,null,null,null,null,null,null,null,"<_____>______________________",null,null,null,"2015г.","1 мин с насосом",null,null,0.36299999999999999,null,"Наработка без насоса",null,null,{"$f":"N91+P91+R91+T91","v":3}]
[null,null,null,null,null,null,null,null,null,null,null,null,null,null,null,null,"1 мин без насоса",null,null,0.16500000000000001,null,"Приведенный пробег",null,null,{"$f":"Y95*50","v":0}]
[null,null,null,null,null,null,null,null,null,null,null,null,null,null,null,null,null,null,null,null,null,"Общий пробег",null,null,{"$f":"Y94+Y97","v":0}]

{"sheet":" 090   ","index":1,"n_rows":95,"n_cols":26,"rows_kept":95,"cut":false,"hidden":false,"merged":[[85,1,85,5],[84,1,84,5],[83,1,83,5],[82,1,82,5],[81,1,81,5],[80,1,80,5],[43,1,43,5],[42,1,42,5],[41,1,41,5],[53,1,53,5],[54,1,54,5],[55,1,55,5],[62,1,62,5],[64,1,64,5],[65,1,65,5],[66,1,66,5],[67,1,67,5],[56,1,56,5],[57,1,57,5],[58,1,58,5],[59,1,59,5],[60,1,60,5],[61,1,61,5],[63,1,63,5],[4,11,4,22],[3,13,3,14],[3,15,3,17],[0,0,0,25],[1,6,1,10],[1,15,1,17],[1,18,1,19],[2,0,2,22],[2,23,2,25],[3,11,3,12],[5,0,5,7],[5,8,5,22],[6,0,6,11],[6,12,6,22],[7,0,7,23],[8,4,8,5],[8,6,8,8],[8,9,8,10],[8,11,8,18],[9,11,9,18],[10,0,10,25],[11,0,13,0],[11,1,13,5],[11,6,11,20],[11,21,12,22],[11,23,13,23],[11,24,12,25],[12,6,12,7],[12,8,12,9],[12,10,13,10],[12,11,13,11],[12,12,12,13],[12,14,12,15],[12,16,12,17],[12,18,12,19],[12,20,13,20],[14,1,14,5],[15,1,15,5],[16,1,16,5],[17,1,17,5],[18,1,18,5],[19,1,19,5],[9,4,9,5],[9,6,9,8],[9,9,9,10],[26,1,26,5],[27,1,27,5],[28,1,28,5],[29,1,29,5],[30,1,30,5],[31,1,31,5],[20,1,20,5],[21,1,21,5],[22,1,22,5],[23,1,23,5],[24,1,24,5],[25,1,25,5],[38,1,38,5],[39,1,39,5],[32,1,32,5],[33,1,33,5],[34,1,34,5],[35,1,35,5],[36,1,36,5],[37,1,37,5],[52,1,52,5],[44,1,44,5],[45,1,45,5],[46,1,46,5],[47,1,47,5],[48,1,48,5],[49,1,49,5],[50,1,50,5],[51,1,51,5],[40,1,40,5],[74,1,74,5],[75,1,75,5],[76,1,76,5],[77,1,77,5],[78,1,78,5],[79,1,79,5],[68,1,68,5],[69,1,69,5],[70,1,70,5],[71,1,71,5],[72,1,72,5],[73,1,73,5],[86,1,86,5],[94,21,94,23],[90,21,90,23],[91,21,91,23],[92,21,92,23],[93,21,93,23],[87,0,87,10],[88,0,88,10],[89,9,89,10],[90,16,90,20],[91,19,91,20],[92,19,92,20],[93,19,93,20],[93,11,93,15]]}
["Эксплуатационная карта"]
[null,null,null,"Работы пожарного автомобиля за",null,null,{"$f":"Нормы!G3","v":"Март   2015 г"},null,null,null,null,"Наименование и № подразделения      КГ",null,null,null,"К Г К У   9 - О П С",null,null,"37 - П Ч"]
["      Тип,марка,модель                                                  Автоцистерна           АЦ 40 (130)                                                                                                                                                  Государственный регистрационный знак",null,null,null,null,null,null,null,null,null,null,null,null,null,null,null,null,null,null,null,null,null,null,"Х 090 ОМ"]
["      Пробег а/м  на 1-е число отчетного месяца от начала эксплуатаций:  шасси",null,null,null,null,null,null,null,null,null,null,{"$f":"Нормы!B99","v":83913},null,"км.двигатель",null,{"$f":"Нормы!C99","v":113928.16666666667},null,null,"км.(приведенный)"]
["      Остаток топлива в автомобиле на 1-е число отчетного месяца",null,null,null,null,null,null,null,null,null,null,{"$f":"'отчёт '!F15","v":47},null,null,null,null,null,null,null,null,null,null,null,"литр."]
["      Заправлено топлива в автомобиль за отчетный месяц",null,null,null,null,null,null,null,{"$f":"U88","v":0},null,null,null,null,null,null,null,null,null,null,null,null,null,null,"литр."]
["      Остаток топлива в автомобиле на 1-е число следующего за отчетным месяцем",null,null,null,null,null,null,null,null,null,null,null,{"$f":"X88","v":46.505000000000003},null,null,null,null,null,null,null,null,null,null,"литр."]
["Результат расхода топлива за отчетный месяц"]
[null,null,null,null,"фактически",null,{"$f":"V88","v":0.495},null,null,"литр.",null," Экономия _________________литр."]
[null,null,null,null,"по нормам",null,{"$f":"W88","v":0.495},null,null,"литр.",null,"Перерасход _________________литр."]
[]
["дата","Наименование и место работы автомобиля(То,работа на пожаре,учениях и др)",null,null,null,null,"работа пожарного автомобиля",null,null,null,null,null,null,null,null,null,null,null,null,null,null,"расход топлива в литрах",null,"Остаток топлива ","подписи"]
[null,null,null,null,null,null,"время выезда",null,"время возвращения ",null,"показания спидометра перед выездом ","пройдено км к месту работы и обратно","на пожарах    (в мин)",null,"на учениях (в мин)",null," при смене караула (в мин)",null,"на прочих работах",null,"заправлено топлива в автомобиль"]
[null,null,null,null,null,null,"часы","минуты","часы","минуты",null,null,"с насосом","без насоса","с насосом","без насоса","с насосом","без насоса","с насосом","без насоса",null,"фактически","по нормам",null,"водителя","начальника караула"]
[1,2,null,null,null,null,3,4,5,6,7,8,9,10,11,12,13,14,15,16,17,18,19,20,21,22]
["1,03","Смена караула",null,null,null,null,null,null,null,null,{"$f":"L4","v":83913},{"$f":"IF(K17=\"\",\"\",K17-K16)","v":""},null,null,null,null,null,3,null,null,null,{"$f":"W16","v":0.495},{"$f":"IF(L16=\"\",0,L16)*КИЛОМЕТР+(M16+O16+Q16+S16)*НАСОС+(N16+P16+R16+T16)*БЕЗ_НАСОСА","v":0.495},{"$f":"Остаток_на_начало_месяца-W16+U16","v":46.505000000000003}]
[null,null,null,null,null,null,null,null,null,null,null,"",null,null,null,null,null,null,null,null,null,{"$f":"W17","v":0},0,{"$f":"IF(W17=0,\"\",X16-W17+U17)","v":""}]
[null,null,null,null,null,null,null,null,null,null,null,"",null,null,null,null,null,null,null,null,null,{"$f":"W18","v":0},0,""]
[null,null,null,null,null,null,null,null,null,null,null,"",null,null,null,null,null,null,null,null,null,0,0,""]
[null,null,null,null,null,null,null,null,null,null,null,"",null,null,null,null,null,null,null,null,null,0,0,""]
[null,null,null,null,null,null,null,null,null,null,null,"",null,null,null,null,null,null,null,null,null,0,0,""]
[null,null,null,null,null,null,null,null,null,null,null,"",null,null,null,null,null,null,null,null,null,0,0,""]
[null,null,null,null,null,null,null,null,null,null,null,{"$f":"IF(K24=\"\",\"\",K24-K23)","v":""},null,null,null,null,null,null,null,null,null,0,0,""]
[null,null,null,null,null,null,null,null,null,null,null,{"$f":"IF(K25=\"\",\"\",K25-K24)","v":""},null,null,null,null,null,null,null,null,null,0,0,""]
[null,null,null,null,null,null,null,null,null,null,null,"",null,null,null,null,null,null,null,null,null,0,0,""]
[null,null,null,null,null,null,null,null,null,null,null,"",null,null,null,null,null,null,null,null,null,0,0,""]
[null,null,null,null,null,null,null,null,null,null,null,"",null,null,null,null,null,null,null,null,null,0,0,""]
[null,null,null,null,null,null,null,null,null,null,null,"",null,null,null,null,null,null,null,null,null,0,0,""]
[null,null,null,null,null,null,null,null,null,null,null,"",null,null,null,null,null,null,null,null,null,0,0,""]
[null,null,null,null,null,null,null,null,null,null,null,"",null,null,null,null,null,null,null,null,null,0,0,""]
[null,null,null,null,null,null,null,null,null,null,null,"",null,null,null,null,null,null,null,null,null,0,0,""]
[null,null,null,null,null,null,null,null,null,null,null,"",null,null,null,null,null,null,null,null,null,0,0,""]
[null,null,null,null,null,null,null,null,null,null,null,"",null,null,null,null,null,null,null,null,null,0,0,""]
[null,null,null,null,null,null,null,null,null,null,null,"",null,null,null,null,null,null,null,null,null,0,0,""]
[null,null,null,null,null,null,null,null,null,null,null,"",null,null,null,null,null,null,null,null,null,0,0,""]
[null,null,null,null,null,null,null,null,null,null,null,"",null,null,null,null,null,null,null,null,null,0,0,""]
[null,null,null,null,null,null,null,null,null,null,null,"",null,null,null,null,null,null,null,null,null,0,0,""]
[null,null,null,null,null,null,null,null,null,null,null,"",null,null,null,null,null,null,null,null,null,0,0,""]
[null,null,null,null,null,null,null,null,null,null,null,"",null,null,null,null,null,null,null,null,null,0,0,""]
[null,null,null,null,null,null,null,null,null,null,null,{"$f":"IF(K41=\"\",\"\",K41-K40)","v":""},null,null,null,null,null,null,null,null,null,0,0,""]
[null,null,null,null,null,null,null,null,null,null,null,"",null,null,null,null,null,null,null,null,null,0,0,""]
[null,null,null,null,null,null,null,null,null,null,null,"",null,null,null,null,null,null,null,null,null,0,0,""]
[null,null,null,null,null,null,null,null,null,null,null,"",null,null,null,null,null,null,null,null,null,0,0,""]
[null,null,null,null,null,null,null,null,null,null,null,"",null,null,null,null,null,null,null,null,null,0,0,""]
[null,null,null,null,null,null,null,null,null,null,null,"",null,null,null,null,null,null,null,null,null,0,0,""]
[null,null,null,null,null,null,null,null,null,null,null,"",null,null,null,null,null,null,null,null,null,0,0,""]
[null,null,null,null,null,null,null,null,null,null,null,"",null,null,null,null,null,null,null,null,null,0,0,""]
[null,null,null,null,null,null,null,null,null,null,null,"",null,null,null,null,null,null,null,null,null,0,{"$f":"IF(L48=\"\",0,L48)*КИЛОМЕТР+(M48+O48+Q48+S48)*НАСОС+(N48+P48+R48+T48)*БЕЗ_НАСОСА","v":0},""]
[null,null,null,null,null,null,null,null,null,null,null,"",null,null,null,null,null,null,null,null,null,0,0,"","Сысуев"]
[null,null,null,null,null,null,null,null,null,null,null,"",null,null,null,null,null,null,null,null,null,0,0,"","Гаврилов"]
[null,null,null,null,null,null,null,null,null,null,null,"",null,null,null,null,null,null,null,null,null,0,0,""]
[null,null,null,null,null,null,null,null,null,null,null,"",null,null,null,null,null,null,null,null,null,0,0,""]
[null,null,null,null,null,null,null,null,null,null,null,"",null,null,null,null,null,null,null,null,null,0,0,""]
[null,null,null,null,null,null,null,null,null,null,null,"",null,null,null,null,null,null,null,null,null,0,0,""]
[null,null,null,null,null,null,null,null,null,null,null,"",null,null,null,null,null,null,null,null,null,0,0,""]
[null,null,null,null,null,null,null,null,null,null,null,"",null,null,null,null,null,null,null,null,null,0,0,""]
[null,null,null,null,null,null,null,null,null,null,null,"",null,null,null,null,null,null,null,null,null,0,0,""]
[null,null,null,null,null,null,null,null,null,null,null,"",null,null,null,null,null,null,null,null,null,0,0,""]
[null,null,null,null,null,null,null,null,null,null,null,"",null,null,null,null,null,null,null,null,null,0,0,""]
[null,null,null,null,null,null,null,null,null,null,null,"",null,null,null,null,null,null,null,null,null,0,0,""]
[null,null,null,null,null,null,null,null,null,null,null,"",null,null,null,null,null,null,null,null,null,0,0,""]
[null,null,null,null,null,null,null,null,null,null,null,"",null,null,null,null,null,null,null,null,null,0,0,""]
[null,null,null,null,null,null,null,null,null,null,null,"",null,null,null,null,null,null,null,null,null,0,0,""]
[null,null,null,null,null,null,null,null,null,null,null,"",null,null,null,null,null,null,null,null,null,0,0,""]
[null,null,null,null,null,null,null,null,null,null,null,"",null,null,null,null,null,null,null,null,null,0,0,""]
[null,null,null,null,null,null,null,null,null,null,null,"",null,null,null,null,null,null,null,null,null,0,0,""]
[null,null,null,null,null,null,null,null,null,null,null,"",null,null,null,null,null,null,null,null,null,0,0,""]
[null,null,null,null,null,null,null,null,null,null,null,"",null,null,null,null,null,null,null,null,null,0,0,""]
[null,null,null,null,null,null,null,null,null,null,null,"",null,null,null,null,null,null,null,null,null,0,0,""]
[null,null,null,null,null,null,null,null,null,null,null,"",null,null,null,null,null,null,null,null,null,0,0,""]
[null,null,null,null,null,null,null,null,null,null,null,"",null,null,null,null,null,null,null,null,null,0,0,""]
[null,null,null,null,null,null,null,null,null,null,null,"",null,null,null,null,null,null,null,null,null,0,0,""]
[null,null,null,null,null,null,null,null,null,null,null,"",null,null,null,null,null,null,null,null,null,0,0,""]
[null,null,null,null,null,null,null,null,null,null,null,"",null,null,null,null,null,null,null,null,null,0,0,""]
[null,null,null,null,null,null,null,null,null,null,null,"",null,null,null,null,null,null,null,null,null,0,0,""]
[null,null,null,null,null,null,null,null,null,null,null,"",null,null,null,null,null,null,null,null,null,0,0,""]
[null,null,null,null,null,null,null,null,null,null,null,"",null,null,null,null,null,null,null,null,null,0,0,""]
[null,null,null,null,null,null,null,null,null,null,null,"",null,null,null,null,null,null,null,null,null,0,0,""]
[null,null,null,null,null,null,null,null,null,null,null,"",null,null,null,null,null,null,null,null,null,0,0,""]
[null,null,null,null,null,null,null,null,null,null,null,{"$f":"IF(K81=\"\",\"\",K81-K80)","v":""},null,null,null,null,null,null,null,null,null,0,{"$f":"IF(L80=\"\",0,L80)*КИЛОМЕТР+(M80+O80+Q80+S80)*НАСОС+(N80+P80+R80+T80)*БЕЗ_НАСОСА","v":0},""]
[null,null,null,null,null,null,null,null,null,null,null,"",null,null,null,null,null,null,null,null,null,{"$f":"W81","v":0},0,{"$f":"IF(W81=0,\"\",X80-W81+U81)","v":""}]
[null,null,null,null,null,null,null,null,null,null,null,"",null,null,null,null,null,null,null,null,null,0,0,""]
[null,null,null,null,null,null,null,null,null,null,null,"",null,null,null,null,null,null,null,null,null,0,0,""]
[null,null,null,null,null,null,null,null,null,null,null,"",null,null,null,null,null,null,null,null,null,0,0,""]
[null,null,null,null,null,null,null,null,null,null,null,"",null,null,null,null,null,null,null,null,null,0,0,""]
[null,null,null,null,null,null,null,null,null,null,null,"",null,null,null,null,null,null,null,null,null,0,0,""]
[null,null,null,null,null,null,null,null,null,null,null,"",null,null,null,null,null,null,null,null,null,0,0,{"$f":"IF(W87=0,\"\",#REF!-W87+U87)","v":""}]
[null,null,null,null,null,null,null,null,null,null,null,{"$f":"SUM(L16:L87)","v":0},0,0,0,0,0,3,0,0,0,0.495,0.495,{"$f":"Остаток_на_начало_месяца+Заправлено-W88","v":46.505000000000003}]
["                    Израсходовано топлива по элементам работы(в литрах)",null,null,null,null,null,null,null,null,null,null,{"$f":"L88*КИЛОМЕТР","v":0},{"$f":"M88*НАСОС","v":0},{"$f":"N88*БЕЗ_НАСОСА","v":0},{"$f":"O88*НАСОС","v":0},{"$f":"P88*БЕЗ_НАСОСА","v":0},{"$f":"Q88*НАСОС","v":0},{"$f":"R88*БЕЗ_НАСОСА","v":0.495},{"$f":"S88*НАСОС","v":0},{"$f":"T88*БЕЗ_НАСОСА","v":0}]
[null,"Наработка автомобиля за отчетный месяц в км.(с учетом приведенного)",null,null,null,null,null,null,null,{"$f":"(M88+O88+Q88+S88)/60*50+L88","v":0},null,"км. "]
[null,null,null,null,null,null,null,null,null,null,null,null,null,null,null,null,"Текущая норма",null,null,null,null,"Пробег по спидометру, км",null,null,{"$f":"L88","v":0}]
[null,null,"Руководитель подразделения",null,null,null,null,null,null,null,null,"Старший водитель",null,null,null,null,"1 км",null,null,0.498,null,"Наработка с насосом м.ч.",null,null,{"$f":"(M88+O88+Q88+S88)/60","v":0}]
[null,null,"<_____>______________________2015г.",null,null,null,null,null,null,null,null,"<_____>______________________",null,null,null,"2015г.","1 мин с насосом",null,null,0.36299999999999999,null,"Наработка без насоса",null,null,{"$f":"N88+P88+R88+T88","v":3}]
[null,null,null,null,null,null,null,null,null,null,null,null,null,null,null,null,"1 мин без насоса",null,null,0.16500000000000001,null,"Приведенный пробег",null,null,{"$f":"Y92*50","v":0}]
[null,null,null,null,null,null,null,null,null,null,null,null,null,null,null,null,null,null,null,null,null,"Общий пробег",null,null,{"$f":"Y91+Y94","v":0}]

{"sheet":" 093  ","index":2,"n_rows":98,"n_cols":26,"rows_kept":98,"cut":false,"hidden":false,"merged":[[3,13,3,14],[3,15,3,17],[0,0,0,25],[1,6,1,10],[2,0,2,22],[2,23,2,25],[1,21,1,22],[3,11,3,12],[4,11,4,22],[5,0,5,7],[5,8,5,22],[6,0,6,11],[6,12,6,22],[7,0,7,23],[8,4,8,5],[8,6,8,8],[8,9,8,10],[8,11,8,18],[9,11,9,18],[10,0,10,25],[11,0,13,0],[11,1,13,5],[11,6,11,20],[11,21,12,22],[11,23,13,23],[11,24,12,25],[12,6,12,7],[12,8,12,9],[12,10,13,10],[12,11,13,11],[12,12,12,13],[12,14,12,15],[12,16,12,17],[12,18,12,19],[12,20,13,20],[14,1,14,5],[15,1,15,5],[9,4,9,5],[9,6,9,8],[9,9,9,10],[27,1,27,5],[28,1,28,5],[29,1,29,5],[30,1,30,5],[16,1,16,5],[17,1,17,5],[18,1,18,5],[20,1,20,5],[21,1,21,5],[22,1,22,5],[23,1,23,5],[24,1,24,5],[25,1,25,5],[26,1,26,5],[19,1,19,5],[31,1,31,5],[32,1,32,5],[33,1,33,5],[34,1,34,5],[35,1,35,5],[36,1,36,5],[50,1,50,5],[51,1,51,5],[52,1,52,5],[37,1,37,5],[43,1,43,5],[42,1,42,5],[41,1,41,5],[40,1,40,5],[38,1,38,5],[39,1,39,5],[53,1,53,5],[54,1,54,5],[55,1,55,5],[44,1,44,5],[45,1,45,5],[46,1,46,5],[47,1,47,5],[48,1,48,5],[49,1,49,5],[62,1,62,5],[63,1,63,5],[64,1,64,5],[65,1,65,5],[66,1,66,5],[67,1,67,5],[56,1,56,5],[57,1,57,5],[58,1,58,5],[59,1,59,5],[60,1,60,5],[61,1,61,5],[74,1,74,5],[75,1,75,5],[76,1,76,5],[77,1,77,5],[78,1,78,5],[79,1,79,5],[68,1,68,5],[69,1,69,5],[70,1,70,5],[71,1,71,5],[72,1,72,5],[73,1,73,5],[86,1,86,5],[87,1,87,5],[88,1,88,5],[89,1,89,5],[80,1,80,5],[81,1,81,5],[82,1,82,5],[83,1,83,5],[84,1,84,5],[85,1,85,5],[97,21,97,23],[93,21,93,23],[94,21,94,23],[95,21,95,23],[96,21,96,23],[90,0,90,10],[91,0,91,10],[92,9,92,10],[92,0,92,8],[93,16,93,20],[94,19,94,20],[95,19,95,20],[96,19,96,20],[96,11,96,15]]}
["Эксплуатационная карта"]
[null,null,null,"Работы пожарного автомобиля за",null,null,{"$f":"Нормы!G3","v":"Март   2015 г"},null,null,null,null,"Наименование и № подразделения      ",null,null,null,null,null,null,"К Г К У   9 - О П С",null,null,"37 - П Ч"]
["      Тип,марка,модель                                                  Автоцистерна           АЦ 40 (130)                                                                                                                                                  Государственный регистрационный знак",null,null,null,null,null,null,null,null,null,null,null,null,null,null,null,null,null,null,null,null,null,null,"Х 093 ОМ"]
["      Пробег а/м  на 1-е число отчетного месяца от начала эксплуатаций:  шасси",null,null,null,null,null,null,null,null,null,null,{"$f":"Нормы!B100","v":48210},null,"км.двигатель",null,{"$f":"Нормы!C100","v":100459.5},null,null,"км.(приведенный)"]
["      Остаток топлива в автомобиле на 1-е число отчетного месяца",null,null,null,null,null,null,null,null,null,null,{"$f":"'отчёт '!F16","v":51},null,null,null,null,null,null,null,null,null,null,null,"литр."]
["      Заправлено топлива в автомобиль за отчетный месяц",null,null,null,null,null,null,null,{"$f":"U91","v":0},null,null,null,null,null,null,null,null,null,null,null,null,null,null,"литр."]
["      Остаток топлива в автомобиле на 1-е число следующего за отчетным месяцем",null,null,null,null,null,null,null,null,null,null,null,{"$f":"X91","v":50.505000000000003},null,null,null,null,null,null,null,null,null,null,"литр."]
["Результат расхода топлива за отчетный месяц"]
[null,null,null,null,"фактически",null,{"$f":"V91","v":0.495},null,null,"литр.",null," Экономия _________________литр."]
[null,null,null,null,"по нормам",null,{"$f":"W91","v":0.495},null,null,"литр.",null,"Перерасход _________________литр."]
[]
["дата","Наименование и место работы автомобиля(То,работа на пожаре,учениях и др)",null,null,null,null,"работа пожарного автомобиля",null,null,null,null,null,null,null,null,null,null,null,null,null,null,"расход топлива в литрах",null,"Остаток топлива ","подписи"]
[null,null,null,null,null,null,"время выезда",null,"время возвращения ",null,"показания спидометра перед выездом ","пройдено км к месту работы и обратно","на пожарах     (в мин)",null,"на учениях (в мин)",null," при смене караула (в мин)",null,"на прочих работах",null,"заправлено топлива в автомобиль"]
[null,null,null,null,null,null,"часы","минуты","часы","минуты",null,null,"с насосом","без насоса","с насосом","без насоса","с насосом","без насоса","с насосом","без насоса",null,"фактически","по нормам",null,"водителя","начальника караула"]
[1,2,null,null,null,null,3,4,5,6,7,8,9,10,11,12,13,14,15,16,17,18,19,20,21,22]
["1,03","Смена караула",null,null,null,null,null,null,null,null,{"$f":"L4","v":48210},{"$f":"IF(K17=\"\",\"\",K17-K16)","v":""},null,null,null,null,null,3,null,null,null,{"$f":"W16","v":0.495},{"$f":"IF(L16=\"\",0,L16)*КИЛОМЕТР+(M16+O16+Q16+S16)*НАСОС+(N16+P16+R16+T16)*БЕЗ_НАСОСА","v":0.495},{"$f":"Остаток_на_начало_месяца-W16+U16","v":50.505000000000003}]
[null,null,null,null,null,null,null,null,null,null,null,{"$f":"IF(K18=\"\",\"\",K18-K17)","v":""},null,null,null,null,null,null,null,null,null,{"$f":"W17","v":0},0,{"$f":"IF(W17=0,\"\",X16-W17+U17)","v":""}]
[null,null,null,null,null,null,null,null,null,null,null,"",null,null,null,null,null,null,null,null,null,{"$f":"W18","v":0},0,""]
[null,null,null,null,null,null,null,null,null,null,null,"",null,null,null,null,null,null,null,null,null,0,0,""]
[null,null,null,null,null,null,null,null,null,null,null,"",null,null,null,null,null,null,null,null,null,0,0,""]
[null,null,null,null,null,null,null,null,null,null,null,"",null,null,null,null,null,null,null,null,null,0,0,""]
[null,null,null,null,null,null,null,null,null,null,null,"",null,null,null,null,null,null,null,null,null,0,0,""]
[null,null,null,null,null,null,null,null,null,null,null,"",null,null,null,null,null,null,null,null,null,0,0,""]
[null,null,null,null,null,null,null,null,null,null,null,"",null,null,null,null,null,null,null,null,null,0,0,""]
[null,null,null,null,null,null,null,null,null,null,null,"",null,null,null,null,null,null,null,null,null,0,0,""]
[null,null,null,null,null,null,null,null,null,null,null,"",null,null,null,null,null,null,null,null,null,0,0,""]
[null,null,null,null,null,null,null,null,null,null,null,"",null,null,null,null,null,null,null,null,null,0,0,""]
[null,null,null,null,null,null,null,null,null,null,null,"",null,null,null,null,null,null,null,null,null,0,0,""]
[null,null,null,null,null,null,null,null,null,null,null,"",null,null,null,null,null,null,null,null,null,0,0,""]
[null,null,null,null,null,null,null,null,null,null,null,"",null,null,null,null,null,null,null,null,null,0,0,""]
[null,null,null,null,null,null,null,null,null,null,null,"",null,null,null,null,null,null,null,null,null,0,0,""]
[null,null,null,null,null,null,null,null,null,null,null,"",null,null,null,null,null,null,null,null,null,0,0,""]
[null,null,null,null,null,null,null,null,null,null,null,"",null,null,null,null,null,null,null,null,null,0,0,""]
[null,null,null,null,null,null,null,null,null,null,null,"",null,null,null,null,null,null,null,null,null,0,0,""]
[null,null,null,null,null,null,null,null,null,null,null,"",null,null,null,null,null,null,null,null,null,0,0,""]
[null,null,null,null,null,null,null,null,null,null,null,"",null,null,null,null,null,null,null,null,null,0,0,""]
[null,null,null,null,null,null,null,null,null,null,null,{"$f":"IF(K38=\"\",\"\",K38-K37)","v":""},null,null,null,null,null,null,null,null,null,0,0,""]
[null,null,null,null,null,null,null,null,null,null,null,{"$f":"IF(K39=\"\",\"\",K39-K38)","v":""},null,null,null,null,null,null,null,null,null,0,0,""]
[null,null,null,null,null,null,null,null,null,null,null,"",null,null,null,null,null,null,null,null,null,0,0,""]
[null,null,null,null,null,null,null,null,null,null,null,"",null,null,null,null,null,null,null,null,null,0,0,""]
[null,null,null,null,null,null,null,null,null,null,null,"",null,null,null,null,null,null,null,null,null,0,0,""]
[null,null,null,null,null,null,null,null,null,null,null,"",null,null,null,null,null,null,null,null,null,0,0,""]
[null,null,null,null,null,null,null,null,null,null,null,"",null,null,null,null,null,null,null,null,null,0,0,""]
[null,null,null,null,null,null,null,null,null,null,null,"",null,null,null,null,null,null,null,null,null,0,0,""]
[null,null,null,null,null,null,null,null,null,null,null,"",null,null,null,null,null,null,null,null,null,0,0,""]
[null,null,null,null,null,null,null,null,null,null,null,"",null,null,null,null,null,null,null,null,null,0,0,""]
[null,null,null,null,null,null,null,null,null,null,null,"",null,null,null,null,null,null,null,null,null,0,0,""]
[null,null,null,null,null,null,null,null,null,null,null,"",null,null,null,null,null,null,null,null,null,0,{"$f":"IF(L48=\"\",0,L48)*КИЛОМЕТР+(M48+O48+Q48+S48)*НАСОС+(N48+P48+R48+T48)*БЕЗ_НАСОСА","v":0},""]
[null,null,null,null,null,null,null,null,null,null,null,"",null,null,null,null,null,null,null,null,null,0,0,""]
[null,null,null,null,null,null,null,null,null,null,null,"",null,null,null,null,null,null,null,null,null,0,0,""]
[null,null,null,null,null,null,null,null,null,null,null,"",null,null,null,null,null,null,null,null,null,0,0,""]
[null,null,null,null,null,null,null,null,null,null,null,"",null,null,null,null,null,null,null,null,null,0,0,""]
[null,null,null,null,null,null,null,null,null,null,null,"",null,null,null,null,null,null,null,null,null,0,0,""]
[null,null,null,null,null,null,null,null,null,null,null,"",null,null,null,null,null,null,null,null,null,0,0,""]
[null,null,null,null,null,null,null,null,null,null,null,"",null,null,null,null,null,null,null,null,null,0,0,""]
[null,null,null,null,null,null,null,null,null,null,null,"",null,null,null,null,null,null,null,null,null,0,0,""]
[null,null,null,null,null,null,null,null,null,null,null,"",null,null,null,null,null,null,null,null,null,0,0,""]
[null,null,null,null,null,null,null,null,null,null,null,"",null,null,null,null,null,null,null,null,null,0,0,""]
[null,null,null,null,null,null,null,null,null,null,null,"",null,null,null,null,null,null,null,null,null,0,0,""]
[null,null,null,null,null,null,null,null,null,null,null,"",null,null,null,null,null,null,null,null,null,0,0,""]
[null,null,null,null,null,null,null,null,null,null,null,"",null,null,null,null,null,null,null,null,null,0,0,""]
[null,null,null,null,null,null,null,null,null,null,null,"",null,null,null,null,null,null,null,null,null,0,0,""]
[null,null,null,null,null,null,null,null,null,null,null,"",null,null,null,null,null,null,null,null,null,0,0,""]
[null,null,null,null,null,null,null,null,null,null,null,"",null,null,null,null,null,null,null,null,null,0,0,""]
[null,null,null,null,null,null,null,null,null,null,null,"",null,null,null,null,null,null,null,null,null,0,0,""]
[null,null,null,null,null,null,null,null,null,null,null,"",null,null,null,null,null,null,null,null,null,0,0,""]
[null,null,null,null,null,null,null,null,null,null,null,"",null,null,null,null,null,null,null,null,null,0,0,""]
[null,null,null,null,null,null,null,null,null,null,null,"",null,null,null,null,null,null,null,null,null,0,0,""]
[null,null,null,null,null,null,null,null,null,null,null,"",null,null,null,null,null,null,null,null,null,0,0,""]
[null,null,null,null,null,null,null,null,null,null,null,{"$f":"IF(K71=\"\",\"\",K71-K70)","v":""},null,null,null,null,null,null,null,null,null,0,0,""]
[null,null,null,null,null,null,null,null,null,null,null,"",null,null,null,null,null,null,null,null,null,0,0,""]
[null,null,null,null,null,null,null,null,null,null,null,"",null,null,null,null,null,null,null,null,null,0,0,""]
[null,null,null,null,null,null,null,null,null,null,null,"",null,null,null,null,null,null,null,null,null,0,0,""]
[null,null,null,null,null,null,null,null,null,null,null,"",null,null,null,null,null,null,null,null,null,0,0,""]
[null,null,null,null,null,null,null,null,null,null,null,"",null,null,null,null,null,null,null,null,null,0,0,""]
[null,null,null,null,null,null,null,null,null,null,null,"",null,null,null,null,null,null,null,null,null,0,0,""]
[null,null,null,null,null,null,null,null,null,null,null,"",null,null,null,null,null,null,null,null,null,0,0,""]
[null,null,null,null,null,null,null,null,null,null,null,"",null,null,null,null,null,null,null,null,null,0,0,""]
[null,null,null,null,null,null,null,null,null,null,null,"",null,null,null,null,null,null,null,null,null,0,0,""]
[null,null,null,null,null,null,null,null,null,null,null,"",null,null,null,null,null,null,null,null,null,0,{"$f":"IF(L80=\"\",0,L80)*КИЛОМЕТР+(M80+O80+Q80+S80)*НАСОС+(N80+P80+R80+T80)*БЕЗ_НАСОСА","v":0},""]
[null,null,null,null,null,null,null,null,null,null,null,{"$f":"IF(K82=\"\",\"\",K82-K81)","v":""},null,null,null,null,null,null,null,null,null,{"$f":"W81","v":0},0,{"$f":"IF(W81=0,\"\",X80-W81+U81)","v":""}]
[null,null,null,null,null,null,null,null,null,null,null,"",null,null,null,null,null,null,null,null,null,0,0,""]
[null,null,null,null,null,null,null,null,null,null,null,"",null,null,null,null,null,null,null,null,null,0,0,""]
[null,null,null,null,null,null,null,null,null,null,null,"",null,null,null,null,null,null,null,null,null,0,0,""]
[null,null,null,null,null,null,null,null,null,null,null,"",null,null,null,null,null,null,null,null,null,0,0,""]
[null,null,null,null,null,null,null,null,null,null,null,"",null,null,null,null,null,null,null,null,null,0,0,""]
[null,null,null,null,null,null,null,null,null,null,null,"",null,null,null,null,null,null,null,null,null,0,0,""]
[null,null,null,null,null,null,null,null,null,null,null,"",null,null,null,null,null,null,null,null,null,0,0,""]
[null,null,null,null,null,null,null,null,null,null,null,"",null,null,null,null,null,null,null,null,null,0,0,{"$f":"IF(W89=0,\"\",X88-W89+U89)","v":""}]
[null,null,null,null,null,null,null,null,null,null,null,"",null,null,null,null,null,null,null,null,null,0,0,""]
["                    ИТОГО за месяц",null,null,null,null,null,null,null,null,null,null,{"$f":"SUM(L16:L90)","v":0},0,0,0,0,0,3,0,0,0,0.495,0.495,{"$f":"Остаток_на_начало_месяца+Заправлено-W91","v":50.505000000000003}]
["                    Израсходовано топлива по элементам работы(в литрах)",null,null,null,null,null,null,null,null,null,null,{"$f":"L91*КИЛОМЕТР","v":0},{"$f":"M91*НАСОС","v":0},{"$f":"N91*БЕЗ_НАСОСА","v":0},{"$f":"O91*НАСОС","v":0},{"$f":"P91*БЕЗ_НАСОСА","v":0},{"$f":"Q91*НАСОС","v":0},{"$f":"R91*БЕЗ_НАСОСА","v":0.495},{"$f":"S91*НАСОС","v":0},{"$f":"T91*БЕЗ_НАСОСА","v":0}]
["    Наработка а/м  за отчетный месяц в км.(с учетом приведенного)",null,null,null,null,null,null,null,null,{"$f":"(M91+O91+Q91+S91)/60*50+L91","v":0},null,"км. "]
[null,null,null,null,null,null,null,null,null,null,null,null,null,null,null,null,"Текущая норма",null,null,null,null,"Пробег по спидометру, км",null,null,{"$f":"L91","v":0}]
[null,null,"Руководитель подразделения",null,null,null,null,null,null,null,null,"Старший водитель",null,null,null,null,"1 км",null,null,0.498,null,"Наработка с насосом м.ч.",null,null,{"$f":"(M91+O91+Q91+S91)/60","v":0}]
[null,null,"<_____>______________________2015г.",null,null,null,null,null,null,null,null,"<_____>______________________",null,null,null,"2015г.","1 мин с насосом",null,null,0.36299999999999999,null,"Наработка без насоса",null,null,{"$f":"N91+P91+R91+T91","v":3}]
[null,null,null,null,null,null,null,null,null,null,null,null,null,null,null,null,"1 мин без насоса",null,null,0.16500000000000001,null,"Приведенный пробег",null,null,{"$f":"Y95*50","v":0}]
[null,null,null,null,null,null,null,null,null,null,null,null,null,null,null,null,null,null,null,null,null,"Общий пробег",null,null,{"$f":"Y94+Y97","v":0}]

{"sheet":" 883  ","index":3,"n_rows":92,"n_cols":26,"rows_kept":92,"cut":false,"hidden":false,"merged":[[44,1,44,5],[45,1,45,5],[46,1,46,5],[47,1,47,5],[3,13,3,14],[3,15,3,17],[0,0,0,25],[1,6,1,10],[2,0,2,22],[2,23,2,25],[1,17,1,19],[1,21,1,22],[4,10,4,22],[3,11,3,12],[4,0,4,9],[5,0,5,7],[5,8,5,22],[6,0,6,11],[6,12,6,22],[7,0,7,23],[8,4,8,5],[8,6,8,8],[8,9,8,10],[8,11,8,18],[9,4,9,5],[9,6,9,8],[9,9,9,10],[9,11,9,18],[10,0,10,25],[11,0,13,0],[11,1,13,5],[11,6,11,20],[11,21,12,22],[11,23,13,23],[11,24,12,25],[12,6,12,7],[12,8,12,9],[12,10,13,10],[12,11,13,11],[12,12,12,13],[12,14,12,15],[12,16,12,17],[12,18,12,19],[12,20,13,20],[20,1,20,5],[21,1,21,5],[22,1,22,5],[23,1,23,5],[24,1,24,5],[26,1,26,5],[14,1,14,5],[15,1,15,5],[16,1,16,5],[17,1,17,5],[18,1,18,5],[19,1,19,5],[25,1,25,5],[42,1,42,5],[43,1,43,5],[32,1,32,5],[33,1,33,5],[34,1,34,5],[35,1,35,5],[36,1,36,5],[37,1,37,5],[27,1,27,5],[28,1,28,5],[29,1,29,5],[30,1,30,5],[31,1,31,5],[62,1,62,5],[63,1,63,5],[64,1,64,5],[65,1,65,5],[66,1,66,5],[67,1,67,5],[38,1,38,5],[56,1,56,5],[57,1,57,5],[58,1,58,5],[59,1,59,5],[60,1,60,5],[61,1,61,5],[50,1,50,5],[51,1,51,5],[52,1,52,5],[53,1,53,5],[54,1,54,5],[55,1,55,5],[48,1,48,5],[49,1,49,5],[39,1,39,5],[40,1,40,5],[41,1,41,5],[74,1,74,5],[75,1,75,5],[76,1,76,5],[77,1,77,5],[78,1,78,5],[79,1,79,5],[68,1,68,5],[69,1,69,5],[70,1,70,5],[71,1,71,5],[72,1,72,5],[73,1,73,5],[82,1,82,5],[83,1,83,5],[80,1,80,5],[81,1,81,5],[91,21,91,23],[87,21,87,23],[88,21,88,23],[89,21,89,23],[90,21,90,23],[84,0,84,10],[85,0,85,10],[86,9,86,10],[87,16,87,20],[88,19,88,20],[89,19,89,20],[90,19,90,20],[90,11,90,15]]}
["Эксплуатационная карта"]
[null,null,null,"Работы пожарного автомобиля за",null,null,{"$f":"Нормы!G3","v":"Март   2015 г"},null,null,null,null,"Наименование и № подразделения     ",null,null,null,null,null,"КГКУ 9 - ОПС",null,null,null,"37 - ПЧ"]
["      Тип,марка,модель                                                  Автоцистерна           АЦ 9-40  Камаз (43118)                                                                                                                                                  Государственный регистрационный знак",null,null,null,null,null,null,null,null,null,null,null,null,null,null,null,null,null,null,null,null,null,null,"Х 883 ОМ"]
["      Пробег автомобиля на 1-е число отчетного месяца от начала эксплуатаций:шасси",null,null,null,null,null,null,null,null,null,null,{"$f":"Нормы!B102","v":48762},null,"км.двигатель",null,{"$f":"Нормы!C102","v":61530.333333333328},null,null,"км.(приведенный)"]
["      Остаток топлива в автомобиле на 1-е число отчетного месяца",null,null,null,null,null,null,null,null,null,{"$f":"'отчёт '!F22","v":424},null,null,null,null,null,null,null,null,null,null,null,null,"литр."]
["      Заправлено топлива в автомобиль за отчетный месяц",null,null,null,null,null,null,null,{"$f":"U85","v":0},null,null,null,null,null,null,null,null,null,null,null,null,null,null,"литр."]
["      Остаток топлива в автомобиле на 1-е число следующего за отчетным месяцем",null,null,null,null,null,null,null,null,null,null,null,{"$f":"X85","v":423.17500000000001},null,null,null,null,null,null,null,null,null,null,"литр."]
["Результат расхода топлива за отчетный месяц"]
[null,null,null,null,"фактически",null,{"$f":"V85","v":0.82500000000000007},null,null,"литр.",null," Экономия _________________литр."]
[null,null,null,null,"по нормам",null,{"$f":"W85","v":0.82500000000000007},null,null,"литр.",null,"Перерасход _________________литр."]
[]
["дата","Наименование и место работы автомобиля(То,работа на пожаре,учениях и др)",null,null,null,null,"работа пожарного автомобиля",null,null,null,null,null,null,null,null,null,null,null,null,null,null,"расход топлива в литрах",null,"Остаток топлива ","подписи"]
[null,null,null,null,null,null,"время выезда",null,"время возвращения ",null,"показания спидометра перед выездом ","пройдено км к месту работы и обратно","на пожарах      (в мин)",null,"на учениях (в мин)",null," при смене караула (в мин)",null,"на прочих работах",null,"заправлено топлива в автомобиль"]
[null,null,null,null,null,null,"часы","минуты","часы","минуты",null,null,"с насосом","без насоса","с насосом","без насоса","с насосом","без насоса","с насосом","без насоса",null,"фактически","по нормам",null,"водителя","начальника караула"]
[1,2,null,null,null,null,3,4,5,6,7,8,9,10,11,12,13,14,15,16,17,18,19,20,21,22]
["1,03","Смена караула",null,null,null,null,null,null,null,null,{"$f":"L4","v":48762},{"$f":"IF(K17=\"\",\"\",K17-K16)","v":""},null,null,null,null,null,5,null,null,null,{"$f":"W16","v":0.82500000000000007},{"$f":"IF(L16=\"\",0,L16)*КИЛОМЕТР+(M16+O16+Q16+S16)*НАСОС+(N16+P16+R16+T16)*БЕЗ_НАСОСА","v":0.82500000000000007},{"$f":"Остаток_на_начало_месяца-W16+U16","v":423.17500000000001}]
[null,null,null,null,null,null,null,null,null,null,null,{"$f":"IF(K18=\"\",\"\",K18-K17)","v":""},null,null,null,null,null,null,null,null,null,{"$f":"W17","v":0},0,{"$f":"IF(W17=0,\"\",X16-W17+U17)","v":""}]
[null,null,null,null,null,null,null,null,null,null,null,"",null,null,null,null,null,null,null,null,null,{"$f":"W18","v":0},0,""]
[null,null,null,null,null,null,null,null,null,null,null,"",null,null,null,null,null,null,null,null,null,0,0,""]
[null,null,null,null,null,null,null,null,null,null,null,"",null,null,null,null,null,null,null,null,null,0,0,""]
[null,null,null,null,null,null,null,null,null,null,null,"",null,null,null,null,null,null,null,null,null,0,0,""]
[null,null,null,null,null,null,null,null,null,null,null,"",null,null,null,null,null,null,null,null,null,0,0,""]
[null,null,null,null,null,null,null,null,null,null,null,"",null,null,null,null,null,null,null,null,null,0,0,""]
[null,null,null,null,null,null,null,null,null,null,null,"",null,null,null,null,null,null,null,null,null,0,0,""]
[null,null,null,null,null,null,null,null,null,null,null,"",null,null,null,null,null,null,null,null,null,0,0,""]
[null,null,null,null,null,null,null,null,null,null,null,"",null,null,null,null,null,null,null,null,null,0,0,""]
[null,null,null,null,null,null,null,null,null,null,null,"",null,null,null,null,null,null,null,null,null,0,0,""]
[null,null,null,null,null,null,null,null,null,null,null,"",null,null,null,null,null,null,null,null,null,0,0,""]
[null,null,null,null,null,null,null,null,null,null,null,"",null,null,null,null,null,null,null,null,null,0,0,""]
[null,null,null,null,null,null,null,null,null,null,null,"",null,null,null,null,null,null,null,null,null,0,0,""]
[null,null,null,null,null,null,null,null,null,null,null,"",null,null,null,null,null,null,null,null,null,0,0,""]
[null,null,null,null,null,null,null,null,null,null,null,"",null,null,null,null,null,null,null,null,null,0,0,""]
[null,null,null,null,null,null,null,null,null,null,null,"",null,null,null,null,null,null,null,null,null,0,0,""]
[null,null,null,null,null,null,null,null,null,null,null,"",null,null,null,null,null,null,null,null,null,0,0,""]
[null,null,null,null,null,null,null,null,null,null,null,"",null,null,null,null,null,null,null,null,null,0,0,""]
[null,null,null,null,null,null,null,null,null,null,null,"",null,null,null,null,null,null,null,null,null,0,0,""]
[null,null,null,null,null,null,null,null,null,null,null,"",null,null,null,null,null,null,null,null,null,0,0,""]
[null,null,null,null,null,null,null,null,null,null,null,"",null,null,null,null,null,null,null,null,null,0,0,""]
[null,null,null,null,null,null,null,null,null,null,null,"",null,null,null,null,null,null,null,null,null,0,0,""]
[null,null,null,null,null,null,null,null,null,null,null,"",null,null,null,null,null,null,null,null,null,0,0,""]
[null,null,null,null,null,null,null,null,null,null,null,"",null,null,null,null,null,null,null,null,null,0,0,""]
[null,null,null,null,null,null,null,null,null,null,null,"",null,null,null,null,null,null,null,null,null,0,0,""]
[null,null,null,null,null,null,null,null,null,null,null,"",null,null,null,null,null,null,null,null,null,0,0,""]
[null,null,null,null,null,null,null,null,null,null,null,"",null,null,null,null,null,null,null,null,null,0,0,""]
[null,null,null,null,null,null,null,null,null,null,null,"",null,null,null,null,null,null,null,null,null,0,0,""]
[null,null,null,null,null,null,null,null,null,null,null,"",null,null,null,null,null,null,null,null,null,0,0,""]
[null,null,null,null,null,null,null,null,null,null,null,"",null,null,null,null,null,null,null,null,null,0,0,""]
[null,null,null,null,null,null,null,null,null,null,null,"",null,null,null,null,null,null,null,null,null,0,{"$f":"IF(L48=\"\",0,L48)*КИЛОМЕТР+(M48+O48+Q48+S48)*НАСОС+(N48+P48+R48+T48)*БЕЗ_НАСОСА","v":0},""]
[null,null,null,null,null,null,null,null,null,null,null,"",null,null,null,null,null,null,null,null,null,0,0,"","Шестаков"]
[null,null,null,null,null,null,null,null,null,null,null,"",null,null,null,null,null,null,null,null,null,0,0,"","Ломакин"]
[null,null,null,null,null,null,null,null,null,null,null,"",null,null,null,null,null,null,null,null,null,0,0,"","Прокофьев"]
[null,null,null,null,null,null,null,null,null,null,null,"",null,null,null,null,null,null,null,null,null,0,0,"","Прокофьев"]
[null,null,null,null,null,null,null,null,null,null,null,"",null,null,null,null,null,null,null,null,null,0,0,"","Добров"]
[null,null,null,null,null,null,null,null,null,null,null,"",null,null,null,null,null,null,null,null,null,0,0,"","Добров"]
[null,null,null,null,null,null,null,null,null,null,null,"",null,null,null,null,null,null,null,null,null,0,0,"","Добров"]
[null,null,null,null,null,null,null,null,null,null,null,"",null,null,null,null,null,null,null,null,null,0,0,"","Сысуев"]
[null,null,null,null,null,null,null,null,null,null,null,"",null,null,null,null,null,null,null,null,null,0,0,"","Киселев"]
[null,null,null,null,null,null,null,null,null,null,null,"",null,null,null,null,null,null,null,null,null,0,0,"","Киселев"]
[null,null,null,null,null,null,null,null,null,null,null,"",null,null,null,null,null,null,null,null,null,0,0,"","Киселев"]
[null,null,null,null,null,null,null,null,null,null,null,"",null,null,null,null,null,null,null,null,null,0,0,"","Пачкай"]
[null,null,null,null,null,null,null,null,null,null,null,"",null,null,null,null,null,null,null,null,null,0,0,"","Добров"]
[null,null,null,null,null,null,null,null,null,null,null,"",null,null,null,null,null,null,null,null,null,0,0,"","Добров"]
[null,null,null,null,null,null,null,null,null,null,null,"",null,null,null,null,null,null,null,null,null,0,0,"","Добров"]
[null,null,null,null,null,null,null,null,null,null,null,"",null,null,null,null,null,null,null,null,null,0,0,"","Добров"]
[null,null,null,null,null,null,null,null,null,null,null,"",null,null,null,null,null,null,null,null,null,0,0,"","Добров"]
[null,null,null,null,null,null,null,null,null,null,null,"",null,null,null,null,null,null,null,null,null,0,0,"","Сенкевич"]
[null,null,null,null,null,null,null,null,null,null,null,"",null,null,null,null,null,null,null,null,null,0,0,"","Силонов"]
[null,null,null,null,null,null,null,null,null,null,null,"",null,null,null,null,null,null,null,null,null,0,0,""]
[null,null,null,null,null,null,null,null,null,null,null,"",null,null,null,null,null,null,null,null,null,0,0,""]
[null,null,null,null,null,null,null,null,null,null,null,"",null,null,null,null,null,null,null,null,null,0,0,""]
[null,null,null,null,null,null,null,null,null,null,null,"",null,null,null,null,null,null,null,null,null,0,0,""]
[null,null,null,null,null,null,null,null,null,null,null,"",null,null,null,null,null,null,null,null,null,0,0,""]
[null,null,null,null,null,null,null,null,null,null,null,"",null,null,null,null,null,null,null,null,null,0,0,""]
[null,null,null,null,null,null,null,null,null,null,null,"",null,null,null,null,null,null,null,null,null,0,0,""]
[null,null,null,null,null,null,null,null,null,null,null,"",null,null,null,null,null,null,null,null,null,0,0,""]
[null,null,null,null,null,null,null,null,null,null,null,"",null,null,null,null,null,null,null,null,null,0,0,""]
[null,null,null,null,null,null,null,null,null,null,null,"",null,null,null,null,null,null,null,null,null,0,0,""]
[null,null,null,null,null,null,null,null,null,null,null,"",null,null,null,null,null,null,null,null,null,0,0,""]
[null,null,null,null,null,null,null,null,null,null,null,"",null,null,null,null,null,null,null,null,null,0,0,""]
[null,null,null,null,null,null,null,null,null,null,null,{"$f":"IF(K81=\"\",\"\",K81-K80)","v":""},null,null,null,null,null,null,null,null,null,0,{"$f":"IF(L80=\"\",0,L80)*КИЛОМЕТР+(M80+O80+Q80+S80)*НАСОС+(N80+P80+R80+T80)*БЕЗ_НАСОСА","v":0},""]
[null,null,null,null,null,null,null,null,null,null,null,{"$f":"IF(K82=\"\",\"\",K82-K81)","v":""},null,null,null,null,null,null,null,null,null,{"$f":"W81","v":0},0,{"$f":"IF(W81=0,\"\",X80-W81+U81)","v":""}]
[null,null,null,null,null,null,null,null,null,null,null,{"$f":"IF(K83=\"\",\"\",K83-K82)","v":""},null,null,null,null,null,null,null,null,null,0,0,""]
[null,null,null,null,null,null,null,null,null,null,null,"",null,null,null,null,null,null,null,null,null,0,0,{"$f":"IF(W83=0,\"\",#REF!-W83+U83)","v":""}]
[null,null,null,null,null,null,null,null,null,null,null,"",null,null,null,null,null,null,null,null,null,0,0,{"$f":"IF(W84=0,\"\",#REF!-W84+U84)","v":""}]
["                    ИТОГО за месяц",null,null,null,null,null,null,null,null,null,null,{"$f":"SUM(L16:L84)","v":0},0,0,0,0,0,5,0,0,0,0.82500000000000007,0.82500000000000007,{"$f":"Остаток_на_начало_месяца+Заправлено-W85","v":423.17500000000001}]
["                    Израсходовано топлива по элементам работы(в литрах)",null,null,null,null,null,null,null,null,null,null,{"$f":"L85*КИЛОМЕТР","v":0},{"$f":"M85*НАСОС","v":0},{"$f":"N85*БЕЗ_НАСОСА","v":0},{"$f":"O85*НАСОС","v":0},{"$f":"P85*БЕЗ_НАСОСА","v":0},{"$f":"Q85*НАСОС","v":0},{"$f":"R85*БЕЗ_НАСОСА","v":0.82500000000000007},{"$f":"S85*НАСОС","v":0},{"$f":"T85*БЕЗ_НАСОСА","v":0}]
[null,"Наработка автомобиля за отчетный месяц в км.(с учетом приведенного)",null,null,null,null,null,null,null,{"$f":"(M85+O85+Q85+S85)/60*50+L85","v":0},null,"км. "]
[null,null,null,null,null,null,null,null,null,null,null,null,null,null,null,null,"Текущая норма",null,null,null,null,"Пробег по спидометру, км",null,null,{"$f":"L85","v":0}]
[null,null,"Руководитель подразделения",null,null,null,null,null,null,null,null,"Старший водитель",null,null,null,null,"1 км",null,null,0.55200000000000005,null,"Наработка с насосом м.ч.",null,null,{"$f":"(M85+O85+Q85+S85)/60","v":0}]
[null,null,"<_____>______________________2015г.",null,null,null,null,null,null,null,null,"<_____>______________________",null,null,null,"2015г.","1 мин с насосом",null,null,0.27500000000000002,null,"Наработка без насоса",null,null,{"$f":"N85+P85+R85+T85","v":5}]
[null,null,null,null,null,null,null,null,null,null,null,null,null,null,null,null,"1 мин без насоса",null,null,0.16500000000000001,null,"Приведенный пробег",null,null,{"$f":"Y89*50","v":0}]
[null,null,null,null,null,null,null,null,null,null,null,null,null,null,null,null,null,null,null,null,null,"Общий пробег",null,null,{"$f":"Y88+Y91","v":0}]

{"sheet":"007","index":4,"n_rows":102,"n_cols":26,"rows_kept":102,"cut":false,"hidden":false,"merged":[[94,0,94,10],[95,0,95,10],[96,9,96,10],[100,11,100,15],[100,19,100,20],[100,21,100,23],[101,21,101,23],[97,16,97,20],[97,21,97,23],[98,19,98,20],[98,21,98,23],[99,19,99,20],[99,21,99,23],[81,1,81,5],[82,1,82,5],[83,1,83,5],[84,1,84,5],[85,1,85,5],[93,1,93,5],[86,1,86,5],[75,1,75,5],[76,1,76,5],[77,1,77,5],[78,1,78,5],[79,1,79,5],[80,1,80,5],[87,1,87,5],[88,1,88,5],[89,1,89,5],[90,1,90,5],[91,1,91,5],[92,1,92,5],[69,1,69,5],[70,1,70,5],[72,1,72,5],[73,1,73,5],[74,1,74,5],[71,1,71,5],[63,1,63,5],[64,1,64,5],[65,1,65,5],[66,1,66,5],[67,1,67,5],[68,1,68,5],[57,1,57,5],[58,1,58,5],[59,1,59,5],[60,1,60,5],[61,1,61,5],[62,1,62,5],[51,1,51,5],[52,1,52,5],[53,1,53,5],[54,1,54,5],[55,1,55,5],[56,1,56,5],[45,1,45,5],[46,1,46,5],[47,1,47,5],[48,1,48,5],[49,1,49,5],[50,1,50,5],[38,1,38,5],[39,1,39,5],[40,1,40,5],[42,1,42,5],[43,1,43,5],[44,1,44,5],[32,1,32,5],[33,1,33,5],[34,1,34,5],[35,1,35,5],[36,1,36,5],[37,1,37,5],[41,1,41,5],[26,1,26,5],[27,1,27,5],[28,1,28,5],[29,1,29,5],[30,1,30,5],[31,1,31,5],[20,1,20,5],[21,1,21,5],[22,1,22,5],[23,1,23,5],[24,1,24,5],[25,1,25,5],[14,1,14,5],[15,1,15,5],[16,1,16,5],[17,1,17,5],[18,1,18,5],[19,1,19,5],[9,4,9,5],[9,6,9,8],[9,9,9,10],[9,11,9,18],[10,0,10,25],[11,0,13,0],[11,1,13,5],[11,6,11,20],[11,21,12,22],[11,23,13,23],[11,24,12,25],[12,6,12,7],[12,8,12,9],[12,10,13,10],[12,11,13,11],[12,12,12,13],[12,14,12,15],[12,16,12,17],[12,18,12,19],[12,20,13,20],[0,0,0,25],[1,6,1,10],[1,17,1,19],[1,21,1,23],[2,0,2,22],[2,23,2,25],[6,0,6,11],[6,12,6,22],[7,0,7,23],[8,4,8,5],[8,6,8,8],[8,9,8,10],[8,11,8,18],[3,11,3,12],[3,13,3,14],[3,15,3,17],[4,0,4,9],[4,10,4,22],[5,0,5,7],[5,8,5,22]]}
["Эксплуатационная карта"]
[null,null,null,"Работы пожарного автомобиля за",null,null,{"$f":"Нормы!G3","v":"Март   2015 г"},null,null,null,null,"Наименование и № подразделения      ",null,null,null,null,null,"К Г К У   9 - О П С",null,null,null,"37 - П Ч"]
["      Тип,марка,модель                                                  Автоцистерна           АЦ 7,5-40 Камаз (43118)                                                                                                                                                  Государственный регистрационный знак",null,null,null,null,null,null,null,null,null,null,null,null,null,null,null,null,null,null,null,null,null,null,"У 007 АХ"]
["      Пробег автомобиля на 1-е число отчетного месяца от начала эксплуатаций:шасси",null,null,null,null,null,null,null,null,null,null,{"$f":"Нормы!B103","v":17953},null,"км.двигатель",null,{"$f":"Нормы!C103","v":25733.833333333328},null,null,"км.(приведенный)"]
["      Остаток топлива в автомобиле на 1-е число отчетного месяца",null,null,null,null,null,null,null,null,null,{"$f":"'отчёт '!F23","v":158},null,null,null,null,null,null,null,null,null,null,null,null,"литр."]
["      Заправлено топлива в автомобиль за отчетный месяц",null,null,null,null,null,null,null,{"$f":"U95","v":0},null,null,null,null,null,null,null,null,null,null,null,null,null,null,"литр."]
["      Остаток топлива в автомобиле на 1-е число следующего за отчетным месяцем",null,null,null,null,null,null,null,null,null,null,null,{"$f":"X95","v":157.17500000000001},null,null,null,null,null,null,null,null,null,null,"литр."]
["Результат расхода топлива за отчетный месяц"]
[null,null,null,null,"фактически",null,{"$f":"V95","v":0.82500000000000007},null,null,"литр.",null," Экономия _________________литр."]
[null,null,null,null,"по нормам",null,{"$f":"W95","v":0.82500000000000007},null,null,"литр.",null,"Перерасход _________________литр."]
[]
["дата","Наименование и место работы автомобиля(То,работа на пожаре,учениях и др)",null,null,null,null,"работа пожарного автомобиля",null,null,null,null,null,null,null,null,null,null,null,null,null,null,"расход топлива в литрах",null,"Остаток топлива ","подписи"]
[null,null,null,null,null,null,"время выезда",null,"время возвращения ",null,"показания спидометра перед выездом ","пройдено км к месту работы и обратно","на пожарах(в мин)",null,"на учениях (в мин)",null," при смене караула (в мин)",null,"на прочих работах",null,"заправлено топлива в автомобиль"]
[null,null,null,null,null,null,"часы","минуты","часы","минуты",null,null,"с насосом","без насоса","с насосом","без насоса","с насосом","без насоса","с насосом","без насоса",null,"фактически","по нормам",null,"водителя","начальника караула"]
[1,2,null,null,null,null,3,4,5,6,7,8,9,10,11,12,13,14,15,16,17,18,19,20,21,22]
["1,03","Смена караула",null,null,null,null,null,null,null,null,{"$f":"L4","v":17953},{"$f":"IF(K17=\"\",\"\",K17-K16)","v":""},null,null,null,null,null,5,null,null,null,{"$f":"W16","v":0.82500000000000007},{"$f":"IF(L16=\"\",0,L16)*КИЛОМЕТР+(M16+O16+Q16+S16)*НАСОС+(N16+P16+R16+T16)*БЕЗ_НАСОСА","v":0.82500000000000007},{"$f":"Остаток_на_начало_месяца-W16+U16","v":157.17500000000001}]
[null,null,null,null,null,null,null,null,null,null,null,"",null,null,null,null,null,null,null,null,null,{"$f":"W17","v":0},0,{"$f":"IF(W17=0,\"\",X16-W17+U17)","v":""}]
[null,null,null,null,null,null,null,null,null,null,null,"",null,null,null,null,null,null,null,null,null,{"$f":"W18","v":0},0,""]
[null,null,null,null,null,null,null,null,null,null,null,"",null,null,null,null,null,null,null,null,null,0,0,""]
[null,null,null,null,null,null,null,null,null,null,null,"",null,null,null,null,null,null,null,null,null,0,0,""]
[null,null,null,null,null,null,null,null,null,null,null,"",null,null,null,null,null,null,null,null,null,0,0,""]
[null,null,null,null,null,null,null,null,null,null,null,"",null,null,null,null,null,null,null,null,null,0,{"$f":"IF(L22=\"\",0,L22)*КИЛОМЕТР+(M22+O22+Q22+S22)*НАСОС+(N22+P22+R22+T22)*БЕЗ_НАСОСА","v":0},""]
[null,null,null,null,null,null,null,null,null,null,null,"",null,null,null,null,null,null,null,null,null,0,0,""]
[null,null,null,null,null,null,null,null,null,null,null,"",null,null,null,null,null,null,null,null,null,0,0,""]
[null,null,null,null,null,null,null,null,null,null,null,"",null,null,null,null,null,null,null,null,null,0,0,""]
[null,null,null,null,null,null,null,null,null,null,null,"",null,null,null,null,null,null,null,null,null,0,0,""]
[null,null,null,null,null,null,null,null,null,null,null,"",null,null,null,null,null,null,null,null,null,0,0,""]
[null,null,null,null,null,null,null,null,null,null,null,"",null,null,null,null,null,null,null,null,null,0,0,""]
[null,null,null,null,null,null,null,null,null,null,null,"",null,null,null,null,null,null,null,null,null,0,0,""]
[null,null,null,null,null,null,null,null,null,null,null,"",null,null,null,null,null,null,null,null,null,0,0,""]
[null,null,null,null,null,null,null,null,null,null,null,"",null,null,null,null,null,null,null,null,null,0,0,""]
[null,null,null,null,null,null,null,null,null,null,null,"",null,null,null,null,null,null,null,null,null,{"$f":"W32","v":0},0,""]
[null,null,null,null,null,null,null,null,null,null,null,"",null,null,null,null,null,null,null,null,null,{"$f":"W33","v":0},0,""]
[null,null,null,null,null,null,null,null,null,null,null,"",null,null,null,null,null,null,null,null,null,0,0,""]
[null,null,null,null,null,null,null,null,null,null,null,"",null,null,null,null,null,null,null,null,null,0,0,""]
[null,null,null,null,null,null,null,null,null,null,null,"",null,null,null,null,null,null,null,null,null,0,0,""]
[null,null,null,null,null,null,null,null,null,null,null,"",null,null,null,null,null,null,null,null,null,0,0,""]
[null,null,null,null,null,null,null,null,null,null,null,"",null,null,null,null,null,null,null,null,null,0,0,""]
[null,null,null,null,null,null,null,null,null,null,null,"",null,null,null,null,null,null,null,null,null,0,0,""]
[null,null,null,null,null,null,null,null,null,null,null,"",null,null,null,null,null,null,null,null,null,0,0,""]
[null,null,null,null,null,null,null,null,null,null,null,"",null,null,null,null,null,null,null,null,null,0,0,""]
[null,null,null,null,null,null,null,null,null,null,null,"",null,null,null,null,null,null,null,null,null,0,0,""]
[null,null,null,null,null,null,null,null,null,null,null,"",null,null,null,null,null,null,null,null,null,0,0,""]
[null,null,null,null,null,null,null,null,null,null,null,"",null,null,null,null,null,null,null,null,null,0,0,""]
[null,null,null,null,null,null,null,null,null,null,null,"",null,null,null,null,null,null,null,null,null,0,0,""]
[null,null,null,null,null,null,null,null,null,null,null,"",null,null,null,null,null,null,null,null,null,0,0,""]
[null,null,null,null,null,null,null,null,null,null,null,"",null,null,null,null,null,null,null,null,null,0,0,""]
[null,null,null,null,null,null,null,null,null,null,null,"",null,null,null,null,null,null,null,null,null,0,{"$f":"IF(L48=\"\",0,L48)*КИЛОМЕТР+(M48+O48+Q48+S48)*НАСОС+(N48+P48+R48+T48)*БЕЗ_НАСОСА","v":0},""]
[null,null,null,null,null,null,null,null,null,null,null,"",null,null,null,null,null,null,null,null,null,0,0,"","Шестаков"]
[null,null,null,null,null,null,null,null,null,null,null,"",null,null,null,null,null,null,null,null,null,0,0,"","Гаврилов"]
[null,null,null,null,null,null,null,null,null,null,null,"",null,null,null,null,null,null,null,null,null,0,0,"","Прокофьев"]
[null,null,null,null,null,null,null,null,null,null,null,"",null,null,null,null,null,null,null,null,null,0,0,"","Прокофьев"]
[null,null,null,null,null,null,null,null,null,null,null,"",null,null,null,null,null,null,null,null,null,0,0,{"$f":"IF(W53=0,\"\",X52-W53+U53)","v":""},"Егоров"]
[null,null,null,null,null,null,null,null,null,null,null,"",null,null,null,null,null,null,null,null,null,0,0,"","Егоров"]
[null,null,null,null,null,null,null,null,null,null,null,"",null,null,null,null,null,null,null,null,null,0,0,"","Сысуев"]
[null,null,null,null,null,null,null,null,null,null,null,"",null,null,null,null,null,null,null,null,null,0,{"$f":"IF(L56=\"\",0,L56)*КИЛОМЕТР+(M56+O56+Q56+S56)*НАСОС+(N56+P56+R56+T56)*БЕЗ_НАСОСА","v":0},"","Киселев"]
[null,null,null,null,null,null,null,null,null,null,null,"",null,null,null,null,null,null,null,null,null,0,{"$f":"IF(L57=\"\",0,L57)*КИЛОМЕТР+(M57+O57+Q57+S57)*НАСОС+(N57+P57+R57+T57)*БЕЗ_НАСОСА","v":0},"","Пачкай"]
[null,null,null,null,null,null,null,null,null,null,null,"",null,null,null,null,null,null,null,null,null,0,0,"","Пачкай"]
[null,null,null,null,null,null,null,null,null,null,null,"",null,null,null,null,null,null,null,null,null,0,0,"","Кравцов"]
[null,null,null,null,null,null,null,null,null,null,null,"",null,null,null,null,null,null,null,null,null,0,0,"","Кравцов"]
[null,null,null,null,null,null,null,null,null,null,null,"",null,null,null,null,null,null,null,null,null,0,0,"","Кравцов"]
[null,null,null,null,null,null,null,null,null,null,null,"",null,null,null,null,null,null,null,null,null,0,0,"","Сенкевич"]
[null,null,null,null,null,null,null,null,null,null,null,"",null,null,null,null,null,null,null,null,null,0,0,"","Силонов"]
[null,null,null,null,null,null,null,null,null,null,null,"",null,null,null,null,null,null,null,null,null,0,0,"","Силонов"]
[null,null,null,null,null,null,null,null,null,null,null,"",null,null,null,null,null,null,null,null,null,0,0,"","Силонов"]
[null,null,null,null,null,null,null,null,null,null,null,"",null,null,null,null,null,null,null,null,null,0,0,"","Силонов"]
[null,null,null,null,null,null,null,null,null,null,null,"",null,null,null,null,null,null,null,null,null,0,0,"","Комиссаров"]
[null,null,null,null,null,null,null,null,null,null,null,"",null,null,null,null,null,null,null,null,null,0,0,"","Егоров"]
[null,null,null,null,null,null,null,null,null,null,null,"",null,null,null,null,null,null,null,null,null,0,0,"","Егоров"]
[null,null,null,null,null,null,null,null,null,null,null,"",null,null,null,null,null,null,null,null,null,0,0,"","Егоров"]
[null,null,null,null,null,null,null,null,null,null,null,"",null,null,null,null,null,null,null,null,null,0,0,"","Шестаков"]
[null,null,null,null,null,null,null,null,null,null,null,"",null,null,null,null,null,null,null,null,null,0,0,"","Ломакин"]
[null,null,null,null,null,null,null,null,null,null,null,"",null,null,null,null,null,null,null,null,null,0,0,""]
[null,null,null,null,null,null,null,null,null,null,null,"",null,null,null,null,null,null,null,null,null,0,0,""]
[null,null,null,null,null,null,null,null,null,null,null,"",null,null,null,null,null,null,null,null,null,0,0,""]
[null,null,null,null,null,null,null,null,null,null,null,"",null,null,null,null,null,null,null,null,null,0,0,""]
[null,null,null,null,null,null,null,null,null,null,null,"",null,null,null,null,null,null,null,null,null,0,0,""]
[null,null,null,null,null,null,null,null,null,null,null,"",null,null,null,null,null,null,null,null,null,0,0,""]
[null,null,null,null,null,null,null,null,null,null,null,"",null,null,null,null,null,null,null,null,null,0,0,""]
[null,null,null,null,null,null,null,null,null,null,null,{"$f":"IF(K81=\"\",\"\",K81-K80)","v":""},null,null,null,null,null,null,null,null,null,0,{"$f":"IF(L80=\"\",0,L80)*КИЛОМЕТР+(M80+O80+Q80+S80)*НАСОС+(N80+P80+R80+T80)*БЕЗ_НАСОСА","v":0},""]
[null,null,null,null,null,null,null,null,null,null,null,"",null,null,null,null,null,null,null,null,null,{"$f":"W81","v":0},0,{"$f":"IF(W81=0,\"\",X80-W81+U81)","v":""}]
[null,null,null,null,null,null,null,null,null,null,null,"",null,null,null,null,null,null,null,null,null,0,0,""]
[null,null,null,null,null,null,null,null,null,null,null,"",null,null,null,null,null,null,null,null,null,0,0,""]
[null,null,null,null,null,null,null,null,null,null,null,"",null,null,null,null,null,null,null,null,null,0,0,""]
[null,null,null,null,null,null,null,null,null,null,null,"",null,null,null,null,null,null,null,null,null,0,0,""]
[null,null,null,null,null,null,null,null,null,null,null,"",null,null,null,null,null,null,null,null,null,0,0,""]
[null,null,null,null,null,null,null,null,null,null,null,"",null,null,null,null,null,null,null,null,null,0,0,""]
[null,null,null,null,null,null,null,null,null,null,null,"",null,null,null,null,null,null,null,null,null,0,0,""]
[null,null,null,null,null,null,null,null,null,null,null,"",null,null,null,null,null,null,null,null,null,0,0,""]
[null,null,null,null,null,null,null,null,null,null,null,"",null,null,null,null,null,null,null,null,null,0,0,""]
[null,null,null,null,null,null,null,null,null,null,null,"",null,null,null,null,null,null,null,null,null,0,0,""]
[null,null,null,null,null,null,null,null,null,null,null,"",null,null,null,null,null,null,null,null,null,0,0,""]
[null,null,null,null,null,null,null,null,null,null,null,"",null,null,null,null,null,null,null,null,null,0,0,""]
[null,null,null,null,null,null,null,null,null,null,null,"",null,null,null,null,null,null,null,null,null,0,0,""]
["                    ИТОГО за месяц",null,null,null,null,null,null,null,null,null,null,{"$f":"SUM(L16:L94)","v":0},0,0,0,0,0,5,0,0,0,0.82500000000000007,0.82500000000000007,{"$f":"Остаток_на_начало_месяца+Заправлено-W95","v":157.17500000000001}]
["                    Израсходовано топлива по элементам работы(в литрах)",null,null,null,null,null,null,null,null,null,null,{"$f":"L95*КИЛОМЕТР","v":0},{"$f":"M95*НАСОС","v":0},{"$f":"N95*БЕЗ_НАСОСА","v":0},{"$f":"O95*НАСОС","v":0},{"$f":"P95*БЕЗ_НАСОСА","v":0},{"$f":"Q95*НАСОС","v":0},{"$f":"R95*БЕЗ_НАСОСА","v":0.82500000000000007},{"$f":"S95*НАСОС","v":0},{"$f":"T95*БЕЗ_НАСОСА","v":0}]
[null,"Наработка автомобиля за отчетный месяц в км.(с учетом приведенного)",null,null,null,null,null,null,null,{"$f":"(M95+O95+Q95+S95)/60*50+L95","v":0},null,"км. "]
[null,null,null,null,null,null,null,null,null,null,null,null,null,null,null,null,"Текущая норма",null,null,null,null,"Пробег по спидометру, км",null,null,{"$f":"L95","v":0}]
[null,null,"Руководитель подразделения",null,null,null,null,null,null,null,null,"Старший водитель",null,null,null,null,"1 км",null,null,0.55600000000000005,null,"Наработка с насосом м.ч.",null,null,{"$f":"(M95+O95+Q95+S95)/60","v":0}]
[null,null,"<_____>______________________2015г.",null,null,null,null,null,null,null,null,"<_____>______________________",null,null,null,"2015г.","1 мин с насосом",null,null,0.27500000000000002,null,"Наработка без насоса",null,null,{"$f":"N95+P95+R95+T95","v":5}]
[null,null,null,null,null,null,null,null,null,null,null,null,null,null,null,null,"1 мин без насоса",null,null,0.16500000000000001,null,"Приведенный пробег",null,null,{"$f":"Y99*50","v":0}]
[null,null,null,null,null,null,null,null,null,null,null,null,null,null,null,null,null,null,null,null,null,"Общий пробег",null,null,{"$f":"Y98+Y101","v":0}]

{"sheet":"351","index":5,"n_rows":98,"n_cols":26,"rows_kept":98,"cut":false,"hidden":false,"merged":[[31,1,31,5],[32,1,32,5],[33,1,33,5],[4,11,4,22],[3,13,3,14],[3,15,3,17],[0,0,0,25],[1,6,1,10],[1,21,1,22],[2,0,2,22],[2,23,2,25],[3,11,3,12],[1,11,1,16],[1,17,1,19],[3,0,3,10],[5,0,5,7],[5,8,5,22],[6,0,6,11],[6,12,6,22],[7,0,7,23],[8,4,8,5],[8,6,8,8],[8,9,8,10],[8,11,8,18],[9,11,9,18],[10,0,10,25],[11,0,13,0],[11,1,13,5],[11,6,11,20],[11,21,12,22],[11,23,13,23],[11,24,12,25],[12,6,12,7],[12,8,12,9],[12,10,13,10],[12,11,13,11],[12,12,12,13],[12,14,12,15],[12,16,12,17],[12,18,12,19],[12,20,13,20],[14,1,14,5],[15,1,15,5],[16,1,16,5],[18,1,18,5],[9,4,9,5],[9,6,9,8],[9,9,9,10],[26,1,26,5],[17,1,17,5],[19,1,19,5],[20,1,20,5],[27,1,27,5],[28,1,28,5],[29,1,29,5],[30,1,30,5],[21,1,21,5],[22,1,22,5],[23,1,23,5],[24,1,24,5],[25,1,25,5],[38,1,38,5],[39,1,39,5],[40,1,40,5],[42,1,42,5],[43,1,43,5],[34,1,34,5],[35,1,35,5],[36,1,36,5],[37,1,37,5],[41,1,41,5],[50,1,50,5],[51,1,51,5],[52,1,52,5],[53,1,53,5],[54,1,54,5],[55,1,55,5],[44,1,44,5],[45,1,45,5],[46,1,46,5],[47,1,47,5],[48,1,48,5],[49,1,49,5],[62,1,62,5],[63,1,63,5],[64,1,64,5],[65,1,65,5],[66,1,66,5],[67,1,67,5],[56,1,56,5],[57,1,57,5],[58,1,58,5],[59,1,59,5],[60,1,60,5],[61,1,61,5],[74,1,74,5],[75,1,75,5],[76,1,76,5],[77,1,77,5],[78,1,78,5],[79,1,79,5],[68,1,68,5],[69,1,69,5],[70,1,70,5],[71,1,71,5],[72,1,72,5],[73,1,73,5],[86,1,86,5],[87,1,87,5],[88,1,88,5],[89,1,89,5],[80,1,80,5],[81,1,81,5],[82,1,82,5],[83,1,83,5],[84,1,84,5],[85,1,85,5],[97,21,97,23],[93,21,93,23],[94,21,94,23],[95,21,95,23],[96,21,96,23],[90,0,90,10],[91,0,91,10],[92,9,92,10],[93,16,93,20],[94,19,94,20],[95,19,95,20],[96,19,96,20],[96,11,96,15]]}
["Эксплуатационная карта"]
[null,null,null,"Работы пожарного автомобиля за",null,null,{"$f":"Нормы!G3","v":"Март   2015 г"},null,null,null,null,"Наименование и № подразделения      ",null,null,null,null,null,"КГКУ 9- ОПС",null,null,null,"37 - П Ч"]
["      Тип,марка,модель                                                  Автолестница      АЛ 30       Камаз (4326) ПМ 506 С                                                                                                                                                 Государственный регистрационный знак",null,null,null,null,null,null,null,null,null,null,null,null,null,null,null,null,null,null,null,null,null,null,"Х 351 АР"]
["   Пробег а/м  на 1-е число отчетного месяца от начала эксплуатаций:шасси",null,null,null,null,null,null,null,null,null,null,{"$f":"Нормы!B101","v":4440},null,"км.двигатель",null,{"$f":"Нормы!C101","v":11567.499999999998},null,null,"км.(приведенный)"]
["      Остаток топлива в автомобиле на 1-е число отчетного месяца",null,null,null,null,null,null,null,null,null,null,{"$f":"'отчёт '!F18","v":94},null,null,null,null,null,null,null,null,null,null,null,"литр."]
["      Заправлено топлива в автомобиль за отчетный месяц",null,null,null,null,null,null,null,{"$f":"U91","v":0},null,null,null,null,null,null,null,null,null,null,null,null,null,null,"литр."]
["      Остаток топлива в автомобиле на 1-е число следующего за отчетным месяцем",null,null,null,null,null,null,null,null,null,null,null,{"$f":"X91","v":91.965000000000003},null,null,null,null,null,null,null,null,null,null,"литр."]
["Результат расхода топлива за отчетный месяц"]
[null,null,null,null,"фактически",null,{"$f":"V91","v":2.0350000000000001},null,null,"литр.",null," Экономия _________________литр."]
[null,null,null,null,"по нормам",null,{"$f":"W91","v":2.0350000000000001},null,null,"литр.",null,"Перерасход _________________литр."]
[]
["дата","Наименование и место работы автомобиля(То,работа на пожаре,учениях и др)",null,null,null,null,"работа пожарного автомобиля",null,null,null,null,null,null,null,null,null,null,null,null,null,null,"расход топлива в литрах",null,"Остаток топлива ","подписи"]
[null,null,null,null,null,null,"время выезда",null,"время возвращения ",null,"показания спидометра перед выездом ","пройдено км к месту работы и обратно","на пожарах       (в мин)",null,"на учениях (в мин)",null," при смене караула (в мин)",null,"на прочих работах",null,"заправлено топлива в автомобиль"]
[null,null,null,null,null,null,"часы","минуты","часы","минуты",null,null,"с насосом","без насоса","с насосом","без насоса","с насосом","без насоса","с насосом","без насоса",null,"фактически","по нормам",null,"водителя","начальника караула"]
[1,2,null,null,null,null,3,4,5,6,7,8,9,10,11,12,13,14,15,16,17,18,19,20,21,22]
["1,03","Смена караула",null,null,null,null,null,null,null,null,{"$f":"L4","v":4440},{"$f":"IF(K17=\"\",\"\",K17-K16)","v":""},null,null,null,null,7,3,null,null,null,{"$f":"W16","v":2.0350000000000001},{"$f":"IF(L16=\"\",0,L16)*КИЛОМЕТР+(M16+O16+Q16+S16)*НАСОС+(N16+P16+R16+T16)*БЕЗ_НАСОСА","v":2.0350000000000001},{"$f":"Остаток_на_начало_месяца-W16+U16","v":91.965000000000003}]
[null,null,null,null,null,null,null,null,null,null,null,{"$f":"IF(K18=\"\",\"\",K18-K17)","v":""},null,null,null,null,null,null,null,null,null,{"$f":"W17","v":0},0,{"$f":"IF(W17=0,\"\",X16-W17+U17)","v":""}]
[null,null,null,null,null,null,null,null,null,null,null,"",null,null,null,null,null,null,null,null,null,{"$f":"W18","v":0},0,""]
[null,null,null,null,null,null,null,null,null,null,null,"",null,null,null,null,null,null,null,null,null,0,0,""]
[null,null,null,null,null,null,null,null,null,null,null,"",null,null,null,null,null,null,null,null,null,0,0,""]
[null,null,null,null,null,null,null,null,null,null,null,"",null,null,null,null,null,null,null,null,null,0,0,""]
[null,null,null,null,null,null,null,null,null,null,null,"",null,null,null,null,null,null,null,null,null,0,0,""]
[null,null,null,null,null,null,null,null,null,null,null,"",null,null,null,null,null,null,null,null,null,0,0,{"$f":"IF(W23=0,\"\",X22-W23+U23)","v":""}]
[null,null,null,null,null,null,null,null,null,null,null,"",null,null,null,null,null,null,null,null,null,0,0,{"$f":"IF(W24=0,\"\",X23-W24+U24)","v":""}]
[null,null,null,null,null,null,null,null,null,null,null,"",null,null,null,null,null,null,null,null,null,0,0,""]
[null,null,null,null,null,null,null,null,null,null,null,"",null,null,null,null,null,null,null,null,null,0,0,""]
[null,null,null,null,null,null,null,null,null,null,null,"",null,null,null,null,null,null,null,null,null,0,0,{"$f":"IF(W27=0,\"\",X26-W27+U27)","v":""}]
[null,null,null,null,null,null,null,null,null,null,null,"",null,null,null,null,null,null,null,null,null,0,0,{"$f":"IF(W28=0,\"\",X27-W28+U28)","v":""}]
[null,null,null,null,null,null,null,null,null,null,null,"",null,null,null,null,null,null,null,null,null,0,0,""]
[null,null,null,null,null,null,null,null,null,null,null,"",null,null,null,null,null,null,null,null,null,0,0,""]
[null,null,null,null,null,null,null,null,null,null,null,"",null,null,null,null,null,null,null,null,null,0,0,""]
[null,null,null,null,null,null,null,null,null,null,null,"",null,null,null,null,null,null,null,null,null,0,0,""]
[null,null,null,null,null,null,null,null,null,null,null,"",null,null,null,null,null,null,null,null,null,0,0,""]
[null,null,null,null,null,null,null,null,null,null,null,"",null,null,null,null,null,null,null,null,null,0,0,""]
[null,null,null,null,null,null,null,null,null,null,null,"",null,null,null,null,null,null,null,null,null,0,0,""]
[null,null,null,null,null,null,null,null,null,null,null,"",null,null,null,null,null,null,null,null,null,0,0,""]
[null,null,null,null,null,null,null,null,null,null,null,"",null,null,null,null,null,null,null,null,null,0,0,""]
[null,null,null,null,null,null,null,null,null,null,null,{"$f":"IF(K39=\"\",\"\",K39-K38)","v":""},null,null,null,null,null,null,null,null,null,0,0,""]
[null,null,null,null,null,null,null,null,null,null,null,"",null,null,null,null,null,null,null,null,null,0,0,""]
[null,null,null,null,null,null,null,null,null,null,null,"",null,null,null,null,null,null,null,null,null,0,0,""]
[null,null,null,null,null,null,null,null,null,null,null,"",null,null,null,null,null,null,null,null,null,0,0,""]
[null,null,null,null,null,null,null,null,null,null,null,"",null,null,null,null,null,null,null,null,null,0,0,""]
[null,null,null,null,null,null,null,null,null,null,null,"",null,null,null,null,null,null,null,null,null,0,0,""]
[null,null,null,null,null,null,null,null,null,null,null,"",null,null,null,null,null,null,null,null,null,0,0,""]
[null,null,null,null,null,null,null,null,null,null,null,"",null,null,null,null,null,null,null,null,null,0,0,""]
[null,null,null,null,null,null,null,null,null,null,null,"",null,null,null,null,null,null,null,null,null,0,0,""]
[null,null,null,null,null,null,null,null,null,null,null,"",null,null,null,null,null,null,null,null,null,0,{"$f":"IF(L47=\"\",0,L47)*КИЛОМЕТР+(M47+O47+Q47+S47)*НАСОС+(N47+P47+R47+T47)*БЕЗ_НАСОСА","v":0},""]
[null,null,null,null,null,null,null,null,null,null,null,"",null,null,null,null,null,null,null,null,null,0,{"$f":"IF(L48=\"\",0,L48)*КИЛОМЕТР+(M48+O48+Q48+S48)*НАСОС+(N48+P48+R48+T48)*БЕЗ_НАСОСА","v":0},""]
[null,null,null,null,null,null,null,null,null,null,null,"",null,null,null,null,null,null,null,null,null,0,0,"","Ломакин"]
[null,null,null,null,null,null,null,null,null,null,null,"",null,null,null,null,null,null,null,null,null,0,0,"","Ломакин"]
[null,null,null,null,null,null,null,null,null,null,null,"",null,null,null,null,null,null,null,null,null,0,0,"","Прокофьев"]
[null,null,null,null,null,null,null,null,null,null,null,"",null,null,null,null,null,null,null,null,null,0,0,"","Кравцов"]
[null,null,null,null,null,null,null,null,null,null,null,"",null,null,null,null,null,null,null,null,null,0,0,"","Сысуев"]
[null,null,null,null,null,null,null,null,null,null,null,"",null,null,null,null,null,null,null,null,null,0,0,"","Гаврилов"]
[null,null,null,null,null,null,null,null,null,null,null,"",null,null,null,null,null,null,null,null,null,0,0,""]
[null,null,null,null,null,null,null,null,null,null,null,"",null,null,null,null,null,null,null,null,null,0,0,""]
[null,null,null,null,null,null,null,null,null,null,null,"",null,null,null,null,null,null,null,null,null,0,0,""]
[null,null,null,null,null,null,null,null,null,null,null,"",null,null,null,null,null,null,null,null,null,0,0,""]
[null,null,null,null,null,null,null,null,null,null,null,"",null,null,null,null,null,null,null,null,null,0,0,""]
[null,null,null,null,null,null,null,null,null,null,null,"",null,null,null,null,null,null,null,null,null,0,0,""]
[null,null,null,null,null,null,null,null,null,null,null,"",null,null,null,null,null,null,null,null,null,0,0,""]
[null,null,null,null,null,null,null,null,null,null,null,"",null,null,null,null,null,null,null,null,null,0,0,""]
[null,null,null,null,null,null,null,null,null,null,null,"",null,null,null,null,null,null,null,null,null,0,0,""]
[null,null,null,null,null,null,null,null,null,null,null,"",null,null,null,null,null,null,null,null,null,0,0,""]
[null,null,null,null,null,null,null,null,null,null,null,"",null,null,null,null,null,null,null,null,null,0,0,""]
[null,null,null,null,null,null,null,null,null,null,null,"",null,null,null,null,null,null,null,null,null,0,0,""]
[null,null,null,null,null,null,null,null,null,null,null,"",null,null,null,null,null,null,null,null,null,0,{"$f":"IF(L67=\"\",0,L67)*КИЛОМЕТР+(M67+O67+Q67+S67)*НАСОС+(N67+P67+R67+T67)*БЕЗ_НАСОСА","v":0},""]
[null,null,null,null,null,null,null,null,null,null,null,"",null,null,null,null,null,null,null,null,null,0,{"$f":"IF(L68=\"\",0,L68)*КИЛОМЕТР+(M68+O68+Q68+S68)*НАСОС+(N68+P68+R68+T68)*БЕЗ_НАСОСА","v":0},""]
[null,null,null,null,null,null,null,null,null,null,null,"",null,null,null,null,null,null,null,null,null,0,0,""]
[null,null,null,null,null,null,null,null,null,null,null,"",null,null,null,null,null,null,null,null,null,0,0,""]
[null,null,null,null,null,null,null,null,null,null,null,"",null,null,null,null,null,null,null,null,null,0,0,""]
[null,null,null,null,null,null,null,null,null,null,null,"",null,null,null,null,null,null,null,null,null,0,0,""]
[null,null,null,null,null,null,null,null,null,null,null,"",null,null,null,null,null,null,null,null,null,0,0,""]
[null,null,null,null,null,null,null,null,null,null,null,"",null,null,null,null,null,null,null,null,null,0,0,""]
[null,null,null,null,null,null,null,null,null,null,null,"",null,null,null,null,null,null,null,null,null,0,0,""]
[null,null,null,null,null,null,null,null,null,null,null,"",null,null,null,null,null,null,null,null,null,0,0,""]
[null,null,null,null,null,null,null,null,null,null,null,"",null,null,null,null,null,null,null,null,null,0,0,""]
[null,null,null,null,null,null,null,null,null,null,null,"",null,null,null,null,null,null,null,null,null,0,0,""]
[null,null,null,null,null,null,null,null,null,null,null,"",null,null,null,null,null,null,null,null,null,0,0,""]
[null,null,null,null,null,null,null,null,null,null,null,{"$f":"IF(K81=\"\",\"\",K81-K80)","v":""},null,null,null,null,null,null,null,null,null,0,{"$f":"IF(L80=\"\",0,L80)*КИЛОМЕТР+(M80+O80+Q80+S80)*НАСОС+(N80+P80+R80+T80)*БЕЗ_НАСОСА","v":0},""]
[null,null,null,null,null,null,null,null,null,null,null,"",null,null,null,null,null,null,null,null,null,{"$f":"W81","v":0},0,""]
[null,null,null,null,null,null,null,null,null,null,null,"",null,null,null,null,null,null,null,null,null,0,0,""]
[null,null,null,null,null,null,null,null,null,null,null,"",null,null,null,null,null,null,null,null,null,0,0,""]
[null,null,null,null,null,null,null,null,null,null,null,"",null,null,null,null,null,null,null,null,null,0,0,""]
[null,null,null,null,null,null,null,null,null,null,null,"",null,null,null,null,null,null,null,null,null,0,0,""]
[null,null,null,null,null,null,null,null,null,null,null,"",null,null,null,null,null,null,null,null,null,0,0,""]
[null,null,null,null,null,null,null,null,null,null,null,"",null,null,null,null,null,null,null,null,null,0,0,""]
[null,null,null,null,null,null,null,null,null,null,null,"",null,null,null,null,null,null,null,null,null,0,0,""]
[null,null,null,null,null,null,null,null,null,null,null,"",null,null,null,null,null,null,null,null,null,0,0,""]
[null,null,null,null,null,null,null,null,null,null,null,"",null,null,null,null,null,null,null,null,null,0,0,{"$f":"IF(W90=0,\"\",X89-W90+U90)","v":""}]
["                    ИТОГО за месяц",null,null,null,null,null,null,null,null,null,null,{"$f":"SUM(L16:L90)","v":0},0,0,0,0,7,3,0,0,0,2.0350000000000001,2.0350000000000001,{"$f":"Остаток_на_начало_месяца+Заправлено-W91","v":91.965000000000003}]
["                    Израсходовано топлива по элементам работы(в литрах)",null,null,null,null,null,null,null,null,null,null,{"$f":"L91*КИЛОМЕТР","v":0},{"$f":"M91*НАСОС","v":0},{"$f":"N91*БЕЗ_НАСОСА","v":0},{"$f":"O91*НАСОС","v":0},{"$f":"P91*БЕЗ_НАСОСА","v":0},{"$f":"Q91*НАСОС","v":1.54},{"$f":"R91*БЕЗ_НАСОСА","v":0.495},{"$f":"S91*НАСОС","v":0},{"$f":"T91*БЕЗ_НАСОСА","v":0}]
[null,"Наработка автомобиля за отчетный месяц в км.(с учетом приведенного)",null,null,null,null,null,null,null,{"$f":"(M91+O91+Q91+S91)/60*50+L91","v":5.833333333333333},null,"км. "]
[null,null,null,null,null,null,null,null,null,null,null,null,null,null,null,null,"Текущая норма",null,null,null,null,"Пробег по спидометру, км",null,null,{"$f":"L91","v":0}]
[null,null,"Руководитель подразделения",null,null,null,null,null,null,null,null,"Старший водитель",null,null,null,null,"1 км",null,null,0.48,null,"Наработка с насосом м.ч.",null,null,{"$f":"(M91+O91+Q91+S91)/60","v":0.11666666666666667}]
[null,null,"<_____>______________________2015г.",null,null,null,null,null,null,null,null,"<_____>______________________",null,null,null,"2015г.","1 мин с насосом",null,null,0.22,null,"Наработка без насоса",null,null,{"$f":"N91+P91+R91+T91","v":3}]
[null,null,null,null,null,null,null,null,null,null,null,null,null,null,null,null,"1 мин без насоса",null,null,0.16500000000000001,null,"Приведенный пробег",null,null,{"$f":"Y95*50","v":5.833333333333333}]
[null,null,null,null,null,null,null,null,null,null,null,null,null,null,null,null,null,null,null,null,null,"Общий пробег",null,null,{"$f":"Y94+Y97","v":5.833333333333333}]

{"sheet":"ПНС  -100","index":6,"n_rows":98,"n_cols":26,"rows_kept":98,"cut":false,"hidden":false,"merged":[[0,0,0,25],[1,6,1,10],[1,17,1,19],[1,20,1,21],[2,0,2,22],[2,23,2,25],[6,0,6,11],[6,12,6,22],[7,0,7,23],[8,4,8,5],[8,6,8,8],[8,9,8,10],[8,11,8,18],[3,11,3,12],[3,13,3,14],[3,15,3,17],[4,0,4,7],[4,8,4,22],[5,0,5,7],[5,8,5,22],[9,4,9,5],[9,6,9,8],[9,9,9,10],[9,11,9,18],[10,0,10,25],[11,0,13,0],[11,1,13,5],[11,6,11,20],[11,21,12,22],[11,23,13,23],[14,1,14,5],[15,1,15,5],[16,1,16,5],[17,1,17,5],[18,1,18,5],[19,1,19,5],[11,24,12,25],[12,6,12,7],[12,8,12,9],[12,10,13,10],[12,11,13,11],[12,12,12,13],[12,14,12,15],[12,16,12,17],[12,18,12,19],[12,20,13,20],[26,1,26,5],[27,1,27,5],[28,1,28,5],[29,1,29,5],[30,1,30,5],[31,1,31,5],[20,1,20,5],[21,1,21,5],[22,1,22,5],[23,1,23,5],[24,1,24,5],[25,1,25,5],[38,1,38,5],[39,1,39,5],[40,1,40,5],[41,1,41,5],[42,1,42,5],[43,1,43,5],[32,1,32,5],[33,1,33,5],[34,1,34,5],[35,1,35,5],[36,1,36,5],[37,1,37,5],[50,1,50,5],[51,1,51,5],[52,1,52,5],[53,1,53,5],[54,1,54,5],[55,1,55,5],[44,1,44,5],[45,1,45,5],[46,1,46,5],[47,1,47,5],[48,1,48,5],[49,1,49,5],[62,1,62,5],[63,1,63,5],[64,1,64,5],[65,1,65,5],[66,1,66,5],[67,1,67,5],[56,1,56,5],[57,1,57,5],[58,1,58,5],[59,1,59,5],[60,1,60,5],[61,1,61,5],[74,1,74,5],[75,1,75,5],[76,1,76,5],[77,1,77,5],[78,1,78,5],[79,1,79,5],[68,1,68,5],[69,1,69,5],[70,1,70,5],[71,1,71,5],[72,1,72,5],[73,1,73,5],[86,1,86,5],[87,1,87,5],[88,1,88,5],[89,1,89,5],[90,0,90,10],[91,0,91,10],[80,1,80,5],[81,1,81,5],[82,1,82,5],[83,1,83,5],[84,1,84,5],[85,1,85,5],[95,19,95,20],[95,21,95,23],[96,11,96,15],[96,19,96,20],[96,21,96,23],[97,21,97,23],[92,0,92,8],[92,9,92,10],[93,16,93,19],[93,21,93,23],[94,19,94,20],[94,21,94,23]]}
["Эксплуатационная карта"]
[null,null,null,"Работы пожарного автомобиля за",null,null,{"$f":"Нормы!G3","v":"Март   2015 г"},null,null,null,null,"Наименование и № подразделения ",null,null,null,null,null,"КГКУ  9- ОПС",null,null,"37 - П Ч"]
["      Тип,марка,модель                                                                               Насосная станция ПНС 100 (5350)                                                                                                                                                  Государственный регистрационный знак",null,null,null,null,null,null,null,null,null,null,null,null,null,null,null,null,null,null,null,null,null,null,"О 992 АХ"]
["      Пробег автомобиля на 1-е число отчетного месяца от начала эксплуатаций:шасси",null,null,null,null,null,null,null,null,null,null,{"$f":"Нормы!B105","v":2405},null,"км.двигатель",null,null,null,null,"км.(приведенный)"]
["      Остаток топлива в автомобиле на 1-е число отчетного месяца",null,null,null,null,null,null,null,{"$f":"'отчёт '!F25","v":156},null,null,null,null,null,null,null,null,null,null,null,null,null,null,"литр."]
["      Заправлено топлива в автомобиль за отчетный месяц",null,null,null,null,null,null,null,{"$f":"U91","v":0},null,null,null,null,null,null,null,null,null,null,null,null,null,null,"литр."]
["      Остаток топлива в автомобиле на 1-е число следующего за отчетным месяцем",null,null,null,null,null,null,null,null,null,null,null,{"$f":"X91","v":155.17500000000001},null,null,null,null,null,null,null,null,null,null,"литр."]
["Результат расхода топлива за отчетный месяц"]
[null,null,null,null,"фактически",null,{"$f":"V91","v":0.82500000000000007},null,null,"литр.",null," Экономия _________________литр."]
[null,null,null,null,"по нормам",null,{"$f":"W91","v":0.82500000000000007},null,null,"литр.",null,"Перерасход _________________литр."]
[]
["дата","Наименование и место работы автомобиля(То,работа на пожаре,учениях и др)",null,null,null,null,"работа пожарного автомобиля",null,null,null,null,null,null,null,null,null,null,null,null,null,null,"расход топлива в литрах",null,"Остаток топлива ","подписи"]
[null,null,null,null,null,null,"время выезда",null,"время возвращения ",null,"показания спидометра перед выездом ","пройдено км к месту работы и обратно","на пожарах(в мин)",null,"на учениях (в мин)",null," при смене караула (в мин)",null,"на прочих работах",null,"заправлено топлива в автомобиль"]
[null,null,null,null,null,null,"часы","минуты","часы","минуты",null,null,"с насосом","без насоса","с насосом","без насоса","с насосом","без насоса","с насосом","без насоса",null,"фактически","по нормам",null,"водителя","начальника караула"]
[1,2,null,null,null,null,3,4,5,6,7,8,9,10,11,12,13,14,15,16,17,18,19,20,21,22]
["1,03","Смена караула",null,null,null,null,null,null,null,null,2405,{"$f":"IF(K17=\"\",\"\",K17-K16)","v":""},null,null,null,null,null,5,null,null,null,{"$f":"W16","v":0.82500000000000007},{"$f":"IF(L16=\"\",0,L16)*КИЛОМЕТР+(M16+O16+Q16+S16)*НАСОС+(N16+P16+R16+T16)*БЕЗ_НАСОСА","v":0.82500000000000007},{"$f":"Остаток_на_начало_месяца-W16+U16","v":155.17500000000001}]
[null,null,null,null,null,null,null,null,null,null,null,"",null,null,null,null,null,null,null,null,null,{"$f":"W17","v":0},0,{"$f":"IF(W17=0,\"\",X16-W17+U17)","v":""}]
[null,null,null,null,null,null,null,null,null,null,null,"",null,null,null,null,null,null,null,null,null,{"$f":"W18","v":0},0,""]
[null,null,null,null,null,null,null,null,null,null,null,"",null,null,null,null,null,null,null,null,null,0,0,""]
[null,null,null,null,null,null,null,null,null,null,null,"",null,null,null,null,null,null,null,null,null,0,0,""]
[null,null,null,null,null,null,null,null,null,null,null,"",null,null,null,null,null,null,null,null,null,0,0,""]
[null,null,null,null,null,null,null,null,null,null,null,"",null,null,null,null,null,null,null,null,null,0,0,""]
[null,null,null,null,null,null,null,null,null,null,null,"",null,null,null,null,null,null,null,null,null,0,0,""]
[null,null,null,null,null,null,null,null,null,null,null,"",null,null,null,null,null,null,null,null,null,0,0,""]
[null,null,null,null,null,null,null,null,null,null,null,"",null,null,null,null,null,null,null,null,null,{"$f":"W25","v":0},0,""]
[null,null,null,null,null,null,null,null,null,null,null,"",null,null,null,null,null,null,null,null,null,0,0,""]
[null,null,null,null,null,null,null,null,null,null,null,"",null,null,null,null,null,null,null,null,null,0,{"$f":"IF(L27=\"\",0,L27)*КИЛОМЕТР+(M27+O27+Q27+S27)*НАСОС+(N27+P27+R27+T27)*БЕЗ_НАСОСА","v":0},""]
[null,null,null,null,null,null,null,null,null,null,null,"",null,null,null,null,null,null,null,null,null,0,0,""]
[null,null,null,null,null,null,null,null,null,null,null,"",null,null,null,null,null,null,null,null,null,0,0,""]
[null,null,null,null,null,null,null,null,null,null,null,"",null,null,null,null,null,null,null,null,null,0,0,""]
[null,null,null,null,null,null,null,null,null,null,null,"",null,null,null,null,null,null,null,null,null,0,0,""]
[null,null,null,null,null,null,null,null,null,null,null,"",null,null,null,null,null,null,null,null,null,0,0,""]
[null,null,null,null,null,null,null,null,null,null,null,"",null,null,null,null,null,null,null,null,null,0,0,""]
[null,null,null,null,null,null,null,null,null,null,null,"",null,null,null,null,null,null,null,null,null,0,0,""]
[null,null,null,null,null,null,null,null,null,null,null,"",null,null,null,null,null,null,null,null,null,0,0,""]
[null,null,null,null,null,null,null,null,null,null,null,{"$f":"IF(K37=\"\",\"\",K37-K36)","v":""},null,null,null,null,null,null,null,null,null,0,0,""]
[null,null,null,null,null,null,null,null,null,null,null,"",null,null,null,null,null,null,null,null,null,0,0,""]
[null,null,null,null,null,null,null,null,null,null,null,"",null,null,null,null,null,null,null,null,null,0,0,""]
[null,null,null,null,null,null,null,null,null,null,null,"",null,null,null,null,null,null,null,null,null,0,0,""]
[null,null,null,null,null,null,null,null,null,null,null,"",null,null,null,null,null,null,null,null,null,0,0,""]
[null,null,null,null,null,null,null,null,null,null,null,"",null,null,null,null,null,null,null,null,null,0,0,""]
[null,null,null,null,null,null,null,null,null,null,null,"",null,null,null,null,null,null,null,null,null,0,0,""]
[null,null,null,null,null,null,null,null,null,null,null,"",null,null,null,null,null,null,null,null,null,0,0,""]
[null,null,null,null,null,null,null,null,null,null,null,"",null,null,null,null,null,null,null,null,null,0,0,""]
[null,null,null,null,null,null,null,null,null,null,null,"",null,null,null,null,null,null,null,null,null,0,0,""]
[null,null,null,null,null,null,null,null,null,null,null,"",null,null,null,null,null,null,null,null,null,0,0,""]
[null,null,null,null,null,null,null,null,null,null,null,"",null,null,null,null,null,null,null,null,null,0,0,""]
[null,null,null,null,null,null,null,null,null,null,null,"",null,null,null,null,null,null,null,null,null,0,{"$f":"IF(L48=\"\",0,L48)*КИЛОМЕТР+(M48+O48+Q48+S48)*НАСОС+(N48+P48+R48+T48)*БЕЗ_НАСОСА","v":0},""]
[null,null,null,null,null,null,null,null,null,null,null,"",null,null,null,null,null,null,null,null,null,0,0,""]
[null,null,null,null,null,null,null,null,null,null,null,"",null,null,null,null,null,null,null,null,null,0,0,""]
[null,null,null,null,null,null,null,null,null,null,null,"",null,null,null,null,null,null,null,null,null,0,0,""]
[null,null,null,null,null,null,null,null,null,null,null,"",null,null,null,null,null,null,null,null,null,0,0,""]
[null,null,null,null,null,null,null,null,null,null,null,"",null,null,null,null,null,null,null,null,null,0,0,""]
[null,null,null,null,null,null,null,null,null,null,null,"",null,null,null,null,null,null,null,null,null,0,0,""]
[null,null,null,null,null,null,null,null,null,null,null,"",null,null,null,null,null,null,null,null,null,0,0,""]
[null,null,null,null,null,null,null,null,null,null,null,"",null,null,null,null,null,null,null,null,null,0,0,""]
[null,null,null,null,null,null,null,null,null,null,null,"",null,null,null,null,null,null,null,null,null,0,0,""]
[null,null,null,null,null,null,null,null,null,null,null,"",null,null,null,null,null,null,null,null,null,0,0,""]
[null,null,null,null,null,null,null,null,null,null,null,"",null,null,null,null,null,null,null,null,null,0,0,""]
[null,null,null,null,null,null,null,null,null,null,null,"",null,null,null,null,null,null,null,null,null,0,0,""]
[null,null,null,null,null,null,null,null,null,null,null,"",null,null,null,null,null,null,null,null,null,0,0,""]
[null,null,null,null,null,null,null,null,null,null,null,"",null,null,null,null,null,null,null,null,null,0,0,""]
[null,null,null,null,null,null,null,null,null,null,null,"",null,null,null,null,null,null,null,null,null,0,0,""]
[null,null,null,null,null,null,null,null,null,null,null,"",null,null,null,null,null,null,null,null,null,0,0,""]
[null,null,null,null,null,null,null,null,null,null,null,"",null,null,null,null,null,null,null,null,null,0,0,""]
[null,null,null,null,null,null,null,null,null,null,null,"",null,null,null,null,null,null,null,null,null,0,0,""]
[null,null,null,null,null,null,null,null,null,null,null,"",null,null,null,null,null,null,null,null,null,0,0,""]
[null,null,null,null,null,null,null,null,null,null,null,"",null,null,null,null,null,null,null,null,null,0,0,""]
[null,null,null,null,null,null,null,null,null,null,null,"",null,null,null,null,null,null,null,null,null,0,0,""]
[null,null,null,null,null,null,null,null,null,null,null,"",null,null,null,null,null,null,null,null,null,0,0,""]
[null,null,null,null,null,null,null,null,null,null,null,"",null,null,null,null,null,null,null,null,null,0,0,""]
[null,null,null,null,null,null,null,null,null,null,null,"",null,null,null,null,null,null,null,null,null,0,0,""]
[null,null,null,null,null,null,null,null,null,null,null,"",null,null,null,null,null,null,null,null,null,0,0,""]
[null,null,null,null,null,null,null,null,null,null,null,"",null,null,null,null,null,null,null,null,null,0,0,""]
[null,null,null,null,null,null,null,null,null,null,null,"",null,null,null,null,null,null,null,null,null,0,0,""]
[null,null,null,null,null,null,null,null,null,null,null,"",null,null,null,null,null,null,null,null,null,0,0,""]
[null,null,null,null,null,null,null,null,null,null,null,"",null,null,null,null,null,null,null,null,null,0,0,""]
[null,null,null,null,null,null,null,null,null,null,null,"",null,null,null,null,null,null,null,null,null,0,0,""]
[null,null,null,null,null,null,null,null,null,null,null,"",null,null,null,null,null,null,null,null,null,0,0,""]
[null,null,null,null,null,null,null,null,null,null,null,{"$f":"IF(K81=\"\",\"\",K81-K80)","v":""},null,null,null,null,null,null,null,null,null,0,{"$f":"IF(L80=\"\",0,L80)*КИЛОМЕТР+(M80+O80+Q80+S80)*НАСОС+(N80+P80+R80+T80)*БЕЗ_НАСОСА","v":0},""]
[null,null,null,null,null,null,null,null,null,null,null,"",null,null,null,null,null,null,null,null,null,{"$f":"W81","v":0},0,{"$f":"IF(W81=0,\"\",X80-W81+U81)","v":""}]
[null,null,null,null,null,null,null,null,null,null,null,"",null,null,null,null,null,null,null,null,null,0,0,""]
[null,null,null,null,null,null,null,null,null,null,null,"",null,null,null,null,null,null,null,null,null,0,0,""]
[null,null,null,null,null,null,null,null,null,null,null,"",null,null,null,null,null,null,null,null,null,0,0,""]
[null,null,null,null,null,null,null,null,null,null,null,"",null,null,null,null,null,null,null,null,null,0,0,""]
[null,null,null,null,null,null,null,null,null,null,null,"",null,null,null,null,null,null,null,null,null,0,0,""]
[null,null,null,null,null,null,null,null,null,null,null,"",null,null,null,null,null,null,null,null,null,0,0,""]
[null,null,null,null,null,null,null,null,null,null,null,"",null,null,null,null,null,null,null,null,null,0,0,""]
[null,null,null,null,null,null,null,null,null,null,null,"",null,null,null,null,null,null,null,null,null,0,0,{"$f":"IF(W89=0,\"\",X88-W89+U89)","v":""}]
[null,null,null,null,null,null,null,null,null,null,null,"",null,null,null,null,null,null,null,null,null,0,0,""]
["                    ИТОГО за месяц",null,null,null,null,null,null,null,null,null,null,{"$f":"SUM(L16:L90)","v":0},{"$f":"SUM(M16:M90)","v":0},0,0,0,0,5,0,0,0,0.82500000000000007,0.82500000000000007,{"$f":"Остаток_на_начало_месяца+Заправлено-W91","v":155.17500000000001}]
["                    Израсходовано топлива по элементам работы(в литрах)",null,null,null,null,null,null,null,null,null,null,{"$f":"L91*КИЛОМЕТР","v":0},{"$f":"M91*НАСОС","v":0},{"$f":"N91*БЕЗ_НАСОСА","v":0},{"$f":"O91*НАСОС","v":0},{"$f":"P91*БЕЗ_НАСОСА","v":0},{"$f":"Q91*НАСОС","v":0},{"$f":"R91*БЕЗ_НАСОСА","v":0.82500000000000007},{"$f":"S91*НАСОС","v":0},{"$f":"T91*БЕЗ_НАСОСА","v":0}]
["Наработка а/м за отчетный месяц в км.(с учетом приведенного)",null,null,null,null,null,null,null,null,{"$f":"(M91+O91+Q91+S91)/60*50+L91","v":0},null,"км. "]
[null,null,null,null,null,null,null,null,null,null,null,null,null,null,null,null,"Текущая норма",null,null,null,null,"Пробег по спидометру, км",null,null,{"$f":"L91","v":0}]
[null,null,"Руководитель подразделения",null,null,null,null,null,null,null,null,"Старший водитель",null,null,null,null,"1 км",null,null,0.52600000000000002,null,"Наработка с насосом м.ч.",null,null,{"$f":"(M91+O91+Q91+S91)/60","v":0}]
[null,null,"<_____>______________________2015г.",null,null,null,null,null,null,null,null,"<_____>______________________",null,null,null,"2015г.","1 мин с насосом",null,null,null,null,"Наработка без насоса",null,null,{"$f":"N91+P91+R91+T91","v":5}]
[null,null,null,null,null,null,null,null,null,null,null,null,null,null,null,null,"1 мин без насоса",null,null,0.16500000000000001,null,"Приведенный пробег",null,null,{"$f":"Y95*50","v":0}]
[null,null,null,null,null,null,null,null,null,null,null,null,null,null,null,null,null,null,null,null,null,"Общий пробег",null,null,{"$f":"Y94+Y97","v":0}]

{"sheet":"ПНС-100 дизель","index":7,"n_rows":98,"n_cols":26,"rows_kept":98,"cut":false,"hidden":false,"merged":[[0,0,0,25],[1,6,1,10],[1,17,1,19],[1,20,1,21],[2,0,2,22],[2,23,2,25],[6,0,6,11],[6,12,6,22],[7,0,7,23],[8,4,8,5],[8,6,8,8],[8,9,8,10],[8,11,8,18],[3,0,3,9],[3,10,3,12],[3,13,3,14],[3,15,3,17],[4,10,4,22],[5,0,5,7],[5,8,5,22],[9,4,9,5],[9,6,9,8],[9,9,9,10],[9,11,9,18],[10,0,10,25],[11,0,13,0],[11,1,13,5],[11,6,11,20],[11,21,12,22],[11,23,13,23],[14,1,14,5],[15,1,15,5],[16,1,16,5],[17,1,17,5],[18,1,18,5],[19,1,19,5],[11,24,12,25],[12,6,12,7],[12,8,12,9],[12,10,13,10],[12,11,13,11],[12,12,12,13],[12,14,12,15],[12,16,12,17],[12,18,12,19],[12,20,13,20],[26,1,26,5],[27,1,27,5],[28,1,28,5],[29,1,29,5],[30,1,30,5],[31,1,31,5],[20,1,20,5],[21,1,21,5],[22,1,22,5],[23,1,23,5],[24,1,24,5],[25,1,25,5],[38,1,38,5],[32,1,32,5],[33,1,33,5],[34,1,34,5],[36,1,36,5],[37,1,37,5],[35,1,35,5],[50,1,50,5],[51,1,51,5],[43,1,43,5],[42,1,42,5],[41,1,41,5],[40,1,40,5],[39,1,39,5],[52,1,52,5],[53,1,53,5],[54,1,54,5],[55,1,55,5],[44,1,44,5],[45,1,45,5],[46,1,46,5],[47,1,47,5],[48,1,48,5],[49,1,49,5],[62,1,62,5],[63,1,63,5],[64,1,64,5],[65,1,65,5],[66,1,66,5],[67,1,67,5],[56,1,56,5],[57,1,57,5],[58,1,58,5],[59,1,59,5],[60,1,60,5],[61,1,61,5],[74,1,74,5],[75,1,75,5],[76,1,76,5],[77,1,77,5],[78,1,78,5],[79,1,79,5],[68,1,68,5],[69,1,69,5],[70,1,70,5],[71,1,71,5],[72,1,72,5],[73,1,73,5],[86,1,86,5],[87,1,87,5],[88,1,88,5],[89,1,89,5],[90,0,90,10],[91,0,91,10],[80,1,80,5],[81,1,81,5],[82,1,82,5],[83,1,83,5],[84,1,84,5],[85,1,85,5],[96,11,96,15],[96,19,96,20],[96,21,96,23],[97,21,97,23],[92,9,92,10],[93,16,93,20],[93,21,93,23],[94,19,94,20],[94,21,94,23],[95,19,95,20],[95,21,95,23]]}
["Эксплуатационная карта"]
[null,null,null,"Работы пожарного автомобиля за",null,null,{"$f":"Нормы!G3","v":"Март   2015 г"},null,null,null,null,"Наименование и № подразделения   ",null,null,null,null,null,"КГКУ 9- ОПС",null,null,"37- ПЧ"]
["      Тип,марка,модель                                                  Насосная станция  ПНС 100 (5350)   Дизель ЯМЗ 238 Д                                                                                                                                                 Государственный регистрационный знак"]
["      Пробег автомобиля на 1-е число отчетного месяца ",null,null,null,null,null,null,null,null,null,null,null,null,"км.двигатель",null,null,null,null,"км.(приведенный)"]
["      Остаток топлива в автомобиле на 1-е число отчетного месяца",null,null,null,null,null,null,null,null,null,{"$f":"'отчёт '!F26","v":146},null,null,null,null,null,null,null,null,null,null,null,null,"литр."]
["      Заправлено топлива в автомобиль за отчетный месяц",null,null,null,null,null,null,null,{"$f":"U91","v":0},null,null,null,null,null,null,null,null,null,null,null,null,null,null,"литр."]
["      Остаток топлива в автомобиле на 1-е число следующего за отчетным месяцем",null,null,null,null,null,null,null,null,null,null,null,{"$f":"X91","v":144.35},null,null,null,null,null,null,null,null,null,null,"литр."]
["Результат расхода топлива за отчетный месяц"]
[null,null,null,null,"фактически",null,{"$f":"V91","v":1.6500000000000001},null,null,"литр.",null," Экономия _________________литр."]
[null,null,null,null,"по нормам",null,{"$f":"W91","v":1.6500000000000001},null,null,"литр.",null,"Перерасход _________________литр."]
[]
["дата","Наименование и место работы автомобиля(То,работа на пожаре,учениях и др)",null,null,null,null,"работа пожарного автомобиля",null,null,null,null,null,null,null,null,null,null,null,null,null,null,"расход топлива в литрах",null,"Остаток топлива ","подписи"]
[null,null,null,null,null,null,"время выезда",null,"время возвращения ",null,"показания спидометра перед выездом ","пройдено км к месту работы и обратно","на пожарах(в мин)",null,"на учениях (в мин)",null," при смене караула (в мин)",null,"на прочих работах",null,"заправлено топлива в автомобиль"]
[null,null,null,null,null,null,"часы","минуты","часы","минуты",null,null,"с насосом","без насоса","с насосом","без насоса","с насосом","без насоса","с насосом","без насоса",null,"фактически","по нормам",null,"водителя","начальника караула"]
[1,2,null,null,null,null,3,4,5,6,7,8,9,10,11,12,13,14,15,16,17,18,19,20,21,22]
["1,03","Смена караула",null,null,null,null,null,null,null,null,{"$f":"K4","v":0},{"$f":"IF(K17=\"\",\"\",K17-K16)","v":""},null,null,null,null,null,10,null,null,null,{"$f":"W16","v":1.6500000000000001},{"$f":"IF(L16=\"\",0,L16)*КИЛОМЕТР+(M16+O16+Q16+S16)*НАСОС+(N16+P16+R16+T16)*БЕЗ_НАСОСА","v":1.6500000000000001},{"$f":"Остаток_на_начало_месяца-W16+U16","v":144.35}]
[null,null,null,null,null,null,null,null,null,null,null,null,null,null,null,null,null,null,null,null,null,{"$f":"W17","v":0},0,{"$f":"IF(W17=0,\"\",X16-W17+U17)","v":""}]
[null,null,null,null,null,null,null,null,null,null,null,null,null,null,null,null,null,null,null,null,null,{"$f":"W18","v":0},0,""]
[null,null,null,null,null,null,null,null,null,null,null,null,null,null,null,null,null,null,null,null,null,0,0,""]
[null,null,null,null,null,null,null,null,null,null,null,null,null,null,null,null,null,null,null,null,null,0,0,""]
[null,null,null,null,null,null,null,null,null,null,null,null,null,null,null,null,null,null,null,null,null,0,0,""]
[null,null,null,null,null,null,null,null,null,null,null,null,null,null,null,null,null,null,null,null,null,0,0,""]
[null,null,null,null,null,null,null,null,null,null,null,null,null,null,null,null,null,null,null,null,null,0,0,""]
[null,null,null,null,null,null,null,null,null,null,null,null,null,null,null,null,null,null,null,null,null,0,0,""]
[null,null,null,null,null,null,null,null,null,null,null,null,null,null,null,null,null,null,null,null,null,0,0,""]
[null,null,null,null,null,null,null,null,null,null,null,null,null,null,null,null,null,null,null,null,null,0,0,""]
[null,null,null,null,null,null,null,null,null,null,null,null,null,null,null,null,null,null,null,null,null,0,0,""]
[null,null,null,null,null,null,null,null,null,null,null,null,null,null,null,null,null,null,null,null,null,0,0,""]
[null,null,null,null,null,null,null,null,null,null,null,null,null,null,null,null,null,null,null,null,null,0,0,""]
[null,null,null,null,null,null,null,null,null,null,null,null,null,null,null,null,null,null,null,null,null,0,0,""]
[null,null,null,null,null,null,null,null,null,null,null,null,null,null,null,null,null,null,null,null,null,0,0,""]
[null,null,null,null,null,null,null,null,null,null,null,null,null,null,null,null,null,null,null,null,null,0,0,""]
[null,null,null,null,null,null,null,null,null,null,null,null,null,null,null,null,null,null,null,null,null,0,0,""]
[null,null,null,null,null,null,null,null,null,null,null,null,null,null,null,null,null,null,null,null,null,0,0,""]
[null,null,null,null,null,null,null,null,null,null,null,null,null,null,null,null,null,null,null,null,null,0,0,""]
[null,null,null,null,null,null,null,null,null,null,null,null,null,null,null,null,null,null,null,null,null,0,0,""]
[null,null,null,null,null,null,null,null,null,null,null,null,null,null,null,null,null,null,null,null,null,0,0,""]
[null,null,null,null,null,null,null,null,null,null,null,null,null,null,null,null,null,null,null,null,null,0,0,""]
[null,null,null,null,null,null,null,null,null,null,null,null,null,null,null,null,null,null,null,null,null,0,0,""]
[null,null,null,null,null,null,null,null,null,null,null,null,null,null,null,null,null,null,null,null,null,0,0,""]
[null,null,null,null,null,null,null,null,null,null,null,null,null,null,null,null,null,null,null,null,null,0,0,""]
[null,null,null,null,null,null,null,null,null,null,null,null,null,null,null,null,null,null,null,null,null,0,0,""]
[null,null,null,null,null,null,null,null,null,null,null,null,null,null,null,null,null,null,null,null,null,0,0,""]
[null,null,null,null,null,null,null,null,null,null,null,null,null,null,null,null,null,null,null,null,null,0,0,""]
[null,null,null,null,null,null,null,null,null,null,null,null,null,null,null,null,null,null,null,null,null,0,0,""]
[null,null,null,null,null,null,null,null,null,null,null,null,null,null,null,null,null,null,null,null,null,0,0,""]
[null,null,null,null,null,null,null,null,null,null,null,null,null,null,null,null,null,null,null,null,null,0,0,""]
[null,null,null,null,null,null,null,null,null,null,null,null,null,null,null,null,null,null,null,null,null,0,{"$f":"IF(L48=\"\",0,L48)*КИЛОМЕТР+(M48+O48+Q48+S48)*НАСОС+(N48+P48+R48+T48)*БЕЗ_НАСОСА","v":0},""]
[null,null,null,null,null,null,null,null,null,null,null,null,null,null,null,null,null,null,null,null,null,0,0,""]
[null,null,null,null,null,null,null,null,null,null,null,null,null,null,null,null,null,null,null,null,null,0,0,""]
[null,null,null,null,null,null,null,null,null,null,null,"",null,null,null,null,null,null,null,null,null,0,0,""]
[null,null,null,null,null,null,null,null,null,null,null,"",null,null,null,null,null,null,null,null,null,0,0,""]
[null,null,null,null,null,null,null,null,null,null,null,"",null,null,null,null,null,null,null,null,null,0,0,""]
[null,null,null,null,null,null,null,null,null,null,null,"",null,null,null,null,null,null,null,null,null,0,0,""]
[null,null,null,null,null,null,null,null,null,null,null,"",null,null,null,null,null,null,null,null,null,0,0,""]
[null,null,null,null,null,null,null,null,null,null,null,"",null,null,null,null,null,null,null,null,null,0,0,""]
[null,null,null,null,null,null,null,null,null,null,null,"",null,null,null,null,null,null,null,null,null,0,0,""]
[null,null,null,null,null,null,null,null,null,null,null,"",null,null,null,null,null,null,null,null,null,0,0,""]
[null,null,null,null,null,null,null,null,null,null,null,"",null,null,null,null,null,null,null,null,null,0,0,""]
[null,null,null,null,null,null,null,null,null,null,null,"",null,null,null,null,null,null,null,null,null,0,0,""]
[null,null,null,null,null,null,null,null,null,null,null,"",null,null,null,null,null,null,null,null,null,0,0,""]
[null,null,null,null,null,null,null,null,null,null,null,"",null,null,null,null,null,null,null,null,null,0,0,""]
[null,null,null,null,null,null,null,null,null,null,null,"",null,null,null,null,null,null,null,null,null,0,0,""]
[null,null,null,null,null,null,null,null,null,null,null,"",null,null,null,null,null,null,null,null,null,0,0,""]
[null,null,null,null,null,null,null,null,null,null,null,"",null,null,null,null,null,null,null,null,null,0,0,""]
[null,null,null,null,null,null,null,null,null,null,null,"",null,null,null,null,null,null,null,null,null,0,0,""]
[null,null,null,null,null,null,null,null,null,null,null,"",null,null,null,null,null,null,null,null,null,0,0,""]
[null,null,null,null,null,null,null,null,null,null,null,"",null,null,null,null,null,null,null,null,null,0,0,""]
[null,null,null,null,null,null,null,null,null,null,null,"",null,null,null,null,null,null,null,null,null,0,0,""]
[null,null,null,null,null,null,null,null,null,null,null,"",null,null,null,null,null,null,null,null,null,0,0,""]
[null,null,null,null,null,null,null,null,null,null,null,"",null,null,null,null,null,null,null,null,null,0,0,""]
[null,null,null,null,null,null,null,null,null,null,null,"",null,null,null,null,null,null,null,null,null,0,0,""]
[null,null,null,null,null,null,null,null,null,null,null,"",null,null,null,null,null,null,null,null,null,0,0,""]
[null,null,null,null,null,null,null,null,null,null,null,"",null,null,null,null,null,null,null,null,null,0,0,""]
[null,null,null,null,null,null,null,null,null,null,null,"",null,null,null,null,null,null,null,null,null,0,0,""]
[null,null,null,null,null,null,null,null,null,null,null,"",null,null,null,null,null,null,null,null,null,0,0,""]
[null,null,null,null,null,null,null,null,null,null,null,"",null,null,null,null,null,null,null,null,null,0,0,""]
[null,null,null,null,null,null,null,null,null,null,null,"",null,null,null,null,null,null,null,null,null,0,0,""]
[null,null,null,null,null,null,null,null,null,null,null,"",null,null,null,null,null,null,null,null,null,0,0,""]
[null,null,null,null,null,null,null,null,null,null,null,{"$f":"IF(K81=\"\",\"\",K81-K80)","v":""},null,null,null,null,null,null,null,null,null,0,{"$f":"IF(L80=\"\",0,L80)*КИЛОМЕТР+(M80+O80+Q80+S80)*НАСОС+(N80+P80+R80+T80)*БЕЗ_НАСОСА","v":0},""]
[null,null,null,null,null,null,null,null,null,null,null,"",null,null,null,null,null,null,null,null,null,{"$f":"W81","v":0},0,{"$f":"IF(W81=0,\"\",X80-W81+U81)","v":""}]
[null,null,null,null,null,null,null,null,null,null,null,"",null,null,null,null,null,null,null,null,null,0,0,""]
[null,null,null,null,null,null,null,null,null,null,null,"",null,null,null,null,null,null,null,null,null,0,0,""]
[null,null,null,null,null,null,null,null,null,null,null,"",null,null,null,null,null,null,null,null,null,0,0,""]
[null,null,null,null,null,null,null,null,null,null,null,"",null,null,null,null,null,null,null,null,null,0,0,""]
[null,null,null,null,null,null,null,null,null,null,null,"",null,null,null,null,null,null,null,null,null,0,0,""]
[null,null,null,null,null,null,null,null,null,null,null,"",null,null,null,null,null,null,null,null,null,0,0,""]
[null,null,null,null,null,null,null,null,null,null,null,"",null,null,null,null,null,null,null,null,null,0,0,""]
[null,null,null,null,null,null,null,null,null,null,null,"",null,null,null,null,null,null,null,null,null,0,0,{"$f":"IF(W89=0,\"\",X88-W89+U89)","v":""}]
[null,null,null,null,null,null,null,null,null,null,null,"",null,null,null,null,null,null,null,null,null,0,0,""]
["                    ИТОГО за месяц",null,null,null,null,null,null,null,null,null,null,{"$f":"SUM(L16:L90)","v":0},0,0,0,0,0,10,0,0,0,1.6500000000000001,1.6500000000000001,{"$f":"Остаток_на_начало_месяца+Заправлено-W91","v":144.35}]
["                    Израсходовано топлива по элементам работы(в литрах)",null,null,null,null,null,null,null,null,null,null,{"$f":"L91*КИЛОМЕТР","v":0},{"$f":"M91*НАСОС","v":0},{"$f":"N91*БЕЗ_НАСОСА","v":0},{"$f":"O91*НАСОС","v":0},{"$f":"P91*БЕЗ_НАСОСА","v":0},{"$f":"Q91*НАСОС","v":0},{"$f":"R91*БЕЗ_НАСОСА","v":1.6500000000000001},{"$f":"S91*НАСОС","v":0},{"$f":"T91*БЕЗ_НАСОСА","v":0}]
[null,"Наработка автомобиля за отчетный месяц в км.(с учетом приведенного)",null,null,null,null,null,null,null,null,null,"км. "]
[null,null,null,null,null,null,null,null,null,null,null,null,null,null,null,null,"Текущая норма",null,null,null,null,"Пробег по спидометру, км",null,null,{"$f":"L91","v":0}]
[null,null,"Руководитель подразделения",null,null,null,null,null,null,null,null,"Старший водитель",null,null,null,null,"1 км",null,null,null,null,"Наработка с насосом м.ч.",null,null,{"$f":"(M91+O91+Q91+S91)/60","v":0}]
[null,null,"<_____>______________________2015г.",null,null,null,null,null,null,null,null,"<_____>______________________",null,null,null,"2015г.","1 мин с насосом",null,null,0.73,null,"Наработка без насоса",null,null,{"$f":"N91+P91+R91+T91","v":10}]
[null,null,null,null,null,null,null,null,null,null,null,null,null,null,null,null,"1 мин без насоса",null,null,0.16500000000000001,null,"Приведенный пробег"]
[null,null,null,null,null,null,null,null,null,null,null,null,null,null,null,null,null,null,null,null,null,"Общий пробег"]

{"sheet":"АР-2(5350)","index":8,"n_rows":98,"n_cols":26,"rows_kept":98,"cut":false,"hidden":false,"merged":[[0,0,0,25],[1,6,1,10],[1,15,1,17],[1,18,1,19],[2,0,2,22],[2,23,2,25],[6,0,6,11],[6,12,6,22],[7,0,7,23],[8,4,8,5],[8,6,8,8],[8,9,8,10],[8,11,8,18],[3,11,3,12],[3,13,3,14],[3,15,3,17],[4,11,4,22],[5,0,5,7],[5,8,5,22],[9,4,9,5],[9,6,9,8],[9,9,9,10],[9,11,9,18],[10,0,10,25],[11,0,13,0],[11,1,13,5],[11,6,11,20],[11,21,12,22],[11,23,13,23],[14,1,14,5],[15,1,15,5],[16,1,16,5],[17,1,17,5],[18,1,18,5],[19,1,19,5],[11,24,12,25],[12,6,12,7],[12,8,12,9],[12,10,13,10],[12,11,13,11],[12,12,12,13],[12,14,12,15],[12,16,12,17],[12,18,12,19],[12,20,13,20],[26,1,26,5],[27,1,27,5],[28,1,28,5],[29,1,29,5],[30,1,30,5],[31,1,31,5],[20,1,20,5],[21,1,21,5],[22,1,22,5],[23,1,23,5],[24,1,24,5],[25,1,25,5],[38,1,38,5],[39,1,39,5],[40,1,40,5],[41,1,41,5],[42,1,42,5],[43,1,43,5],[32,1,32,5],[33,1,33,5],[34,1,34,5],[35,1,35,5],[36,1,36,5],[37,1,37,5],[50,1,50,5],[51,1,51,5],[52,1,52,5],[53,1,53,5],[54,1,54,5],[55,1,55,5],[44,1,44,5],[45,1,45,5],[46,1,46,5],[47,1,47,5],[48,1,48,5],[49,1,49,5],[62,1,62,5],[63,1,63,5],[64,1,64,5],[65,1,65,5],[66,1,66,5],[67,1,67,5],[56,1,56,5],[57,1,57,5],[58,1,58,5],[59,1,59,5],[60,1,60,5],[61,1,61,5],[74,1,74,5],[75,1,75,5],[76,1,76,5],[77,1,77,5],[78,1,78,5],[79,1,79,5],[68,1,68,5],[69,1,69,5],[70,1,70,5],[71,1,71,5],[72,1,72,5],[73,1,73,5],[86,1,86,5],[87,1,87,5],[88,1,88,5],[89,1,89,5],[90,0,90,10],[91,0,91,10],[80,1,80,5],[81,1,81,5],[82,1,82,5],[83,1,83,5],[84,1,84,5],[85,1,85,5],[95,19,95,20],[95,21,95,23],[96,11,96,15],[96,19,96,20],[96,21,96,23],[97,21,97,23],[92,0,92,8],[92,9,92,10],[93,16,93,20],[93,21,93,23],[94,19,94,20],[94,21,94,23]]}
["Эксплуатационная карта"]
[null,null,null,"Работы пожарного автомобиля за",null,null,{"$f":"Нормы!G3","v":"Март   2015 г"},null,null,null,null,"Наименование и № подразделения      КГ",null,null,null,"К Г К У   9 - О П С",null,null,"37 - П Ч"]
["      Тип,марка,модель                                                  Автомобиль рукавный   АР-2  (5350)                           Государственный регистрационный знак",null,null,null,null,null,null,null,null,null,null,null,null,null,null,null,null,null,null,null,null,null,null," Н 077 КР"]
["      Пробег а/м   на 1-е число отчетного месяца от начала эксплуатаций:  шасси",null,null,null,null,null,null,null,null,null,null,{"$f":"Нормы!B104","v":2360},null,"км.двигатель",null,null,null,null,"км.(приведенный)"]
["      Остаток топлива в автомобиле на 1-е число отчетного месяца",null,null,null,null,null,null,null,null,null,null,{"$f":"'отчёт '!F27","v":128},null,null,null,null,null,null,null,null,null,null,null,"литр."]
["      Заправлено топлива в автомобиль за отчетный месяц",null,null,null,null,null,null,null,{"$f":"U91","v":0},null,null,null,null,null,null,null,null,null,null,null,null,null,null,"литр."]
["      Остаток топлива в автомобиле на 1-е число следующего за отчетным месяцем",null,null,null,null,null,null,null,null,null,null,null,{"$f":"X91","v":127.175},null,null,null,null,null,null,null,null,null,null,"литр."]
["Результат расхода топлива за отчетный месяц"]
[null,null,null,null,"фактически",null,{"$f":"V91","v":0.82500000000000007},null,null,"литр.",null," Экономия _________________литр."]
[null,null,null,null,"по нормам",null,{"$f":"W91","v":0.82500000000000007},null,null,"литр.",null,"Перерасход _________________литр."]
[]
["дата","Наименование и место работы автомобиля(То,работа на пожаре,учениях и др)",null,null,null,null,"работа пожарного автомобиля",null,null,null,null,null,null,null,null,null,null,null,null,null,null,"расход топлива в литрах",null,"Остаток топлива ","подписи"]
[null,null,null,null,null,null,"время выезда",null,"время возвращения ",null,"показания спидометра перед выездом ","пройдено км к месту работы и обратно","на пожарах    (в мин)",null,"на учениях (в мин)",null," при смене караула (в мин)",null,"на прочих работах",null,"заправлено топлива в автомобиль"]
[null,null,null,null,null,null,"часы","минуты","часы","минуты",null,null,"с насосом","без насоса","с насосом","без насоса","с насосом","без насоса","с насосом","без насоса",null,"фактически","по нормам",null,"водителя","начальника караула"]
[1,2,null,null,null,null,3,4,5,6,7,8,9,10,11,12,13,14,15,16,17,18,19,20,21,22]
["1,03","Смена караула",null,null,null,null,null,null,null,null,{"$f":"L4","v":2360},{"$f":"IF(K17=\"\",\"\",K17-K16)","v":""},null,null,null,null,null,5,null,null,null,{"$f":"W16","v":0.82500000000000007},{"$f":"IF(L16=\"\",0,L16)*КИЛОМЕТР+(M16+O16+Q16+S16)*НАСОС+(N16+P16+R16+T16)*БЕЗ_НАСОСА","v":0.82500000000000007},{"$f":"Остаток_на_начало_месяца-W16+U16","v":127.175}]
[null,null,null,null,null,null,null,null,null,null,null,"",null,null,null,null,null,null,null,null,null,{"$f":"W17","v":0},{"$f":"IF(L17=\"\",0,L17)*КИЛОМЕТР+(M17+O17+Q17+S17)*НАСОС+(N17+P17+R17+T17)*БЕЗ_НАСОСА","v":0},{"$f":"IF(W17=0,\"\",X16-W17+U17)","v":""}]
[null,null,null,null,null,null,null,null,null,null,null,"",null,null,null,null,null,null,null,null,null,{"$f":"W18","v":0},0,""]
[null,null,null,null,null,null,null,null,null,null,null,"",null,null,null,null,null,null,null,null,null,0,0,""]
[null,null,null,null,null,null,null,null,null,null,null,"",null,null,null,null,null,null,null,null,null,0,0,""]
[null,null,null,null,null,null,null,null,null,null,null,"",null,null,null,null,null,null,null,null,null,0,0,""]
[null,null,null,null,null,null,null,null,null,null,null,"",null,null,null,null,null,null,null,null,null,0,0,""]
[null,null,null,null,null,null,null,null,null,null,null,"",null,null,null,null,null,null,null,null,null,0,0,""]
[null,null,null,null,null,null,null,null,null,null,null,"",null,null,null,null,null,null,null,null,null,0,0,""]
[null,null,null,null,null,null,null,null,null,null,null,"",null,null,null,null,null,null,null,null,null,0,0,""]
[null,null,null,null,null,null,null,null,null,null,null,"",null,null,null,null,null,null,null,null,null,0,0,""]
[null,null,null,null,null,null,null,null,null,null,null,"",null,null,null,null,null,null,null,null,null,0,0,""]
[null,null,null,null,null,null,null,null,null,null,null,"",null,null,null,null,null,null,null,null,null,0,0,""]
[null,null,null,null,null,null,null,null,null,null,null,"",null,null,null,null,null,null,null,null,null,0,0,""]
[null,null,null,null,null,null,null,null,null,null,null,"",null,null,null,null,null,null,null,null,null,0,0,""]
[null,null,null,null,null,null,null,null,null,null,null,"",null,null,null,null,null,null,null,null,null,0,0,""]
[null,null,null,null,null,null,null,null,null,null,null,"",null,null,null,null,null,null,null,null,null,0,0,""]
[null,null,null,null,null,null,null,null,null,null,null,"",null,null,null,null,null,null,null,null,null,0,0,""]
[null,null,null,null,null,null,null,null,null,null,null,"",null,null,null,null,null,null,null,null,null,0,0,""]
[null,null,null,null,null,null,null,null,null,null,null,"",null,null,null,null,null,null,null,null,null,0,0,""]
[null,null,null,null,null,null,null,null,null,null,null,"",null,null,null,null,null,null,null,null,null,0,0,""]
[null,null,null,null,null,null,null,null,null,null,null,"",null,null,null,null,null,null,null,null,null,0,0,""]
[null,null,null,null,null,null,null,null,null,null,null,"",null,null,null,null,null,null,null,null,null,0,0,""]
[null,null,null,null,null,null,null,null,null,null,null,"",null,null,null,null,null,null,null,null,null,0,0,""]
[null,null,null,null,null,null,null,null,null,null,null,"",null,null,null,null,null,null,null,null,null,0,0,""]
[null,null,null,null,null,null,null,null,null,null,null,"",null,null,null,null,null,null,null,null,null,0,0,""]
[null,null,null,null,null,null,null,null,null,null,null,"",null,null,null,null,null,null,null,null,null,0,0,""]
[null,null,null,null,null,null,null,null,null,null,null,"",null,null,null,null,null,null,null,null,null,0,0,""]
[null,null,null,null,null,null,null,null,null,null,null,"",null,null,null,null,null,null,null,null,null,0,0,""]
[null,null,null,null,null,null,null,null,null,null,null,"",null,null,null,null,null,null,null,null,null,0,0,""]
[null,null,null,null,null,null,null,null,null,null,null,"",null,null,null,null,null,null,null,null,null,0,0,""]
[null,null,null,null,null,null,null,null,null,null,null,"",null,null,null,null,null,null,null,null,null,0,0,""]
[null,null,null,null,null,null,null,null,null,null,null,"",null,null,null,null,null,null,null,null,null,0,{"$f":"IF(L48=\"\",0,L48)*КИЛОМЕТР+(M48+O48+Q48+S48)*НАСОС+(N48+P48+R48+T48)*БЕЗ_НАСОСА","v":0},""]
[null,null,null,null,null,null,null,null,null,null,null,"",null,null,null,null,null,null,null,null,null,0,0,""]
[null,null,null,null,null,null,null,null,null,null,null,"",null,null,null,null,null,null,null,null,null,0,0,""]
[null,null,null,null,null,null,null,null,null,null,null,"",null,null,null,null,null,null,null,null,null,0,0,""]
[null,null,null,null,null,null,null,null,null,null,null,"",null,null,null,null,null,null,null,null,null,0,0,""]
[null,null,null,null,null,null,null,null,null,null,null,"",null,null,null,null,null,null,null,null,null,0,0,""]
[null,null,null,null,null,null,null,null,null,null,null,"",null,null,null,null,null,null,null,null,null,0,0,""]
[null,null,null,null,null,null,null,null,null,null,null,"",null,null,null,null,null,null,null,null,null,0,0,""]
[null,null,null,null,null,null,null,null,null,null,null,"",null,null,null,null,null,null,null,null,null,0,0,""]
[null,null,null,null,null,null,null,null,null,null,null,"",null,null,null,null,null,null,null,null,null,0,0,""]
[null,null,null,null,null,null,null,null,null,null,null,"",null,null,null,null,null,null,null,null,null,0,0,""]
[null,null,null,null,null,null,null,null,null,null,null,"",null,null,null,null,null,null,null,null,null,0,0,""]
[null,null,null,null,null,null,null,null,null,null,null,"",null,null,null,null,null,null,null,null,null,0,0,""]
[null,null,null,null,null,null,null,null,null,null,null,"",null,null,null,null,null,null,null,null,null,0,0,""]
[null,null,null,null,null,null,null,null,null,null,null,"",null,null,null,null,null,null,null,null,null,0,0,""]
[null,null,null,null,null,null,null,null,null,null,null,"",null,null,null,null,null,null,null,null,null,0,0,""]
[null,null,null,null,null,null,null,null,null,null,null,"",null,null,null,null,null,null,null,null,null,0,0,""]
[null,null,null,null,null,null,null,null,null,null,null,"",null,null,null,null,null,null,null,null,null,0,0,""]
[null,null,null,null,null,null,null,null,null,null,null,"",null,null,null,null,null,null,null,null,null,0,0,""]
[null,null,null,null,null,null,null,null,null,null,null,"",null,null,null,null,null,null,null,null,null,0,0,""]
[null,null,null,null,null,null,null,null,null,null,null,"",null,null,null,null,null,null,null,null,null,0,0,""]
[null,null,null,null,null,null,null,null,null,null,null,"",null,null,null,null,null,null,null,null,null,0,0,""]
[null,null,null,null,null,null,null,null,null,null,null,"",null,null,null,null,null,null,null,null,null,0,0,""]
[null,null,null,null,null,null,null,null,null,null,null,"",null,null,null,null,null,null,null,null,null,0,0,""]
[null,null,null,null,null,null,null,null,null,null,null,"",null,null,null,null,null,null,null,null,null,0,0,""]
[null,null,null,null,null,null,null,null,null,null,null,"",null,null,null,null,null,null,null,null,null,0,0,""]
[null,null,null,null,null,null,null,null,null,null,null,"",null,null,null,null,null,null,null,null,null,0,0,""]
[null,null,null,null,null,null,null,null,null,null,null,"",null,null,null,null,null,null,null,null,null,0,0,""]
[null,null,null,null,null,null,null,null,null,null,null,"",null,null,null,null,null,null,null,null,null,0,0,""]
[null,null,null,null,null,null,null,null,null,null,null,"",null,null,null,null,null,null,null,null,null,0,0,""]
[null,null,null,null,null,null,null,null,null,null,null,"",null,null,null,null,null,null,null,null,null,0,0,""]
[null,null,null,null,null,null,null,null,null,null,null,"",null,null,null,null,null,null,null,null,null,0,0,""]
[null,null,null,null,null,null,null,null,null,null,null,{"$f":"IF(K81=\"\",\"\",K81-K80)","v":""},null,null,null,null,null,null,null,null,null,0,{"$f":"IF(L80=\"\",0,L80)*КИЛОМЕТР+(M80+O80+Q80+S80)*НАСОС+(N80+P80+R80+T80)*БЕЗ_НАСОСА","v":0},""]
[null,null,null,null,null,null,null,null,null,null,null,"",null,null,null,null,null,null,null,null,null,{"$f":"W81","v":0},0,{"$f":"IF(W81=0,\"\",X80-W81+U81)","v":""}]
[null,null,null,null,null,null,null,null,null,null,null,"",null,null,null,null,null,null,null,null,null,0,0,""]
[null,null,null,null,null,null,null,null,null,null,null,"",null,null,null,null,null,null,null,null,null,0,0,""]
[null,null,null,null,null,null,null,null,null,null,null,"",null,null,null,null,null,null,null,null,null,0,0,""]
[null,null,null,null,null,null,null,null,null,null,null,"",null,null,null,null,null,null,null,null,null,0,0,""]
[null,null,null,null,null,null,null,null,null,null,null,"",null,null,null,null,null,null,null,null,null,0,0,""]
[null,null,null,null,null,null,null,null,null,null,null,"",null,null,null,null,null,null,null,null,null,0,0,""]
[null,null,null,null,null,null,null,null,null,null,null,"",null,null,null,null,null,null,null,null,null,0,0,""]
[null,null,null,null,null,null,null,null,null,null,null,"",null,null,null,null,null,null,null,null,null,0,0,{"$f":"IF(W89=0,\"\",X88-W89+U89)","v":""}]
[null,null,null,null,null,null,null,null,null,null,null,"",null,null,null,null,null,null,null,null,null,0,0,""]
["                    ИТОГО за месяц",null,null,null,null,null,null,null,null,null,null,{"$f":"SUM(L16:L90)","v":0},0,0,0,0,0,5,0,0,0,0.82500000000000007,0.82500000000000007,{"$f":"Остаток_на_начало_месяца+Заправлено-W91","v":127.175}]
["                    Израсходовано топлива по элементам работы(в литрах)",null,null,null,null,null,null,null,null,null,null,{"$f":"L91*КИЛОМЕТР","v":0},{"$f":"M91*НАСОС","v":0},{"$f":"N91*БЕЗ_НАСОСА","v":0},{"$f":"O91*НАСОС","v":0},{"$f":"P91*БЕЗ_НАСОСА","v":0},{"$f":"Q91*НАСОС","v":0},{"$f":"R91*БЕЗ_НАСОСА","v":0.82500000000000007},{"$f":"S91*НАСОС","v":0},{"$f":"T91*БЕЗ_НАСОСА","v":0}]
["     Наработка а/м  за отчетный месяц в км.(с учетом приведенного)",null,null,null,null,null,null,null,null,{"$f":"(M91+O91+Q91+S91)/60*50+L91","v":0},null,"км. "]
[null,null,null,null,null,null,null,null,null,null,null,null,null,null,null,null,"Текущая норма",null,null,null,null,"Пробег по спидометру, км",null,null,{"$f":"L91","v":0}]
[null,null,"Руководитель подразделения",null,null,null,null,null,null,null,null,"Старший водитель",null,null,null,null,"1 км",null,null,0.51,null,"Наработка с насосом м.ч.",null,null,{"$f":"(M91+O91+Q91+S91)/60","v":0}]
[null,null,"<_____>______________________2015г.",null,null,null,null,null,null,null,null,"<_____>______________________",null,null,null,"2015г.","1 мин с насосом",null,null,null,null,"Наработка без насоса",null,null,{"$f":"N91+P91+R91+T91","v":5}]
[null,null,null,null,null,null,null,null,null,null,null,null,null,null,null,null,"1 мин без насоса",null,null,0.16500000000000001,null,"Приведенный пробег",null,null,{"$f":"Y95*50","v":0}]
[null,null,null,null,null,null,null,null,null,null,null,null,null,null,null,null,null,null,null,null,null,"Общий пробег",null,null,{"$f":"Y94+Y97","v":0}]

{"sheet":"АГДЗС","index":9,"n_rows":98,"n_cols":26,"rows_kept":98,"cut":false,"hidden":false,"merged":[[0,0,0,25],[1,6,1,10],[1,15,1,17],[1,18,1,19],[2,0,2,22],[2,23,2,25],[6,0,6,11],[6,12,6,22],[7,0,7,23],[8,4,8,5],[8,6,8,8],[8,9,8,10],[8,11,8,18],[3,11,3,12],[3,13,3,14],[3,15,3,17],[4,11,4,22],[5,0,5,7],[5,8,5,22],[9,4,9,5],[9,6,9,8],[9,9,9,10],[9,11,9,18],[10,0,10,25],[11,0,13,0],[11,1,13,5],[11,6,11,20],[11,21,12,22],[11,23,13,23],[14,1,14,5],[15,1,15,5],[16,1,16,5],[17,1,17,5],[18,1,18,5],[19,1,19,5],[11,24,12,25],[12,6,12,7],[12,8,12,9],[12,10,13,10],[12,11,13,11],[12,12,12,13],[12,14,12,15],[12,16,12,17],[12,18,12,19],[12,20,13,20],[26,1,26,5],[29,1,29,5],[30,1,30,5],[31,1,31,5],[20,1,20,5],[21,1,21,5],[22,1,22,5],[23,1,23,5],[24,1,24,5],[25,1,25,5],[27,1,27,5],[28,1,28,5],[38,1,38,5],[39,1,39,5],[40,1,40,5],[41,1,41,5],[42,1,42,5],[43,1,43,5],[32,1,32,5],[33,1,33,5],[34,1,34,5],[35,1,35,5],[37,1,37,5],[36,1,36,5],[50,1,50,5],[51,1,51,5],[52,1,52,5],[53,1,53,5],[54,1,54,5],[55,1,55,5],[44,1,44,5],[45,1,45,5],[46,1,46,5],[47,1,47,5],[48,1,48,5],[49,1,49,5],[62,1,62,5],[63,1,63,5],[64,1,64,5],[65,1,65,5],[66,1,66,5],[67,1,67,5],[56,1,56,5],[57,1,57,5],[58,1,58,5],[59,1,59,5],[60,1,60,5],[61,1,61,5],[74,1,74,5],[75,1,75,5],[76,1,76,5],[77,1,77,5],[78,1,78,5],[79,1,79,5],[68,1,68,5],[69,1,69,5],[70,1,70,5],[71,1,71,5],[72,1,72,5],[73,1,73,5],[86,1,86,5],[87,1,87,5],[88,1,88,5],[89,1,89,5],[90,0,90,10],[91,0,91,10],[80,1,80,5],[81,1,81,5],[82,1,82,5],[83,1,83,5],[84,1,84,5],[85,1,85,5],[95,19,95,20],[95,21,95,23],[96,11,96,15],[96,19,96,20],[96,21,96,23],[97,21,97,23],[92,0,92,8],[92,9,92,10],[93,16,93,20],[93,21,93,23],[94,19,94,20],[94,21,94,23]]}
["Эксплуатационная карта"]
[null,null,null,"Работы пожарного автомобиля за",null,null,{"$f":"Нормы!G3","v":"Март   2015 г"},null,null,null,null,"Наименование и № подразделения      КГ",null,null,null,"К Г К У   9 - О П С",null,null,"37 - П Ч"]
["      Тип,марка,модель                                  Автомобиль газодымозащитной службы   АГДЗС  (43502)                           Государственный регистрационный знак",null,null,null,null,null,null,null,null,null,null,null,null,null,null,null,null,null,null,null,null,null,null,"О 991 АХ"]
["      Пробег а/м   на 1-е число отчетного месяца от начала эксплуатаций:  шасси",null,null,null,null,null,null,null,null,null,null,{"$f":"Нормы!B106","v":2130},null,"км.двигатель",null,null,null,null,"км.(приведенный)"]
["      Остаток топлива в автомобиле на 1-е число отчетного месяца",null,null,null,null,null,null,null,null,null,null,{"$f":"'отчёт '!F24","v":118},null,null,null,null,null,null,null,null,null,null,null,"литр."]
["      Заправлено топлива в автомобиль за отчетный месяц",null,null,null,null,null,null,null,{"$f":"U91","v":0},null,null,null,null,null,null,null,null,null,null,null,null,null,null,"литр."]
["      Остаток топлива в автомобиле на 1-е число следующего за отчетным месяцем",null,null,null,null,null,null,null,null,null,null,null,{"$f":"X91","v":117.175},null,null,null,null,null,null,null,null,null,null,"литр."]
["Результат расхода топлива за отчетный месяц"]
[null,null,null,null,"фактически",null,{"$f":"V91","v":0.82500000000000007},null,null,"литр.",null," Экономия _________________литр."]
[null,null,null,null,"по нормам",null,{"$f":"W91","v":0.82500000000000007},null,null,"литр.",null,"Перерасход _________________литр."]
[]
["дата","Наименование и место работы автомобиля(То,работа на пожаре,учениях и др)",null,null,null,null,"работа пожарного автомобиля",null,null,null,null,null,null,null,null,null,null,null,null,null,null,"расход топлива в литрах",null,"Остаток топлива ","подписи"]
[null,null,null,null,null,null,"время выезда",null,"время возвращения ",null,"показания спидометра перед выездом ","пройдено км к месту работы и обратно","на пожарах    (в мин)",null,"на учениях (в мин)",null," при смене караула (в мин)",null,"на прочих работах",null,"заправлено топлива в автомобиль"]
[null,null,null,null,null,null,"часы","минуты","часы","минуты",null,null,"с насосом","без насоса","с насосом","без насоса","с насосом","без насоса","с насосом","без насоса",null,"фактически","по нормам",null,"водителя","начальника караула"]
[1,2,null,null,null,null,3,4,5,6,7,8,9,10,11,12,13,14,15,16,17,18,19,20,21,22]
["1,03","Смена караула",null,null,null,null,null,null,null,null,{"$f":"L4","v":2130},{"$f":"IF(K17=\"\",\"\",K17-K16)","v":""},null,null,null,null,null,5,null,null,null,{"$f":"W16","v":0.82500000000000007},{"$f":"IF(L16=\"\",0,L16)*КИЛОМЕТР+(M16+O16+Q16+S16)*НАСОС+(N16+P16+R16+T16)*БЕЗ_НАСОСА","v":0.82500000000000007},{"$f":"Остаток_на_начало_месяца-W16+U16","v":117.175}]
[null,null,null,null,null,null,null,null,null,null,null,"",null,null,null,null,null,null,null,null,null,{"$f":"W17","v":0},{"$f":"IF(L17=\"\",0,L17)*КИЛОМЕТР+(M17+O17+Q17+S17)*НАСОС+(N17+P17+R17+T17)*БЕЗ_НАСОСА","v":0},{"$f":"IF(W17=0,\"\",X16-W17+U17)","v":""}]
[null,null,null,null,null,null,null,null,null,null,null,null,null,null,null,null,null,null,null,null,null,{"$f":"W18","v":0},0,""]
[null,null,null,null,null,null,null,null,null,null,null,null,null,null,null,null,null,null,null,null,null,0,0,""]
[null,null,null,null,null,null,null,null,null,null,null,null,null,null,null,null,null,null,null,null,null,0,0,""]
[null,null,null,null,null,null,null,null,null,null,null,null,null,null,null,null,null,null,null,null,null,0,0,""]
[null,null,null,null,null,null,null,null,null,null,null,null,null,null,null,null,null,null,null,null,null,0,0,""]
[null,null,null,null,null,null,null,null,null,null,null,null,null,null,null,null,null,null,null,null,null,0,0,""]
[null,null,null,null,null,null,null,null,null,null,null,null,null,null,null,null,null,null,null,null,null,0,0,""]
[null,null,null,null,null,null,null,null,null,null,null,null,null,null,null,null,null,null,null,null,null,0,0,""]
[null,null,null,null,null,null,null,null,null,null,null,null,null,null,null,null,null,null,null,null,null,0,0,""]
[null,null,null,null,null,null,null,null,null,null,null,null,null,null,null,null,null,null,null,null,null,0,0,""]
[null,null,null,null,null,null,null,null,null,null,null,null,null,null,null,null,null,null,null,null,null,0,0,""]
[null,null,null,null,null,null,null,null,null,null,null,null,null,null,null,null,null,null,null,null,null,0,0,""]
[null,null,null,null,null,null,null,null,null,null,null,null,null,null,null,null,null,null,null,null,null,0,0,""]
[null,null,null,null,null,null,null,null,null,null,null,null,null,null,null,null,null,null,null,null,null,0,0,""]
[null,null,null,null,null,null,null,null,null,null,null,null,null,null,null,null,null,null,null,null,null,0,0,""]
[null,null,null,null,null,null,null,null,null,null,null,null,null,null,null,null,null,null,null,null,null,0,0,""]
[null,null,null,null,null,null,null,null,null,null,null,null,null,null,null,null,null,null,null,null,null,0,0,""]
[null,null,null,null,null,null,null,null,null,null,null,null,null,null,null,null,null,null,null,null,null,0,0,""]
[null,null,null,null,null,null,null,null,null,null,null,"",null,null,null,null,null,null,null,null,null,0,0,""]
[null,null,null,null,null,null,null,null,null,null,null,"",null,null,null,null,null,null,null,null,null,0,0,""]
[null,null,null,null,null,null,null,null,null,null,null,"",null,null,null,null,null,null,null,null,null,0,0,""]
[null,null,null,null,null,null,null,null,null,null,null,"",null,null,null,null,null,null,null,null,null,0,0,""]
[null,null,null,null,null,null,null,null,null,null,null,"",null,null,null,null,null,null,null,null,null,0,0,""]
[null,null,null,null,null,null,null,null,null,null,null,"",null,null,null,null,null,null,null,null,null,0,0,""]
[null,null,null,null,null,null,null,null,null,null,null,"",null,null,null,null,null,null,null,null,null,0,0,""]
[null,null,null,null,null,null,null,null,null,null,null,"",null,null,null,null,null,null,null,null,null,0,0,""]
[null,null,null,null,null,null,null,null,null,null,null,"",null,null,null,null,null,null,null,null,null,0,0,""]
[null,null,null,null,null,null,null,null,null,null,null,"",null,null,null,null,null,null,null,null,null,0,0,""]
[null,null,null,null,null,null,null,null,null,null,null,"",null,null,null,null,null,null,null,null,null,0,0,""]
[null,null,null,null,null,null,null,null,null,null,null,"",null,null,null,null,null,null,null,null,null,0,0,""]
[null,null,null,null,null,null,null,null,null,null,null,"",null,null,null,null,null,null,null,null,null,0,{"$f":"IF(L48=\"\",0,L48)*КИЛОМЕТР+(M48+O48+Q48+S48)*НАСОС+(N48+P48+R48+T48)*БЕЗ_НАСОСА","v":0},""]
[null,null,null,null,null,null,null,null,null,null,null,"",null,null,null,null,null,null,null,null,null,0,0,""]
[null,null,null,null,null,null,null,null,null,null,null,"",null,null,null,null,null,null,null,null,null,0,0,""]
[null,null,null,null,null,null,null,null,null,null,null,"",null,null,null,null,null,null,null,null,null,0,0,""]
[null,null,null,null,null,null,null,null,null,null,null,"",null,null,null,null,null,null,null,null,null,0,0,""]
[null,null,null,null,null,null,null,null,null,null,null,"",null,null,null,null,null,null,null,null,null,0,0,""]
[null,null,null,null,null,null,null,null,null,null,null,"",null,null,null,null,null,null,null,null,null,0,0,""]
[null,null,null,null,null,null,null,null,null,null,null,"",null,null,null,null,null,null,null,null,null,0,0,""]
[null,null,null,null,null,null,null,null,null,null,null,"",null,null,null,null,null,null,null,null,null,0,0,""]
[null,null,null,null,null,null,null,null,null,null,null,"",null,null,null,null,null,null,null,null,null,0,0,""]
[null,null,null,null,null,null,null,null,null,null,null,"",null,null,null,null,null,null,null,null,null,0,0,""]
[null,null,null,null,null,null,null,null,null,null,null,"",null,null,null,null,null,null,null,null,null,0,0,""]
[null,null,null,null,null,null,null,null,null,null,null,"",null,null,null,null,null,null,null,null,null,0,0,""]
[null,null,null,null,null,null,null,null,null,null,null,"",null,null,null,null,null,null,null,null,null,0,0,""]
[null,null,null,null,null,null,null,null,null,null,null,"",null,null,null,null,null,null,null,null,null,0,0,""]
[null,null,null,null,null,null,null,null,null,null,null,"",null,null,null,null,null,null,null,null,null,0,0,""]
[null,null,null,null,null,null,null,null,null,null,null,"",null,null,null,null,null,null,null,null,null,0,0,""]
[null,null,null,null,null,null,null,null,null,null,null,"",null,null,null,null,null,null,null,null,null,0,0,""]
[null,null,null,null,null,null,null,null,null,null,null,"",null,null,null,null,null,null,null,null,null,0,0,""]
[null,null,null,null,null,null,null,null,null,null,null,"",null,null,null,null,null,null,null,null,null,0,0,""]
[null,null,null,null,null,null,null,null,null,null,null,"",null,null,null,null,null,null,null,null,null,0,0,""]
[null,null,null,null,null,null,null,null,null,null,null,"",null,null,null,null,null,null,null,null,null,0,0,""]
[null,null,null,null,null,null,null,null,null,null,null,"",null,null,null,null,null,null,null,null,null,0,0,""]
[null,null,null,null,null,null,null,null,null,null,null,"",null,null,null,null,null,null,null,null,null,0,0,""]
[null,null,null,null,null,null,null,null,null,null,null,"",null,null,null,null,null,null,null,null,null,0,0,""]
[null,null,null,null,null,null,null,null,null,null,null,"",null,null,null,null,null,null,null,null,null,0,0,""]
[null,null,null,null,null,null,null,null,null,null,null,"",null,null,null,null,null,null,null,null,null,0,0,""]
[null,null,null,null,null,null,null,null,null,null,null,"",null,null,null,null,null,null,null,null,null,0,0,""]
[null,null,null,null,null,null,null,null,null,null,null,"",null,null,null,null,null,null,null,null,null,0,0,""]
[null,null,null,null,null,null,null,null,null,null,null,"",null,null,null,null,null,null,null,null,null,0,0,""]
[null,null,null,null,null,null,null,null,null,null,null,"",null,null,null,null,null,null,null,null,null,0,0,""]
[null,null,null,null,null,null,null,null,null,null,null,"",null,null,null,null,null,null,null,null,null,0,0,""]
[null,null,null,null,null,null,null,null,null,null,null,{"$f":"IF(K81=\"\",\"\",K81-K80)","v":""},null,null,null,null,null,null,null,null,null,0,{"$f":"IF(L80=\"\",0,L80)*КИЛОМЕТР+(M80+O80+Q80+S80)*НАСОС+(N80+P80+R80+T80)*БЕЗ_НАСОСА","v":0},""]
[null,null,null,null,null,null,null,null,null,null,null,"",null,null,null,null,null,null,null,null,null,{"$f":"W81","v":0},0,{"$f":"IF(W81=0,\"\",X80-W81+U81)","v":""}]
[null,null,null,null,null,null,null,null,null,null,null,"",null,null,null,null,null,null,null,null,null,0,0,""]
[null,null,null,null,null,null,null,null,null,null,null,"",null,null,null,null,null,null,null,null,null,0,0,""]
[null,null,null,null,null,null,null,null,null,null,null,"",null,null,null,null,null,null,null,null,null,0,0,""]
[null,null,null,null,null,null,null,null,null,null,null,"",null,null,null,null,null,null,null,null,null,0,0,""]
[null,null,null,null,null,null,null,null,null,null,null,"",null,null,null,null,null,null,null,null,null,0,0,""]
[null,null,null,null,null,null,null,null,null,null,null,"",null,null,null,null,null,null,null,null,null,0,0,""]
[null,null,null,null,null,null,null,null,null,null,null,"",null,null,null,null,null,null,null,null,null,0,0,{"$f":"IF(W88=0,\"\",X87-W88+U88)","v":""}]
[null,null,null,null,null,null,null,null,null,null,null,"",null,null,null,null,null,null,null,null,null,0,0,""]
[null,null,null,null,null,null,null,null,null,null,null,"",null,null,null,null,null,null,null,null,null,0,0,""]
["                    ИТОГО за месяц",null,null,null,null,null,null,null,null,null,null,{"$f":"SUM(L16:L90)","v":0},0,0,0,0,0,5,0,0,0,0.82500000000000007,0.82500000000000007,{"$f":"Остаток_на_начало_месяца+Заправлено-W91","v":117.175}]
["                    Израсходовано топлива по элементам работы(в литрах)",null,null,null,null,null,null,null,null,null,null,{"$f":"L91*КИЛОМЕТР","v":0},{"$f":"M91*НАСОС","v":0},{"$f":"N91*БЕЗ_НАСОСА","v":0},{"$f":"O91*НАСОС","v":0},{"$f":"P91*БЕЗ_НАСОСА","v":0},{"$f":"Q91*НАСОС","v":0},{"$f":"R91*БЕЗ_НАСОСА","v":0.82500000000000007},{"$f":"S91*НАСОС","v":0},{"$f":"T91*БЕЗ_НАСОСА","v":0}]
["     Наработка а/м  за отчетный месяц в км.(с учетом приведенного)",null,null,null,null,null,null,null,null,{"$f":"(M91+O91+Q91+S91)/60*50+L91","v":0},null,"км. "]
[null,null,null,null,null,null,null,null,null,null,null,null,null,null,null,null,"Текущая норма",null,null,null,null,"Пробег по спидометру, км",null,null,{"$f":"L91","v":0}]
[null,null,"Руководитель подразделения",null,null,null,null,null,null,null,null,"Старший водитель",null,null,null,null,"1 км",null,null,0.53200000000000003,null,"Наработка с насосом м.ч.",null,null,{"$f":"(M91+O91+Q91+S91)/60","v":0}]
[null,null,"<_____>______________________2015г.",null,null,null,null,null,null,null,null,"<_____>______________________",null,null,null,"2015г.","1 мин с насосом",null,null,null,null,"Наработка без насоса",null,null,{"$f":"N91+P91+R91+T91","v":5}]
[null,null,null,null,null,null,null,null,null,null,null,null,null,null,null,null,"1 мин без насоса",null,null,0.16500000000000001,null,"Приведенный пробег",null,null,{"$f":"Y95*50","v":0}]
[null,null,null,null,null,null,null,null,null,null,null,null,null,null,null,null,null,null,null,null,null,"Общий пробег",null,null,{"$f":"Y94+Y97","v":0}]

{"sheet":"отчёт ","index":10,"n_rows":65,"n_cols":22,"rows_kept":65,"cut":false,"hidden":false,"merged":[[58,7,58,21],[59,7,59,21],[60,7,60,21],[64,1,64,3],[64,11,64,14],[32,16,33,17],[29,0,35,0],[29,1,35,2],[29,3,35,4],[29,5,35,5],[29,6,35,6],[29,7,31,8],[29,9,35,9],[29,10,31,11],[29,12,31,13],[29,14,31,21],[32,7,35,7],[32,18,33,19],[32,20,33,21],[34,14,35,14],[34,15,35,15],[34,16,35,16],[34,17,35,17],[34,18,35,18],[34,19,35,19],[34,20,35,20],[34,21,35,21],[54,2,54,4],[56,10,56,11],[56,2,56,4],[49,2,49,4],[50,2,50,4],[51,2,51,4],[52,2,52,4],[55,2,55,4],[41,10,41,11],[53,2,53,4],[47,10,47,11],[46,10,46,11],[46,1,46,3],[53,10,53,11],[42,10,42,11],[44,10,44,11],[45,10,45,11],[42,1,42,3],[5,14,5,16],[5,0,5,13],[60,2,60,4],[57,0,57,21],[58,5,58,6],[59,5,59,6],[60,5,60,6],[58,2,58,4],[6,12,8,13],[9,12,12,12],[48,10,48,11],[48,1,48,3],[13,1,13,2],[24,1,25,2],[28,1,28,2],[59,2,59,4],[52,10,52,11],[32,11,35,11],[32,12,35,12],[32,13,35,13],[32,14,33,15],[20,1,20,2],[39,10,39,11],[39,1,39,3],[0,0,0,21],[1,0,1,21],[2,0,2,21],[3,0,3,21],[18,0,19,0],[18,1,19,2],[18,3,19,3],[9,8,12,8],[9,10,12,10],[9,11,12,11],[16,1,16,2],[17,1,17,2],[15,1,15,2],[14,1,14,2],[9,14,10,15],[6,0,12,0],[6,14,8,21],[9,7,12,7],[9,16,10,17],[9,18,10,19],[9,20,10,21],[11,14,12,14],[11,15,12,15],[11,16,12,16],[21,1,21,2],[27,1,27,2],[44,1,44,3],[45,1,45,3],[23,1,23,2],[38,10,38,11],[43,10,43,11],[41,1,41,3],[43,1,43,3],[40,1,40,3],[32,8,35,8],[32,10,35,10],[11,17,12,17],[11,21,12,21],[11,18,12,18],[11,19,12,19],[11,20,12,20],[9,13,12,13],[58,0,60,1],[6,7,8,8],[6,9,12,9],[6,10,8,11],[47,1,47,3],[6,1,12,2],[6,3,12,4],[6,5,12,5],[6,6,12,6],[22,1,22,2],[36,1,36,3],[37,1,37,3],[38,1,38,3],[36,10,36,11],[37,10,37,11],[49,0,56,1],[40,10,40,11],[26,1,26,2]]}
["                                                                                                                                                                                                                                                                                                                                                                                                                                 УТВЕРЖДАЮ"]
["                                                                                                                                                                                                                                                                                                                                                     Директор КГКУ 9- ОПС"]
["                                                                                                                                                                                                                                                                                                                                                  _____________________"]
["                                                                                                                                                                                                                                                                                                                                           \"_____\"_______________2015г."]
[]
["                                                         Отчёт о работе автотехники и раходе ГСМ по 37 ПЧ 9-ОПС за",null,null,null,null,null,null,null,null,null,null,null,null,null,{"$f":"Нормы!G3","v":"Март   2015 г"}]
["№ П/П","Марка  автомобиля",null,"Гос.  Номер",null,"Остаток  на  начало месяца","Заправлено  за  месяц  л","Расход",null,"Остаток  на  конец  месяца","пробег км ",null,"расход масла Л",null,"Работа  техники  минут"]
[]
[]
[null,null,null,null,null,null,null,"по  норме","фактически",null,"Общий"," по спидометру","моторного","трансмиссионного","на  пожаре",null,"на  учениях",null,"смена  караула",null,"прочие"]
[]
[null,null,null,null,null,null,null,null,null,null,null,null,null,null,"с агрег","без агрег","с агрег","без агрег","с агрег","без агрег","с агрег","без агрег"]
[]
[1,"Ац – 40 (130)",null,"Х 088 ОМ",80,36,{"$f":"'088'!Заправлено","v":0},{"$f":"'088'!W91","v":0.495},{"$f":"H14","v":0.495},{"$f":"ROUND(F14+G14-I14,0)","v":36},{"$f":"ROUND(((O14+Q14+S14+U14)/60*50)+L14,0)","v":0},{"$f":"'088'!L91","v":0},{"$f":"I14/100*2.2","v":1.089E-2},null,{"$f":"'088'!M91","v":0},{"$f":"'088'!N91","v":0},{"$f":"'088'!O91","v":0},{"$f":"'088'!P91","v":0},{"$f":"'088'!Q91","v":0},{"$f":"'088'!R91","v":3},{"$f":"'088'!S91","v":0},{"$f":"'088'!T91","v":0}]
[2,"Ац – 40 (130)",null,"Х 090 ОМ",80,47,{"$f":"' 090   '!Заправлено","v":0},{"$f":"' 090   '!W88","v":0.495},{"$f":"H15","v":0.495},{"$f":"ROUND(F15+G15-I15,0)","v":47},{"$f":"ROUND(((O15+Q15+S15+U15)/60*50)+L15,0)","v":0},{"$f":"' 090   '!L88","v":0},{"$f":"I15/100*2.2","v":1.089E-2},null,{"$f":"' 090   '!M88","v":0},{"$f":"' 090   '!N88","v":0},{"$f":"' 090   '!O88","v":0},{"$f":"' 090   '!P88","v":0},{"$f":"' 090   '!Q88","v":0},{"$f":"' 090   '!R88","v":3},{"$f":"' 090   '!S88","v":0},{"$f":"' 090   '!T88","v":0}]
[3,"Ац – 40 (130)",null,"Х 093 ОМ",80,51,{"$f":"' 093  '!Заправлено","v":0},{"$f":"' 093  '!W91","v":0.495},{"$f":"H16","v":0.495},51,{"$f":"ROUND(((O16+Q16+S16+U16)/60*50)+L16,0)","v":0},{"$f":"' 093  '!L91","v":0},{"$f":"I16/100*2.2","v":1.089E-2},null,{"$f":"' 093  '!M91","v":0},{"$f":"' 093  '!N91","v":0},{"$f":"' 093  '!O91","v":0},{"$f":"' 093  '!P91","v":0},{"$f":"' 093  '!Q91","v":0},{"$f":"' 093  '!R91","v":3},{"$f":"' 093  '!S91","v":0},{"$f":"' 093  '!T91","v":0}]
[4,"АЛГ -30 (131)",null,"Х 097 ОМ",80,0,{"$f":"[0]!Заправлено","v":{"$error":"#REF!"}},{"$f":"#REF!","v":{"$error":"#REF!"}},{"$error":"#REF!"},{"$error":"#REF!"},{"$f":"ROUND(((O17+Q17+S17+U17)/60*50)+L17,0)","v":{"$error":"#REF!"}},{"$f":"#REF!","v":{"$error":"#REF!"}},{"$f":"I17/100*2.2","v":{"$error":"#REF!"}},null,{"$f":"#REF!","v":{"$error":"#REF!"}},{"$f":"#REF!","v":{"$error":"#REF!"}},{"$f":"#REF!","v":{"$error":"#REF!"}},{"$f":"#REF!","v":{"$error":"#REF!"}},{"$f":"#REF!","v":{"$error":"#REF!"}},{"$f":"#REF!","v":{"$error":"#REF!"}},{"$f":"#REF!","v":{"$error":"#REF!"}},{"$f":"#REF!","v":{"$error":"#REF!"}}]
[5,"АЛ 30( 4326)",null,"Х 351 АР","дт",94,{"$f":"'351'!Заправлено","v":0},{"$f":"'351'!W91","v":2.0350000000000001},2.0350000000000001,92,{"$f":"ROUND(((O18+Q18+S18+U18)/60*50)+L18,0)","v":6},{"$f":"'351'!L91","v":0},{"$f":"I18/100*2.8","v":5.6979999999999996E-2},null,{"$f":"'351'!M91","v":0},{"$f":"'351'!N91","v":0},{"$f":"'351'!O91","v":0},{"$f":"'351'!P91","v":0},{"$f":"'351'!Q91","v":7},{"$f":"'351'!R91","v":3},{"$f":"'351'!S91","v":0},{"$f":"'351'!T91","v":0}]
[6,"ПНС-110 (131)",null,"Х 096 ОМ",80,null,{"$f":"[0]!Заправлено","v":{"$error":"#REF!"}},{"$f":"#REF!","v":{"$error":"#REF!"}},{"$error":"#REF!"},null,{"$f":"L19","v":{"$error":"#REF!"}},{"$f":"#REF!","v":{"$error":"#REF!"}},{"$f":"I19/100*2.2","v":{"$error":"#REF!"}},null,null,{"$f":"#REF!","v":{"$error":"#REF!"}},null,{"$f":"#REF!","v":{"$error":"#REF!"}},null,{"$f":"#REF!","v":{"$error":"#REF!"}},null,{"$f":"#REF!","v":{"$error":"#REF!"}}]
[null,null,null,null,"дт",null,{"$f":"[0]!Заправлено","v":{"$error":"#REF!"}},{"$f":"#REF!","v":{"$error":"#REF!"}},{"$error":"#REF!"},null,"----","----",null,null,{"$f":"#REF!","v":{"$error":"#REF!"}},{"$f":"#REF!","v":{"$error":"#REF!"}},{"$f":"#REF!","v":{"$error":"#REF!"}},{"$f":"#REF!","v":{"$error":"#REF!"}},{"$f":"#REF!","v":{"$error":"#REF!"}},{"$f":"#REF!","v":{"$error":"#REF!"}},{"$f":"#REF!","v":{"$error":"#REF!"}},{"$f":"#REF!","v":{"$error":"#REF!"}}]
[7,"АР-2 (131)",null,"Х 089 ОМ",80,null,{"$f":"[0]!Заправлено","v":{"$error":"#REF!"}},{"$f":"#REF!","v":{"$error":"#REF!"}},{"$f":"H21","v":{"$error":"#REF!"}},null,{"$f":"ROUND(((O21+Q21+S21+U21)/60*50)+L21,0)","v":{"$error":"#REF!"}},{"$f":"#REF!","v":{"$error":"#REF!"}},{"$f":"I21/100*2.2","v":{"$error":"#REF!"}},null,{"$f":"#REF!","v":{"$error":"#REF!"}},{"$f":"#REF!","v":{"$error":"#REF!"}},{"$f":"#REF!","v":{"$error":"#REF!"}},{"$f":"#REF!","v":{"$error":"#REF!"}},{"$f":"#REF!","v":{"$error":"#REF!"}},{"$f":"#REF!","v":{"$error":"#REF!"}},{"$f":"#REF!","v":{"$error":"#REF!"}},{"$f":"#REF!","v":{"$error":"#REF!"}}]
[8,"АЦ-9-40 (43118)",null,"Х 883ОМ","дт",424,{"$f":"' 883  '!Заправлено","v":0},{"$f":"' 883  '!W85","v":0.82500000000000007},0.82500000000000007,423,{"$f":"ROUND(((O22+Q22+S22+U22)/60*50)+L22,0)","v":0},{"$f":"' 883  '!L85","v":0},{"$f":"I22/100*2.8","v":2.3099999999999999E-2},null,{"$f":"' 883  '!M85","v":0},{"$f":"' 883  '!N85","v":0},{"$f":"' 883  '!O85","v":0},{"$f":"' 883  '!P85","v":0},{"$f":"' 883  '!Q85","v":0},{"$f":"' 883  '!R85","v":5},{"$f":"' 883  '!S85","v":0},{"$f":"' 883  '!T85","v":0}]
[10,"АЦ 7,5-40 (43118)",null,"У 007АХ","дт",158,{"$f":"'007'!Заправлено","v":0},{"$f":"'007'!W95","v":0.82500000000000007},{"$f":"H23","v":0.82500000000000007},157,{"$f":"ROUND(((O23+Q23+S23+U23)/60*50)+L23,0)","v":0},{"$f":"'007'!L95","v":0},{"$f":"I23/100*2.8","v":2.3099999999999999E-2},null,{"$f":"'007'!M95","v":0},{"$f":"'007'!N95","v":0},{"$f":"'007'!O95","v":0},{"$f":"'007'!P95","v":0},{"$f":"'007'!Q95","v":0},{"$f":"'007'!R95","v":5},{"$f":"'007'!S95","v":0},{"$f":"'007'!T95","v":0}]
[11,"АГДЗС",null,"О 991 АХ","дт",118,{"$f":"АГДЗС!Заправлено","v":0},{"$f":"АГДЗС!W91","v":0.82500000000000007},{"$f":"H24","v":0.82500000000000007},117,0,{"$f":"АГДЗС!L91","v":0},2.3099999999999999E-2,null,{"$f":"АГДЗС!M91","v":0},{"$f":"АГДЗС!N91","v":0},{"$f":"АГДЗС!O91","v":0},{"$f":"АГДЗС!P91","v":0},{"$f":"АГДЗС!Q91","v":0},{"$f":"АГДЗС!R91","v":5},{"$f":"АГДЗС!S91","v":0},{"$f":"АГДЗС!T91","v":0}]
[12,"ПНС-100 (5350)",null,"О 992 АХ","дт",156,{"$f":"'ПНС  -100'!Заправлено","v":0},{"$f":"'ПНС  -100'!W91","v":0.82500000000000007},0.82500000000000007,155,0,{"$f":"'ПНС  -100'!L91","v":0},2.3099999999999999E-2,null,{"$f":"'ПНС  -100'!M91","v":0},{"$f":"'ПНС  -100'!N91","v":0},{"$f":"'ПНС  -100'!O91","v":0},{"$f":"'ПНС  -100'!P91","v":0},{"$f":"'ПНС  -100'!Q91","v":0},{"$f":"'ПНС  -100'!R91","v":5},{"$f":"'ПНС  -100'!S91","v":0},{"$f":"'ПНС  -100'!T91","v":0}]
[13,null,null,"ЯМЗ 238 Д","дт",146,{"$f":"'ПНС-100 дизель'!Заправлено","v":0},{"$f":"'ПНС-100 дизель'!W91","v":1.6500000000000001},1.6500000000000001,144,"----","----",4.6199999999999998E-2,null,{"$f":"'ПНС-100 дизель'!M91","v":0},{"$f":"'ПНС-100 дизель'!N91","v":0},{"$f":"'ПНС-100 дизель'!O91","v":0},{"$f":"'ПНС-100 дизель'!P91","v":0},{"$f":"'ПНС-100 дизель'!Q91","v":0},{"$f":"'ПНС-100 дизель'!R91","v":10},{"$f":"'ПНС-100 дизель'!S91","v":0},{"$f":"'ПНС-100 дизель'!T91","v":0}]
[14,"АР-2 (5350)",null,"Н 077 КР","дт",128,{"$f":"'АР-2(5350)'!Заправлено","v":0},{"$f":"'АР-2(5350)'!W91","v":0.82500000000000007},0.82500000000000007,127,0,{"$f":"'АР-2(5350)'!L91","v":0},2.3099999999999999E-2,null,{"$f":"'АР-2(5350)'!M91","v":0},{"$f":"'АР-2(5350)'!N91","v":0},{"$f":"'АР-2(5350)'!O91","v":0},{"$f":"'АР-2(5350)'!P91","v":0},{"$f":"'АР-2(5350)'!Q91","v":0},{"$f":"'АР-2(5350)'!R91","v":5},{"$f":"'АР-2(5350)'!S91","v":0},{"$f":"'АР-2(5350)'!T91","v":0}]
[15,"Зил - 131",null,"Х 098 ОМ",80,33,null,null,0,33,null,null,{"$f":"I28/100*2.2","v":0}]
[16,"Тойота Спринтер",null,"Х 009 ОМ",92,9,null,null,0,9]
["№ П/П","Марка  автомобиля",null,"Гос.  Номер",null,"Остаток  на  начало месяца","Заправлено  за  месяц  л","Расход",null,"Остаток  на  конец  месяца","пробег км ",null,"расход масла Л",null,"Работа  техники  минут"]
[]
[]
[null,null,null,null,null,null,null,"по  норме","фактически",null,"Общий"," по спидометру","моторного","трансмиссионного","на  пожаре",null,"на  учениях",null,"смена  караула",null,"прочие"]
[]
[null,null,null,null,null,null,null,null,null,null,null,null,null,null,"с      агрег","без агрег","с      агрег","без агрег","с     агрег","без агрег","с      агрег","без агрег"]
[]
[17,"Бензопила «Хускварна» 240",null,null,92,0.17,{"$f":"'пила 240'!Заправлено","v":0},{"$f":"'пила 240'!W71","v":0},0,{"$f":"ROUND(F37+G37-I37,2)","v":0.17},null,null,null,null,{"$f":"'пила 240'!M71","v":0},{"$f":"'пила 240'!N71","v":0},{"$f":"'пила 240'!O71","v":0},{"$f":"'пила 240'!P71","v":0},{"$f":"'пила 240'!Q71","v":0},{"$f":"'пила 240'!R71","v":0},{"$f":"'пила 240'!S71","v":0},{"$f":"'пила 240'!T71","v":0}]
[18,"Бензорез «Хускварна» К760",null,null,92,0.61,{"$f":"'Бензорез К 760'!Заправлено","v":0},{"$f":"'Бензорез К 760'!W71","v":0},0,0.61,null,null,null,null,{"$f":"'Бензорез К 760'!M71","v":0},{"$f":"'Бензорез К 760'!N71","v":0},{"$f":"'Бензорез К 760'!O71","v":0},{"$f":"'Бензорез К 760'!P71","v":0},{"$f":"'Бензорез К 760'!Q71","v":0},{"$f":"'Бензорез К 760'!R71","v":0},{"$f":"'Бензорез К 760'!S71","v":0},{"$f":"'Бензорез К 760'!T71","v":0}]
[19," Воздуходув «Хускварна» 356 ВТ",null,null,92,1.37,null,null,0,1.37]
[20,"АСИ»Спрут» СИ64",null,null,92,0.11,{"$f":"'\"Спрут\"'!Заправлено","v":0},{"$f":"'\"Спрут\"'!W71","v":0},0,0.11,null,null,null,null,{"$f":"'\"Спрут\"'!M71","v":0},{"$f":"'\"Спрут\"'!N71","v":0},{"$f":"'\"Спрут\"'!O71","v":0},{"$f":"'\"Спрут\"'!P71","v":0},{"$f":"'\"Спрут\"'!Q71","v":0},{"$f":"'\"Спрут\"'!R71","v":0},{"$f":"'\"Спрут\"'!S71","v":0},{"$f":"'\"Спрут\"'!T71","v":0}]
[21,"АОУ  ELG (T7) 600/400S 2.7 ",null,null,92,2.38,{"$f":"'Столб '!Заправлено","v":0},{"$f":"'Столб '!W71","v":0},0,2.38,null,null,null,null,{"$f":"'Столб '!M71","v":0},{"$f":"'Столб '!N71","v":0},{"$f":"'Столб '!O71","v":0},{"$f":"'Столб '!P71","v":0},{"$f":"'Столб '!Q71","v":0},{"$f":"'Столб '!R71","v":0},{"$f":"'Столб '!S71","v":0},{"$f":"'Столб '!T71","v":0}]
[22,"Дымосос «Буран» ДПМ-20 ",null,null,92,2.76,{"$f":"Дымосос!Заправлено","v":0},{"$f":"Дымосос!W71","v":0},0,2.76,null,null,null,null,{"$f":"Дымосос!M71","v":0},{"$f":"Дымосос!N71","v":0},{"$f":"Дымосос!O71","v":0},{"$f":"Дымосос!P71","v":0},{"$f":"Дымосос!Q71","v":0},{"$f":"Дымосос!R71","v":0},{"$f":"Дымосос!S71","v":0},{"$f":"Дымосос!T71","v":0}]
[23,"Моновентилятор ВРМ-160",null,null,92,0.44,{"$f":"' ВРМ-160'!Заправлено","v":0},{"$f":"' ВРМ-160'!W71","v":0},0,0.44,null,null,null,null,{"$f":"' ВРМ-160'!M71","v":0},{"$f":"' ВРМ-160'!N71","v":0},{"$f":"' ВРМ-160'!O71","v":0},{"$f":"' ВРМ-160'!P71","v":0},{"$f":"' ВРМ-160'!Q71","v":0},{"$f":"' ВРМ-160'!R71","v":0},{"$f":"' ВРМ-160'!S71","v":0},{"$f":"' ВРМ-160'!T71","v":0}]
[24,"Генератор «Вепрь» АПБ 6-230 ВХ  ",null,null,92,3.56,{"$f":"'Вепрь АПВ-6'!Заправлено","v":0},{"$f":"'Вепрь АПВ-6'!W71","v":0},0,3.56,null,null,null,null,{"$f":"'Вепрь АПВ-6'!M71","v":0},{"$f":"'Вепрь АПВ-6'!N71","v":0},{"$f":"'Вепрь АПВ-6'!O71","v":0},{"$f":"'Вепрь АПВ-6'!P71","v":0},{"$f":"'Вепрь АПВ-6'!Q71","v":0},{"$f":"'Вепрь АПВ-6'!R71","v":0},{"$f":"'Вепрь АПВ-6'!S71","v":0},{"$f":"'Вепрь АПВ-6'!T71","v":0}]
[25,"Генератор SH-6000",null,null,92,4.03,{"$f":"'SH-6000'!Заправлено","v":0},{"$f":"'SH-6000'!W71","v":0},0,4.03,null,null,null,null,{"$f":"'SH-6000'!M71","v":0},{"$f":"'SH-6000'!N71","v":0},{"$f":"'SH-6000'!O71","v":0},{"$f":"'SH-6000'!P71","v":0},{"$f":"'SH-6000'!Q71","v":0},{"$f":"'SH-6000'!R71","v":0},{"$f":"'SH-6000'!S71","v":0},{"$f":"'SH-6000'!T71","v":0}]
[26,"Генератор SH-6500",null,null,92,4.78,{"$f":"' SH-6500'!Заправлено","v":0},{"$f":"' SH-6500'!W71","v":0},0,4.78,null,null,null,null,{"$f":"' SH-6500'!M71","v":0},{"$f":"' SH-6500'!N71","v":0},{"$f":"' SH-6500'!O71","v":0},{"$f":"' SH-6500'!P71","v":0},{"$f":"' SH-6500'!Q71","v":0},{"$f":"' SH-6500'!R71","v":0},{"$f":"' SH-6500'!S71","v":0},{"$f":"' SH-6500'!T71","v":0}]
[27,"Генератор АДП 16-Т400 ВЛ",null,null,"дт",16.52,{"$f":"'АДП-16'!Заправлено","v":0},{"$f":"'АДП-16'!W71","v":0},0,16.52,null,null,null,null,{"$f":"'АДП-16'!M71","v":0},{"$f":"'АДП-16'!N71","v":0},{"$f":"'АДП-16'!O71","v":0},{"$f":"'АДП-16'!P71","v":0},{"$f":"'АДП-16'!Q71","v":0},{"$f":"'АДП-16'!R71","v":0},{"$f":"'АДП-16'!S71","v":0},{"$f":"'АДП-16'!T71","v":0}]
[28,"Бензокосилка SPARTA",null,null,92,0.08,{"$f":"Бензокоса!Заправлено","v":0},{"$f":"Бензокоса!W39","v":0},0,0.08,null,null,null,null,null,null,null,null,null,{"$f":"Бензокоса!R39","v":0}]
[29,"Бойлер KITURAMI-200R",null,null,"дт",12,null,null,0,{"$f":"F49+G49-I49","v":12}]
["                                                                                                                                       ИТОГО",null,"АИ-80",null,null,{"$f":"SUM(F14:F16,F28)","v":167},{"$f":"SUM(G14:G16,G28)","v":0},{"$f":"SUM(H14:H16,H28)","v":1.4849999999999999},{"$f":"H50","v":1.4849999999999999},{"$f":"SUM(J14:J16,J28)","v":167},{"$f":"SUM(K14:K16,K28)","v":0},0,3.2670000000000005E-2,0,0,0,0,0,0,9,0,0]
[null,null," АИ-92",null,null,{"$f":"SUM(F37:F46)+F48+F29","v":29.29},{"$f":"SUM(G37:G46)+G48+G29","v":0},0,{"$f":"H51","v":0},{"$f":"SUM(J37:J46)+J48+J29","v":29.29},{"$f":"K29","v":0},{"$f":"L29","v":0},null,null,{"$f":"SUM(O37:O46)+O48","v":0},{"$f":"SUM(P37:P46)+P48","v":0},0,0,0,0,0,0]
[null,null,"   Д\\Т",null,null,{"$f":"SUM(F18,F22:F27,F47,F49)","v":1252.52},{"$f":"SUM(G18,G22:G27,G47,G49)","v":0},{"$f":"SUM(H18,H22:H27,H47,H49)","v":7.8100000000000014},{"$f":"H52","v":7.8100000000000014},{"$f":"SUM(J18,J22:J27,J47,J49)","v":1243.52},{"$f":"SUM(K18,K22:K27,K47,K49)","v":6},{"$f":"SUM(L18,L20,L22:L27)","v":0},null,null,{"$f":"SUM(O18,O22:O27,O47,O49)","v":0},0,0,0,7,38,0,0]
[null,null,"Масло 2-х тактное",null,null,null,null,null,null,null,null,null,{"$f":"SUM(H37:H43,H48)/25","v":0}]
[null,null,"М8В"]
[null,null,"М10 Г2К",null,null,null,null,null,null,null,null,null,{"$f":"SUM(M14:M16,M18,M22:M28)","v":0.25135000000000002}]
[null,null,"Трансмиссионное",null,null,null,null,null,null,null,null,null,{"$f":"(I50/100*0.3)+((I22+I18+I23)/100*0.4)","v":1.9195000000000004E-2}]
[null,null,"Смазка консистентная",null,null,null,null,null,null,null,null,null,{"$f":"(I50/100*0.2)+((I22+I18+I23)/100*0.35)","v":1.5867500000000003E-2}]
[]
["РЕЗЕРВ               на конец месяца",null,"А-80",null,null,null,null,"                  0 (остаток)  +  100 (взято с АЗС) - 100 (заправлено в баки) =  0"]
[null,null,"Д/Т",null,null,null,null,"                  0 (остаток)  +  500 (взято с АЗС) - 500 (заправлено в  баки) = 0"]
[null,null,"Аи-92",null,null,5.2,null,"                  4,5 (остаток)  + 340 (взято с АЗС) -  343,5 (заправлено в баки) = 1"]
[]
[]
[]
[null,"Старший водитель",null,null,"____________________",null,null,null,null,null,null,"Начальник 37-ПЧ",null,null,null,"_________________"]

{"sheet":"Нормы","index":11,"n_rows":106,"n_cols":7,"rows_kept":106,"cut":false,"hidden":false,"merged":[[0,0,0,3],[2,6,2,7],[95,0,95,2],[65,1,66,1],[26,0,26,3],[27,0,27,3]]}
["ЛЕТНИЕ НОРМЫ  "]
["ТИП. МАРКА АВТОМОБИЛЯ","РАСХОД НА 1 КМ","РАСХОД С АГРЕГАТОМ","РАСХОД БЕЗ АГРЕГАТА"]
["АЦ 40(130)",0.45600000000000002,0.33,0.15,null,"ДАТА   --","Март   2015 г"]
["АЦ 9-40 КАМАЗ",0.50600000000000001,0.25,0.15]
["АЦ 7,5-40 КАМАЗ (Е-4)",0.50900000000000001,0.25,0.15]
["АЛГ 30 (131)",0.56399999999999995,0.25,0.15]
["АЛ 30 КАМАЗ",0.44,0.2,0.15]
["ПНС 110 (131)",0.58099999999999996,"-",0.15]
["ПНС ДИЗЕЛЬ","-",1.1000000000000001,0.35]
["АР-2(131)",0.57499999999999996,null,0.15]
["ПНС 100 (5350)",0.48299999999999998,"-",0.15]
["ПНС (Дизель)","-",0.66400000000000003,0.15]
["АР-2 (5350) ",0.46700000000000003,"-",0.15]
["АГДЗС (43502)",0.48699999999999999,"-",0.15]
["БЕНЗОПИЛА 240",null,0.01]
["БЕНЗОРЕЗ К 760",null,4.2000000000000003E-2]
["РАНЦЕВАЯ ДУЙКА 356 ВТ",null,0.02]
["ГАСИ \"СПРУТ\"",null,8.5000000000000006E-3]
["ГЕНЕРАТОР 6000",null,3.9E-2]
["ГЕНЕРАТОР 6500",null,4.7E-2]
["БЕНЗОКОСА",null,0.01]
["ВОЗДУХОДУВКА",null,0.01]
["ДЫМОСОС \"Буран\" ДПМ 20",null,7.0000000000000007E-2]
["СВЕТОВОЙ СТОЛБ",null,0.02]
["ГЕНЕРАТОР ВЕПРЬ АПВ 6-230",null,0.04]
["ГЕНЕРАТОР АДП 16-Т 400",null,4.2999999999999997E-2]
[]
["ЗИМНИЕ НОРМЫ  "]
["ТИП. МАРКА АВТОМОБИЛЯ","РАСХОД НА 1 КМ","РАСХОД С АГРЕГАТОМ","РАСХОД БЕЗ АГРЕГАТА"]
["АЦ 40(130)",0.498,0.36299999999999999,0.16500000000000001]
["АЦ 9-40 КАМАЗ",0.55200000000000005,0.27500000000000002,0.16500000000000001]
["АЦ 7,5-40 КАМАЗ (Е-4)",0.55600000000000005,0.27500000000000002,0.16500000000000001]
["АЛГ 30 (131)",0.61299999999999999,0.27500000000000002,0.16500000000000001]
["АЛ 30 КАМАЗ",0.48,0.22,0.16500000000000001]
["ПНС 110 (131)",0.63100000000000001,"-",0.16500000000000001]
["ПНС ДИЗЕЛЬ","-",1.21,0.38500000000000001]
["АР-2 (131)",0.625,"-",0.16500000000000001]
["ПНС 100 (5350)",0.52600000000000002,"-",0.16500000000000001]
["ПНС (Дизель)","-",0.73,0.16500000000000001]
["АР-2 (5350) ",0.51,"-",0.16500000000000001]
["АГДЗС (43502)",0.53200000000000003,"-",0.16500000000000001]
["БЕНЗОПИЛА 240",null,1.0999999999999999E-2]
["БЕНЗОРЕЗ К 760",null,4.6199999999999998E-2]
["РАНЦЕВАЯ ДУЙКА 356 ВТ",null,0.02]
["ГАСИ \"СПРУТ\"",null,9.2999999999999992E-3]
["ГЕНЕРАТОР 6000",null,3.9E-2]
["ГЕНЕРАТОР 6500",null,4.7E-2]
["БЕНЗОКОСА",null,0.01]
["ВОЗДУХОДУВКА",null,0.01]
["ДЫМОСОС \"Буран\" ДПМ 20",null,7.6999999999999999E-2]
["СВЕТОВОЙ СТОЛБ",null,0.02]
["ГЕНЕРАТОР ВЕПРЬ АПВ 6-230",null,0.04]
["ГЕНЕРАТОР АДП 16-Т 400",null,4.2999999999999997E-2]
[]
[]
[]
[]
[]
[]
[]
[null,null,"Факт","Плюс/минус"]
["АР-2 (131)","Х 089 ОМ"]
["Ац – 40 (130)","Х 090 ОМ",71,{"$f":"C63-'отчёт '!J15","v":24}]
["Ац – 40 (130)","Х 093 ОМ",95,{"$f":"C64-'отчёт '!J16","v":44}]
["АЛ 30( 4326)","Х 351 АР",96,{"$f":"C65-'отчёт '!J18","v":4}]
["ПНС-110 (131)","Х 096 ОМ"]
["ПНС дизель"]
["АЦ-9-40 КамАЗ 43118","Х 883ОМ",327,{"$f":"C68-'отчёт '!J22","v":-96}]
["АЦ 7,5-40 КамАЗ 43118","У 007 АХ",160,{"$f":"C69-'отчёт '!J23","v":3}]
["Зил - 131","Х 098 ОМ",13,{"$f":"C70-'отчёт '!J28","v":-20}]
["Ац – 40 (130)","Х 088 ОМ",52,{"$f":"C71-'отчёт '!J14","v":16}]
["Агдзс","О 991 АХ",132,{"$f":"C72-'отчёт '!J24","v":15}]
["ПНС","О 992 АХ",155,{"$f":"C73-'отчёт '!J25","v":0}]
["ПНС (Дизель)","ЯМЗ 238 Д",180,{"$f":"C74-'отчёт '!J26","v":36}]
["АР камаз","Н 077 КР",140,{"$f":"C75-'отчёт '!J27","v":13}]
[]
[null,"Бензин",{"$f":"D63+D64+D70+D71","v":64}]
[null,"Д/Т",{"$f":"D65+D68+D69+D72+D73+D74+D75","v":-25}]
[]
[]
[]
[]
[]
["номер ","пробег на след месяц","общий на след месяц"]
["Х 088 ОМ",{"$f":"'088'!L4+'088'!Y94","v":96021},{"$f":"'088'!P4+'088'!Y98","v":36707}]
["Х 090 ОМ",{"$f":"' 090   '!L4+' 090   '!Y91","v":83913},{"$f":"' 090   '!P4+' 090   '!Y95","v":113928.16666666667}]
["Х 093 ОМ",{"$f":"' 093  '!L4+' 093  '!Y94","v":48210},{"$f":"' 093  '!P4+' 093  '!Y98","v":100459.5}]
["Х 351 АР",{"$f":"'351'!L4+'351'!Y94","v":4440},{"$f":"'351'!P4+'351'!Y98","v":11573.333333333332}]
["Х 883ОМ",{"$f":"' 883  '!L4+' 883  '!Y88","v":48762},{"$f":"' 883  '!P4+' 883  '!Y92","v":61530.333333333328}]
["У 007 АХ",{"$f":"'007'!L4+'007'!Y98","v":17953},{"$f":"'007'!P4+'007'!Y102","v":25733.833333333328}]
["АР-2   Н 077 КР",{"$f":"'АР-2(5350)'!L4+'АР-2(5350)'!Y94","v":2360}]
["ПНС-100   О 992 АХ",{"$f":"'ПНС  -100'!L4+'ПНС  -100'!Y94","v":2405}]
["АГДЗС  О 991 АХ",{"$f":"АГДЗС!L4+АГДЗС!Y94","v":2130}]
[]
[]
["Пробеги с предыдущего месяца"]
["номер "," спидометр","общий "]
["Х 088 ОМ",96021,36707]
["Х 090 ОМ",83913,113928.16666666667]
["Х 093 ОМ",48210,100459.5]
["Х 351 АР",4440,11567.499999999998]
["Х 883ОМ",48762,61530.333333333328]
["У 007 АХ",17953,25733.833333333328]
["АР-2   Н 077 КР",2360]
["ПНС-100   О 992 АХ",2405]
["АГДЗС  О 991 АХ",2130]

{"sheet":"пила 240","index":12,"n_rows":78,"n_cols":26,"rows_kept":78,"cut":false,"hidden":false,"merged":[[77,21,77,23],[73,21,73,23],[74,19,74,20],[74,21,74,23],[75,19,75,20],[75,21,75,23],[76,19,76,20],[76,21,76,23],[68,1,68,5],[69,1,69,5],[70,0,70,10],[71,0,71,10],[72,9,72,10],[73,16,73,20],[76,11,76,15],[62,1,62,5],[63,1,63,5],[64,1,64,5],[65,1,65,5],[66,1,66,5],[67,1,67,5],[56,1,56,5],[57,1,57,5],[58,1,58,5],[59,1,59,5],[60,1,60,5],[61,1,61,5],[50,1,50,5],[51,1,51,5],[52,1,52,5],[53,1,53,5],[54,1,54,5],[55,1,55,5],[44,1,44,5],[45,1,45,5],[46,1,46,5],[47,1,47,5],[48,1,48,5],[49,1,49,5],[38,1,38,5],[39,1,39,5],[40,1,40,5],[41,1,41,5],[42,1,42,5],[43,1,43,5],[32,1,32,5],[33,1,33,5],[34,1,34,5],[35,1,35,5],[36,1,36,5],[37,1,37,5],[26,1,26,5],[27,1,27,5],[28,1,28,5],[29,1,29,5],[30,1,30,5],[31,1,31,5],[20,1,20,5],[21,1,21,5],[22,1,22,5],[23,1,23,5],[24,1,24,5],[25,1,25,5],[14,1,14,5],[15,1,15,5],[16,1,16,5],[17,1,17,5],[18,1,18,5],[19,1,19,5],[11,24,12,25],[12,6,12,7],[12,8,12,9],[12,10,13,10],[12,11,13,11],[12,12,12,13],[12,14,12,15],[12,16,12,17],[12,18,12,19],[12,20,13,20],[9,4,9,5],[9,6,9,8],[9,9,9,10],[9,11,9,18],[10,0,10,25],[11,0,13,0],[11,1,13,5],[11,6,11,20],[11,21,12,22],[11,23,13,23],[7,0,7,23],[8,4,8,5],[8,6,8,8],[8,9,8,10],[8,11,8,18],[3,0,3,9],[3,10,3,12],[3,13,3,14],[3,15,3,17],[4,10,4,22],[5,0,5,7],[5,8,5,22],[0,0,0,25],[1,0,1,5],[1,6,1,10],[1,17,1,19],[1,20,1,21],[2,0,2,22],[2,23,2,25],[6,0,6,11],[6,12,6,22]]}
["Эксплуатационная карта"]
["      Работы механизма за",null,null,null,null,null,{"$f":"Нормы!G3","v":"Март   2015 г"},null,null,null,null,"Наименование и № подразделения   ",null,null,null,null,null,"КГКУ 9- ОПС",null,null,"37- ПЧ"]
["      Тип,марка,модель                                                   Бензопила \"Хускварна\"  240                                                                                                                                                 "]
[]
["      Остаток топлива  на 1-е число отчетного месяца",null,null,null,null,null,null,null,null,null,{"$f":"'отчёт '!F37","v":0.17},null,null,null,null,null,null,null,null,null,null,null,null,"литр."]
["      Заправлено топлива  за отчетный месяц",null,null,null,null,null,null,null,{"$f":"U71","v":0},null,null,null,null,null,null,null,null,null,null,null,null,null,null,"литр."]
["      Остаток топлива  на 1-е число следующего за отчетным месяцем",null,null,null,null,null,null,null,null,null,null,null,{"$f":"X71","v":0.17},null,null,null,null,null,null,null,null,null,null,"литр."]
["Результат расхода топлива за отчетный месяц"]
[null,null,null,null,"фактически",null,{"$f":"V71","v":0},null,null,"литр.",null," Экономия _________________литр."]
[null,null,null,null,"по нормам",null,{"$f":"W71","v":0},null,null,"литр.",null,"Перерасход _________________литр."]
[]
["дата","Наименование и место работы автомобиля(То,работа на пожаре,учениях и др)",null,null,null,null,"работа механизма",null,null,null,null,null,null,null,null,null,null,null,null,null,null,"расход топлива в литрах",null,"Остаток топлива ","подписи"]
[null,null,null,null,null,null,"время выезда",null,"время возвращения ",null,"показания спидометра перед выездом ","пройдено км к месту работы и обратно","на пожарах(в мин)",null,"на учениях (в мин)",null," при смене караула (в мин)",null,"на прочих работах",null,"заправлено топлива "]
[null,null,null,null,null,null,"часы","минуты","часы","минуты",null,null,"с насосом","без насоса","с насосом","без насоса","с насосом","без насоса","с насосом","без насоса",null,"фактически","по нормам",null,"водителя","начальника караула"]
[1,2,null,null,null,null,3,4,5,6,7,8,9,10,11,12,13,14,15,16,17,18,19,20,21,22]
["1,03","Смена караула",null,null,null,null,null,null,null,null,null,null,null,null,null,null,null,null,null,null,null,{"$f":"W16","v":0},{"$f":"IF(L16=\"\",0,L16)*КИЛОМЕТР+(M16+O16+Q16+S16)*НАСОС+(N16+P16+R16+T16)*БЕЗ_НАСОСА","v":0},{"$f":"Остаток_на_начало_месяца-W16+U16","v":0.17}]
[null,null,null,null,null,null,null,null,null,null,null,null,null,null,null,null,null,null,null,null,null,{"$f":"W17","v":0},0,{"$f":"IF(W17=0,\"\",X16-W17+U17)","v":""}]
[null,null,null,null,null,null,null,null,null,null,null,null,null,null,null,null,null,null,null,null,null,{"$f":"W18","v":0},0,""]
[null,null,null,null,null,null,null,null,null,null,null,null,null,null,null,null,null,null,null,null,null,0,0,""]
[null,null,null,null,null,null,null,null,null,null,null,null,null,null,null,null,null,null,null,null,null,0,0,""]
[null,null,null,null,null,null,null,null,null,null,null,null,null,null,null,null,null,null,null,null,null,0,0,""]
[null,null,null,null,null,null,null,null,null,null,null,null,null,null,null,null,null,null,null,null,null,0,0,""]
[null,null,null,null,null,null,null,null,null,null,null,null,null,null,null,null,null,null,null,null,null,0,0,""]
[null,null,null,null,null,null,null,null,null,null,null,null,null,null,null,null,null,null,null,null,null,0,0,""]
[null,null,null,null,null,null,null,null,null,null,null,null,null,null,null,null,null,null,null,null,null,0,0,""]
[null,null,null,null,null,null,null,null,null,null,null,null,null,null,null,null,null,null,null,null,null,0,0,""]
[null,null,null,null,null,null,null,null,null,null,null,null,null,null,null,null,null,null,null,null,null,0,0,""]
[null,null,null,null,null,null,null,null,null,null,null,null,null,null,null,null,null,null,null,null,null,0,{"$f":"IF(L28=\"\",0,L28)*КИЛОМЕТР+(M28+O28+Q28+S28)*НАСОС+(N28+P28+R28+T28)*БЕЗ_НАСОСА","v":0},""]
[null,null,null,null,null,null,null,null,null,null,null,null,null,null,null,null,null,null,null,null,null,0,{"$f":"IF(L29=\"\",0,L29)*КИЛОМЕТР+(M29+O29+Q29+S29)*НАСОС+(N29+P29+R29+T29)*БЕЗ_НАСОСА","v":0},""]
[null,null,null,null,null,null,null,null,null,null,null,null,null,null,null,null,null,null,null,null,null,0,0,""]
[null,null,null,null,null,null,null,null,null,null,null,null,null,null,null,null,null,null,null,null,null,0,0,""]
[null,null,null,null,null,null,null,null,null,null,null,null,null,null,null,null,null,null,null,null,null,0,{"$f":"IF(L32=\"\",0,L32)*КИЛОМЕТР+(M32+O32+Q32+S32)*НАСОС+(N32+P32+R32+T32)*БЕЗ_НАСОСА","v":0},""]
[null,null,null,null,null,null,null,null,null,null,null,null,null,null,null,null,null,null,null,null,null,0,0,""]
[null,null,null,null,null,null,null,null,null,null,null,null,null,null,null,null,null,null,null,null,null,0,0,""]
[null,null,null,null,null,null,null,null,null,null,null,null,null,null,null,null,null,null,null,null,null,0,{"$f":"IF(L35=\"\",0,L35)*КИЛОМЕТР+(M35+O35+Q35+S35)*НАСОС+(N35+P35+R35+T35)*БЕЗ_НАСОСА","v":0},""]
[null,null,null,null,null,null,null,null,null,null,null,null,null,null,null,null,null,null,null,null,null,0,0,""]
[null,null,null,null,null,null,null,null,null,null,null,null,null,null,null,null,null,null,null,null,null,0,0,""]
[null,null,null,null,null,null,null,null,null,null,null,null,null,null,null,null,null,null,null,null,null,0,0,""]
[null,null,null,null,null,null,null,null,null,null,null,null,null,null,null,null,null,null,null,null,null,0,0,""]
[null,null,null,null,null,null,null,null,null,null,null,null,null,null,null,null,null,null,null,null,null,0,0,""]
[null,null,null,null,null,null,null,null,null,null,null,null,null,null,null,null,null,null,null,null,null,0,0,""]
[null,null,null,null,null,null,null,null,null,null,null,null,null,null,null,null,null,null,null,null,null,0,0,""]
[null,null,null,null,null,null,null,null,null,null,null,null,null,null,null,null,null,null,null,null,null,0,0,""]
[null,null,null,null,null,null,null,null,null,null,null,null,null,null,null,null,null,null,null,null,null,0,0,""]
[null,null,null,null,null,null,null,null,null,null,null,null,null,null,null,null,null,null,null,null,null,0,0,""]
[null,null,null,null,null,null,null,null,null,null,null,null,null,null,null,null,null,null,null,null,null,0,0,""]
[null,null,null,null,null,null,null,null,null,null,null,null,null,null,null,null,null,null,null,null,null,0,0,""]
[null,null,null,null,null,null,null,null,null,null,null,null,null,null,null,null,null,null,null,null,null,0,{"$f":"IF(L48=\"\",0,L48)*КИЛОМЕТР+(M48+O48+Q48+S48)*НАСОС+(N48+P48+R48+T48)*БЕЗ_НАСОСА","v":0},""]
[null,null,null,null,null,null,null,null,null,null,null,null,null,null,null,null,null,null,null,null,null,0,0,""]
[null,null,null,null,null,null,null,null,null,null,null,null,null,null,null,null,null,null,null,null,null,0,0,""]
[null,null,null,null,null,null,null,null,null,null,null,null,null,null,null,null,null,null,null,null,null,0,0,""]
[null,null,null,null,null,null,null,null,null,null,null,null,null,null,null,null,null,null,null,null,null,0,0,""]
[null,null,null,null,null,null,null,null,null,null,null,null,null,null,null,null,null,null,null,null,null,0,0,""]
[null,null,null,null,null,null,null,null,null,null,null,null,null,null,null,null,null,null,null,null,null,0,0,""]
[null,null,null,null,null,null,null,null,null,null,null,null,null,null,null,null,null,null,null,null,null,0,0,""]
[null,null,null,null,null,null,null,null,null,null,null,null,null,null,null,null,null,null,null,null,null,0,0,""]
[null,null,null,null,null,null,null,null,null,null,null,null,null,null,null,null,null,null,null,null,null,0,0,""]
[null,null,null,null,null,null,null,null,null,null,null,null,null,null,null,null,null,null,null,null,null,0,0,""]
[null,null,null,null,null,null,null,null,null,null,null,null,null,null,null,null,null,null,null,null,null,0,0,""]
[null,null,null,null,null,null,null,null,null,null,null,{"$f":"IF(K61=\"\",\"\",K61-K60)","v":""},null,null,null,null,null,null,null,null,null,0,0,""]
[null,null,null,null,null,null,null,null,null,null,null,"",null,null,null,null,null,null,null,null,null,0,0,""]
[null,null,null,null,null,null,null,null,null,null,null,"",null,null,null,null,null,null,null,null,null,0,0,""]
[null,null,null,null,null,null,null,null,null,null,null,"",null,null,null,null,null,null,null,null,null,0,0,""]
[null,null,null,null,null,null,null,null,null,null,null,{"$f":"IF(K65=\"\",\"\",K65-K64)","v":""},null,null,null,null,null,null,null,null,null,0,0,""]
[null,null,null,null,null,null,null,null,null,null,null,"",null,null,null,null,null,null,null,null,null,0,0,""]
[null,null,null,null,null,null,null,null,null,null,null,"",null,null,null,null,null,null,null,null,null,0,0,""]
[null,null,null,null,null,null,null,null,null,null,null,"",null,null,null,null,null,null,null,null,null,0,0,""]
[null,null,null,null,null,null,null,null,null,null,null,"",null,null,null,null,null,null,null,null,null,0,0,""]
[null,null,null,null,null,null,null,null,null,null,null,"",null,null,null,null,null,null,null,null,null,0,0,{"$f":"IF(W69=0,\"\",X68-W69+U69)","v":""}]
[null,null,null,null,null,null,null,null,null,null,null,null,null,null,null,null,null,null,null,null,null,0,0,""]
["                    ИТОГО за месяц",null,null,null,null,null,null,null,null,null,null,{"$f":"SUM(L16:L70)","v":0},0,0,0,0,0,0,0,0,0,0,0,{"$f":"Остаток_на_начало_месяца+Заправлено-W71","v":0.17}]
["                    Израсходовано топлива по элементам работы(в литрах)",null,null,null,null,null,null,null,null,null,null,{"$f":"L71*КИЛОМЕТР","v":0},{"$f":"M71*НАСОС","v":0},{"$f":"N71*БЕЗ_НАСОСА","v":0},{"$f":"O71*НАСОС","v":0},{"$f":"P71*БЕЗ_НАСОСА","v":0},{"$f":"Q71*НАСОС","v":0},{"$f":"R71*БЕЗ_НАСОСА","v":0},{"$f":"S71*НАСОС","v":0},{"$f":"T71*БЕЗ_НАСОСА","v":0}]
[null,"Наработка  за отчетный месяц в км.(с учетом приведенного)",null,null,null,null,null,null,null,{"$f":"(M71+O71+Q71+S71)/60*50+L71","v":0},null,"км. "]
[null,null,null,null,null,null,null,null,null,null,null,null,null,null,null,null,"Текущая норма",null,null,null,null,"Пробег по спидометру, км",null,null,{"$f":"L71","v":0}]
[null,null,"Руководитель подразделения",null,null,null,null,null,null,null,null,"Старший водитель",null,null,null,null,"1 км",null,null,null,null,"Наработка с насосом м.ч.",null,null,{"$f":"(M71+O71+Q71+S71)/60","v":0}]
[null,null,"<_____>______________________2015г.",null,null,null,null,null,null,null,null,"<_____>_____________2015г.",null,null,null,null,"1 мин с насосом",null,null,1.0999999999999999E-2,null,"Наработка без насоса",null,null,{"$f":"N71+P71+R71+T71","v":0}]
[null,null,null,null,null,"Коряков В.Н.",null,null,null,null,null,"                     Ломакин В.В.",null,null,null,null,"1 мин без насоса",null,null,1.0999999999999999E-2,null,"Приведенный пробег",null,null,{"$f":"Y75*50","v":0}]
[null,null,null,null,null,null,null,null,null,null,null,null,null,null,null,null,null,null,null,null,null,"Общий пробег",null,null,{"$f":"Y74+Y77","v":0}]

{"sheet":"Бензорез К 760","index":13,"n_rows":78,"n_cols":26,"rows_kept":78,"cut":false,"hidden":false,"merged":[[68,1,68,5],[77,21,77,23],[73,21,73,23],[74,19,74,20],[74,21,74,23],[75,19,75,20],[75,21,75,23],[76,19,76,20],[76,21,76,23],[69,1,69,5],[70,0,70,10],[71,0,71,10],[72,9,72,10],[73,16,73,20],[76,11,76,15],[62,1,62,5],[63,1,63,5],[64,1,64,5],[65,1,65,5],[66,1,66,5],[67,1,67,5],[56,1,56,5],[57,1,57,5],[58,1,58,5],[59,1,59,5],[60,1,60,5],[61,1,61,5],[50,1,50,5],[51,1,51,5],[52,1,52,5],[53,1,53,5],[54,1,54,5],[55,1,55,5],[44,1,44,5],[45,1,45,5],[46,1,46,5],[47,1,47,5],[48,1,48,5],[49,1,49,5],[38,1,38,5],[39,1,39,5],[40,1,40,5],[41,1,41,5],[42,1,42,5],[43,1,43,5],[32,1,32,5],[33,1,33,5],[34,1,34,5],[35,1,35,5],[36,1,36,5],[37,1,37,5],[26,1,26,5],[27,1,27,5],[28,1,28,5],[29,1,29,5],[30,1,30,5],[31,1,31,5],[20,1,20,5],[21,1,21,5],[22,1,22,5],[23,1,23,5],[24,1,24,5],[25,1,25,5],[14,1,14,5],[15,1,15,5],[16,1,16,5],[17,1,17,5],[18,1,18,5],[19,1,19,5],[11,24,12,25],[12,6,12,7],[12,8,12,9],[12,10,13,10],[12,11,13,11],[12,12,12,13],[12,14,12,15],[12,16,12,17],[12,18,12,19],[12,20,13,20],[9,4,9,5],[9,6,9,8],[9,9,9,10],[9,11,9,18],[10,0,10,25],[11,0,13,0],[11,1,13,5],[11,6,11,20],[11,21,12,22],[11,23,13,23],[7,0,7,23],[8,4,8,5],[8,6,8,8],[8,9,8,10],[8,11,8,18],[3,0,3,9],[3,10,3,12],[3,13,3,14],[3,15,3,17],[4,10,4,22],[5,0,5,7],[5,8,5,22],[0,0,0,25],[1,0,1,5],[1,6,1,10],[1,17,1,19],[1,20,1,21],[2,0,2,22],[2,23,2,25],[6,0,6,11],[6,12,6,22]]}
["Эксплуатационная карта"]
["      Работы механизма за",null,null,null,null,null,{"$f":"Нормы!G3","v":"Март   2015 г"},null,null,null,null,"Наименование и № подразделения   ",null,null,null,null,null,"КГКУ 9- ОПС",null,null,"37- ПЧ"]
["      Тип,марка,модель                                                   Бензорез  \"Хускварна\" К 760                                                                                                                                                 "]
[]
["      Остаток топлива  на 1-е число отчетного месяца",null,null,null,null,null,null,null,null,null,{"$f":"'отчёт '!F38","v":0.61},null,null,null,null,null,null,null,null,null,null,null,null,"литр."]
["      Заправлено топлива  за отчетный месяц",null,null,null,null,null,null,null,{"$f":"U71","v":0},null,null,null,null,null,null,null,null,null,null,null,null,null,null,"литр."]
["      Остаток топлива  на 1-е число следующего за отчетным месяцем",null,null,null,null,null,null,null,null,null,null,null,{"$f":"X71","v":0.61},null,null,null,null,null,null,null,null,null,null,"литр."]
["Результат расхода топлива за отчетный месяц"]
[null,null,null,null,"фактически",null,{"$f":"V71","v":0},null,null,"литр.",null," Экономия _________________литр."]
[null,null,null,null,"по нормам",null,{"$f":"W71","v":0},null,null,"литр.",null,"Перерасход _________________литр."]
[]
["дата","Наименование и место работы автомобиля(То,работа на пожаре,учениях и др)",null,null,null,null,"работа механизма",null,null,null,null,null,null,null,null,null,null,null,null,null,null,"расход топлива в литрах",null,"Остаток топлива ","подписи"]
[null,null,null,null,null,null,"время выезда",null,"время возвращения ",null,"показания спидометра перед выездом ","пройдено км к месту работы и обратно","на пожарах(в мин)",null,"на учениях (в мин)",null," при смене караула (в мин)",null,"на прочих работах",null,"заправлено топлива "]
[null,null,null,null,null,null,"часы","минуты","часы","минуты",null,null,"с насосом","без насоса","с насосом","без насоса","с насосом","без насоса","с насосом","без насоса",null,"фактически","по нормам",null,"водителя","начальника караула"]
[1,2,null,null,null,null,3,4,5,6,7,8,9,10,11,12,13,14,15,16,17,18,19,20,21,22]
["1,03","Смена караула",null,null,null,null,null,null,null,null,null,null,null,null,null,null,null,null,null,null,null,{"$f":"W16","v":0},{"$f":"IF(L16=\"\",0,L16)*КИЛОМЕТР+(M16+O16+Q16+S16)*НАСОС+(N16+P16+R16+T16)*БЕЗ_НАСОСА","v":0},{"$f":"Остаток_на_начало_месяца-W16+U16","v":0.61}]
[null,null,null,null,null,null,null,null,null,null,null,null,null,null,null,null,null,null,null,null,null,{"$f":"W17","v":0},0,{"$f":"IF(W17=0,\"\",X16-W17+U17)","v":""}]
[null,null,null,null,null,null,null,null,null,null,null,null,null,null,null,null,null,null,null,null,null,{"$f":"W18","v":0},0,""]
[null,null,null,null,null,null,null,null,null,null,null,null,null,null,null,null,null,null,null,null,null,0,0,""]
[null,null,null,null,null,null,null,null,null,null,null,null,null,null,null,null,null,null,null,null,null,0,0,""]
[null,null,null,null,null,null,null,null,null,null,null,null,null,null,null,null,null,null,null,null,null,0,0,""]
[null,null,null,null,null,null,null,null,null,null,null,null,null,null,null,null,null,null,null,null,null,0,0,""]
[null,null,null,null,null,null,null,null,null,null,null,null,null,null,null,null,null,null,null,null,null,0,0,""]
[null,null,null,null,null,null,null,null,null,null,null,null,null,null,null,null,null,null,null,null,null,0,0,""]
[null,null,null,null,null,null,null,null,null,null,null,null,null,null,null,null,null,null,null,null,null,0,0,""]
[null,null,null,null,null,null,null,null,null,null,null,null,null,null,null,null,null,null,null,null,null,0,0,""]
[null,null,null,null,null,null,null,null,null,null,null,null,null,null,null,null,null,null,null,null,null,0,0,""]
[null,null,null,null,null,null,null,null,null,null,null,null,null,null,null,null,null,null,null,null,null,0,0,""]
[null,null,null,null,null,null,null,null,null,null,null,null,null,null,null,null,null,null,null,null,null,0,0,""]
[null,null,null,null,null,null,null,null,null,null,null,null,null,null,null,null,null,null,null,null,null,0,0,""]
[null,null,null,null,null,null,null,null,null,null,null,null,null,null,null,null,null,null,null,null,null,0,0,""]
[null,null,null,null,null,null,null,null,null,null,null,null,null,null,null,null,null,null,null,null,null,0,0,""]
[null,null,null,null,null,null,null,null,null,null,null,null,null,null,null,null,null,null,null,null,null,0,0,""]
[null,null,null,null,null,null,null,null,null,null,null,null,null,null,null,null,null,null,null,null,null,0,0,""]
[null,null,null,null,null,null,null,null,null,null,null,null,null,null,null,null,null,null,null,null,null,0,0,""]
[null,null,null,null,null,null,null,null,null,null,null,null,null,null,null,null,null,null,null,null,null,0,0,""]
[null,null,null,null,null,null,null,null,null,null,null,null,null,null,null,null,null,null,null,null,null,0,0,""]
[null,null,null,null,null,null,null,null,null,null,null,null,null,null,null,null,null,null,null,null,null,0,0,""]
[null,null,null,null,null,null,null,null,null,null,null,null,null,null,null,null,null,null,null,null,null,0,0,""]
[null,null,null,null,null,null,null,null,null,null,null,null,null,null,null,null,null,null,null,null,null,0,0,""]
[null,null,null,null,null,null,null,null,null,null,null,null,null,null,null,null,null,null,null,null,null,0,0,""]
[null,null,null,null,null,null,null,null,null,null,null,null,null,null,null,null,null,null,null,null,null,0,0,""]
[null,null,null,null,null,null,null,null,null,null,null,null,null,null,null,null,null,null,null,null,null,0,0,""]
[null,null,null,null,null,null,null,null,null,null,null,null,null,null,null,null,null,null,null,null,null,0,0,""]
[null,null,null,null,null,null,null,null,null,null,null,null,null,null,null,null,null,null,null,null,null,0,0,""]
[null,null,null,null,null,null,null,null,null,null,null,null,null,null,null,null,null,null,null,null,null,0,0,""]
[null,null,null,null,null,null,null,null,null,null,null,null,null,null,null,null,null,null,null,null,null,0,0,""]
[null,null,null,null,null,null,null,null,null,null,null,null,null,null,null,null,null,null,null,null,null,0,{"$f":"IF(L48=\"\",0,L48)*КИЛОМЕТР+(M48+O48+Q48+S48)*НАСОС+(N48+P48+R48+T48)*БЕЗ_НАСОСА","v":0},""]
[null,null,null,null,null,null,null,null,null,null,null,null,null,null,null,null,null,null,null,null,null,0,0,""]
[null,null,null,null,null,null,null,null,null,null,null,null,null,null,null,null,null,null,null,null,null,0,0,""]
[null,null,null,null,null,null,null,null,null,null,null,null,null,null,null,null,null,null,null,null,null,0,0,""]
[null,null,null,null,null,null,null,null,null,null,null,null,null,null,null,null,null,null,null,null,null,0,0,""]
[null,null,null,null,null,null,null,null,null,null,null,null,null,null,null,null,null,null,null,null,null,0,0,""]
[null,null,null,null,null,null,null,null,null,null,null,null,null,null,null,null,null,null,null,null,null,0,0,""]
[null,null,null,null,null,null,null,null,null,null,null,null,null,null,null,null,null,null,null,null,null,0,0,""]
[null,null,null,null,null,null,null,null,null,null,null,null,null,null,null,null,null,null,null,null,null,0,0,""]
[null,null,null,null,null,null,null,null,null,null,null,null,null,null,null,null,null,null,null,null,null,0,0,""]
[null,null,null,null,null,null,null,null,null,null,null,null,null,null,null,null,null,null,null,null,null,0,0,""]
[null,null,null,null,null,null,null,null,null,null,null,null,null,null,null,null,null,null,null,null,null,0,0,""]
[null,null,null,null,null,null,null,null,null,null,null,{"$f":"IF(K61=\"\",\"\",K61-K60)","v":""},null,null,null,null,null,null,null,null,null,0,0,""]
[null,null,null,null,null,null,null,null,null,null,null,"",null,null,null,null,null,null,null,null,null,0,0,""]
[null,null,null,null,null,null,null,null,null,null,null,"",null,null,null,null,null,null,null,null,null,0,0,""]
[null,null,null,null,null,null,null,null,null,null,null,"",null,null,null,null,null,null,null,null,null,0,0,""]
[null,null,null,null,null,null,null,null,null,null,null,"",null,null,null,null,null,null,null,null,null,0,0,""]
[null,null,null,null,null,null,null,null,null,null,null,"",null,null,null,null,null,null,null,null,null,0,0,""]
[null,null,null,null,null,null,null,null,null,null,null,"",null,null,null,null,null,null,null,null,null,0,0,""]
[null,null,null,null,null,null,null,null,null,null,null,"",null,null,null,null,null,null,null,null,null,0,0,""]
[null,null,null,null,null,null,null,null,null,null,null,"",null,null,null,null,null,null,null,null,null,0,0,""]
[null,null,null,null,null,null,null,null,null,null,null,"",null,null,null,null,null,null,null,null,null,0,0,""]
[null,null,null,null,null,null,null,null,null,null,null,null,null,null,null,null,null,null,null,null,null,0,0,{"$f":"IF(W70=0,\"\",X69-W70+U70)","v":""}]
["                    ИТОГО за месяц",null,null,null,null,null,null,null,null,null,null,{"$f":"SUM(L16:L70)","v":0},0,0,0,0,0,0,0,0,0,0,0,{"$f":"Остаток_на_начало_месяца+Заправлено-W71","v":0.61}]
["                    Израсходовано топлива по элементам работы(в литрах)",null,null,null,null,null,null,null,null,null,null,{"$f":"L71*КИЛОМЕТР","v":0},{"$f":"M71*НАСОС","v":0},{"$f":"N71*БЕЗ_НАСОСА","v":0},{"$f":"O71*НАСОС","v":0},{"$f":"P71*БЕЗ_НАСОСА","v":0},{"$f":"Q71*НАСОС","v":0},{"$f":"R71*БЕЗ_НАСОСА","v":0},{"$f":"S71*НАСОС","v":0},{"$f":"T71*БЕЗ_НАСОСА","v":0}]
[null,"Наработка  за отчетный месяц в км.(с учетом приведенного)",null,null,null,null,null,null,null,{"$f":"(M71+O71+Q71+S71)/60*50+L71","v":0},null,"км. "]
[null,null,null,null,null,null,null,null,null,null,null,null,null,null,null,null,"Текущая норма",null,null,null,null,"Пробег по спидометру, км",null,null,{"$f":"L71","v":0}]
[null,null,"Руководитель подразделения",null,null,null,null,null,null,null,null,"Старший водитель",null,null,null,null,"1 км",null,null,null,null,"Наработка с насосом м.ч.",null,null,{"$f":"(M71+O71+Q71+S71)/60","v":0}]
[null,null,"<_____>______________________2015г.",null,null,null,null,null,null,null,null,"<_____>_____________2015г.",null,null,null,null,"1 мин с насосом",null,null,4.6199999999999998E-2,null,"Наработка без насоса",null,null,{"$f":"N71+P71+R71+T71","v":0}]
[null,null,null,null,null,"Коряков В.Н.",null,null,null,null,null,"                     Ломакин В.В.",null,null,null,null,"1 мин без насоса",null,null,4.6199999999999998E-2,null,"Приведенный пробег",null,null,{"$f":"Y75*50","v":0}]
[null,null,null,null,null,null,null,null,null,null,null,null,null,null,null,null,null,null,null,null,null,"Общий пробег",null,null,{"$f":"Y74+Y77","v":0}]

{"sheet":"\"Спрут\"","index":14,"n_rows":78,"n_cols":26,"rows_kept":78,"cut":false,"hidden":false,"merged":[[68,1,68,5],[77,21,77,23],[73,21,73,23],[74,19,74,20],[74,21,74,23],[75,19,75,20],[75,21,75,23],[76,19,76,20],[76,21,76,23],[69,1,69,5],[70,0,70,10],[71,0,71,10],[72,9,72,10],[73,16,73,20],[76,11,76,15],[62,1,62,5],[63,1,63,5],[64,1,64,5],[65,1,65,5],[66,1,66,5],[67,1,67,5],[56,1,56,5],[57,1,57,5],[58,1,58,5],[59,1,59,5],[60,1,60,5],[61,1,61,5],[50,1,50,5],[51,1,51,5],[52,1,52,5],[53,1,53,5],[54,1,54,5],[55,1,55,5],[44,1,44,5],[45,1,45,5],[46,1,46,5],[47,1,47,5],[48,1,48,5],[49,1,49,5],[38,1,38,5],[39,1,39,5],[40,1,40,5],[41,1,41,5],[42,1,42,5],[43,1,43,5],[32,1,32,5],[33,1,33,5],[34,1,34,5],[35,1,35,5],[36,1,36,5],[37,1,37,5],[26,1,26,5],[27,1,27,5],[28,1,28,5],[29,1,29,5],[30,1,30,5],[31,1,31,5],[20,1,20,5],[21,1,21,5],[22,1,22,5],[23,1,23,5],[24,1,24,5],[25,1,25,5],[14,1,14,5],[15,1,15,5],[16,1,16,5],[17,1,17,5],[18,1,18,5],[19,1,19,5],[11,24,12,25],[12,6,12,7],[12,8,12,9],[12,10,13,10],[12,11,13,11],[12,12,12,13],[12,14,12,15],[12,16,12,17],[12,18,12,19],[12,20,13,20],[9,4,9,5],[9,6,9,8],[9,9,9,10],[9,11,9,18],[10,0,10,25],[11,0,13,0],[11,1,13,5],[11,6,11,20],[11,21,12,22],[11,23,13,23],[7,0,7,23],[8,4,8,5],[8,6,8,8],[8,9,8,10],[8,11,8,18],[3,0,3,9],[3,10,3,12],[3,13,3,14],[3,15,3,17],[4,10,4,22],[5,0,5,7],[5,8,5,22],[0,0,0,25],[1,0,1,5],[1,6,1,10],[1,17,1,19],[1,20,1,21],[2,0,2,22],[2,23,2,25],[6,0,6,11],[6,12,6,22]]}
["Эксплуатационная карта"]
["      Работы механизма за",null,null,null,null,null,{"$f":"Нормы!G3","v":"Март   2015 г"},null,null,null,null,"Наименование и № подразделения   ",null,null,null,null,null,"КГКУ 9- ОПС",null,null,"37- ПЧ"]
["      Тип,марка,модель                                                   ГАСИ  \"СПРУТ\"                                                                                                                                                  "]
[]
["      Остаток топлива  на 1-е число отчетного месяца",null,null,null,null,null,null,null,null,null,{"$f":"'отчёт '!F40","v":0.11},null,null,null,null,null,null,null,null,null,null,null,null,"литр."]
["      Заправлено топлива  за отчетный месяц",null,null,null,null,null,null,null,{"$f":"U71","v":0},null,null,null,null,null,null,null,null,null,null,null,null,null,null,"литр."]
["      Остаток топлива  на 1-е число следующего за отчетным месяцем",null,null,null,null,null,null,null,null,null,null,null,{"$f":"X71","v":0.11},null,null,null,null,null,null,null,null,null,null,"литр."]
["Результат расхода топлива за отчетный месяц"]
[null,null,null,null,"фактически",null,{"$f":"V71","v":0},null,null,"литр.",null," Экономия _________________литр."]
[null,null,null,null,"по нормам",null,{"$f":"W71","v":0},null,null,"литр.",null,"Перерасход _________________литр."]
[]
["дата","Наименование и место работы автомобиля(То,работа на пожаре,учениях и др)",null,null,null,null,"работа механизма",null,null,null,null,null,null,null,null,null,null,null,null,null,null,"расход топлива в литрах",null,"Остаток топлива ","подписи"]
[null,null,null,null,null,null,"время выезда",null,"время возвращения ",null,"показания спидометра перед выездом ","пройдено км к месту работы и обратно","на пожарах(в мин)",null,"на учениях (в мин)",null," при смене караула (в мин)",null,"на прочих работах",null,"заправлено топлива "]
[null,null,null,null,null,null,"часы","минуты","часы","минуты",null,null,"с насосом","без насоса","с насосом","без насоса","с насосом","без насоса","с насосом","без насоса",null,"фактически","по нормам",null,"водителя","начальника караула"]
[1,2,null,null,null,null,3,4,5,6,7,8,9,10,11,12,13,14,15,16,17,18,19,20,21,22]
["1,03","Смена караула",null,null,null,null,null,null,null,null,null,null,null,null,null,null,null,null,null,null,null,{"$f":"W16","v":0},{"$f":"IF(L16=\"\",0,L16)*КИЛОМЕТР+(M16+O16+Q16+S16)*НАСОС+(N16+P16+R16+T16)*БЕЗ_НАСОСА","v":0},{"$f":"Остаток_на_начало_месяца-W16+U16","v":0.11}]
[null,null,null,null,null,null,null,null,null,null,null,null,null,null,null,null,null,null,null,null,null,{"$f":"W17","v":0},0,{"$f":"IF(W17=0,\"\",X16-W17+U17)","v":""}]
[null,null,null,null,null,null,null,null,null,null,null,null,null,null,null,null,null,null,null,null,null,{"$f":"W18","v":0},0,""]
[null,null,null,null,null,null,null,null,null,null,null,null,null,null,null,null,null,null,null,null,null,0,0,""]
[null,null,null,null,null,null,null,null,null,null,null,null,null,null,null,null,null,null,null,null,null,0,0,""]
[null,null,null,null,null,null,null,null,null,null,null,null,null,null,null,null,null,null,null,null,null,0,0,""]
[null,null,null,null,null,null,null,null,null,null,null,null,null,null,null,null,null,null,null,null,null,0,0,""]
[null,null,null,null,null,null,null,null,null,null,null,null,null,null,null,null,null,null,null,null,null,0,0,""]
[null,null,null,null,null,null,null,null,null,null,null,null,null,null,null,null,null,null,null,null,null,0,0,""]
[null,null,null,null,null,null,null,null,null,null,null,null,null,null,null,null,null,null,null,null,null,0,0,""]
[null,null,null,null,null,null,null,null,null,null,null,null,null,null,null,null,null,null,null,null,null,0,0,""]
[null,null,null,null,null,null,null,null,null,null,null,null,null,null,null,null,null,null,null,null,null,0,0,""]
[null,null,null,null,null,null,null,null,null,null,null,null,null,null,null,null,null,null,null,null,null,0,0,""]
[null,null,null,null,null,null,null,null,null,null,null,null,null,null,null,null,null,null,null,null,null,0,0,""]
[null,null,null,null,null,null,null,null,null,null,null,null,null,null,null,null,null,null,null,null,null,0,0,""]
[null,null,null,null,null,null,null,null,null,null,null,null,null,null,null,null,null,null,null,null,null,0,0,""]
[null,null,null,null,null,null,null,null,null,null,null,null,null,null,null,null,null,null,null,null,null,0,0,""]
[null,null,null,null,null,null,null,null,null,null,null,null,null,null,null,null,null,null,null,null,null,0,0,""]
[null,null,null,null,null,null,null,null,null,null,null,null,null,null,null,null,null,null,null,null,null,0,0,""]
[null,null,null,null,null,null,null,null,null,null,null,null,null,null,null,null,null,null,null,null,null,0,0,""]
[null,null,null,null,null,null,null,null,null,null,null,null,null,null,null,null,null,null,null,null,null,0,0,""]
[null,null,null,null,null,null,null,null,null,null,null,null,null,null,null,null,null,null,null,null,null,0,0,""]
[null,null,null,null,null,null,null,null,null,null,null,null,null,null,null,null,null,null,null,null,null,0,0,""]
[null,null,null,null,null,null,null,null,null,null,null,null,null,null,null,null,null,null,null,null,null,0,0,""]
[null,null,null,null,null,null,null,null,null,null,null,null,null,null,null,null,null,null,null,null,null,0,0,""]
[null,null,null,null,null,null,null,null,null,null,null,null,null,null,null,null,null,null,null,null,null,0,0,""]
[null,null,null,null,null,null,null,null,null,null,null,null,null,null,null,null,null,null,null,null,null,0,0,""]
[null,null,null,null,null,null,null,null,null,null,null,null,null,null,null,null,null,null,null,null,null,0,0,""]
[null,null,null,null,null,null,null,null,null,null,null,null,null,null,null,null,null,null,null,null,null,0,0,""]
[null,null,null,null,null,null,null,null,null,null,null,null,null,null,null,null,null,null,null,null,null,0,0,""]
[null,null,null,null,null,null,null,null,null,null,null,null,null,null,null,null,null,null,null,null,null,0,0,""]
[null,null,null,null,null,null,null,null,null,null,null,null,null,null,null,null,null,null,null,null,null,0,0,""]
[null,null,null,null,null,null,null,null,null,null,null,null,null,null,null,null,null,null,null,null,null,0,{"$f":"IF(L48=\"\",0,L48)*КИЛОМЕТР+(M48+O48+Q48+S48)*НАСОС+(N48+P48+R48+T48)*БЕЗ_НАСОСА","v":0},""]
[null,null,null,null,null,null,null,null,null,null,null,null,null,null,null,null,null,null,null,null,null,0,0,""]
[null,null,null,null,null,null,null,null,null,null,null,null,null,null,null,null,null,null,null,null,null,0,0,""]
[null,null,null,null,null,null,null,null,null,null,null,null,null,null,null,null,null,null,null,null,null,0,0,""]
[null,null,null,null,null,null,null,null,null,null,null,null,null,null,null,null,null,null,null,null,null,0,0,""]
[null,null,null,null,null,null,null,null,null,null,null,null,null,null,null,null,null,null,null,null,null,0,0,""]
[null,null,null,null,null,null,null,null,null,null,null,null,null,null,null,null,null,null,null,null,null,0,0,""]
[null,null,null,null,null,null,null,null,null,null,null,null,null,null,null,null,null,null,null,null,null,0,0,""]
[null,null,null,null,null,null,null,null,null,null,null,null,null,null,null,null,null,null,null,null,null,0,0,""]
[null,null,null,null,null,null,null,null,null,null,null,{"$f":"IF(K58=\"\",\"\",K58-K57)","v":""},null,null,null,null,null,null,null,null,null,0,0,""]
[null,null,null,null,null,null,null,null,null,null,null,"",null,null,null,null,null,null,null,null,null,0,0,""]
[null,null,null,null,null,null,null,null,null,null,null,"",null,null,null,null,null,null,null,null,null,0,0,""]
[null,null,null,null,null,null,null,null,null,null,null,"",null,null,null,null,null,null,null,null,null,0,0,""]
[null,null,null,null,null,null,null,null,null,null,null,"",null,null,null,null,null,null,null,null,null,0,0,""]
[null,null,null,null,null,null,null,null,null,null,null,"",null,null,null,null,null,null,null,null,null,0,0,""]
[null,null,null,null,null,null,null,null,null,null,null,"",null,null,null,null,null,null,null,null,null,0,0,""]
[null,null,null,null,null,null,null,null,null,null,null,{"$f":"IF(K65=\"\",\"\",K65-K64)","v":""},null,null,null,null,null,null,null,null,null,0,0,""]
[null,null,null,null,null,null,null,null,null,null,null,{"$f":"IF(K66=\"\",\"\",K66-K65)","v":""},null,null,null,null,null,null,null,null,null,0,0,""]
[null,null,null,null,null,null,null,null,null,null,null,"",null,null,null,null,null,null,null,null,null,0,0,""]
[null,null,null,null,null,null,null,null,null,null,null,"",null,null,null,null,null,null,null,null,null,0,0,""]
[null,null,null,null,null,null,null,null,null,null,null,"",null,null,null,null,null,null,null,null,null,0,0,""]
[null,null,null,null,null,null,null,null,null,null,null,"",null,null,null,null,null,null,null,null,null,0,0,""]
[null,null,null,null,null,null,null,null,null,null,null,null,null,null,null,null,null,null,null,null,null,0,0,{"$f":"IF(W70=0,\"\",X69-W70+U70)","v":""}]
["                    ИТОГО за месяц",null,null,null,null,null,null,null,null,null,null,{"$f":"SUM(L16:L70)","v":0},0,0,0,0,0,0,0,0,0,0,0,{"$f":"Остаток_на_начало_месяца+Заправлено-W71","v":0.11}]
["                    Израсходовано топлива по элементам работы(в литрах)",null,null,null,null,null,null,null,null,null,null,{"$f":"L71*КИЛОМЕТР","v":0},{"$f":"M71*НАСОС","v":0},{"$f":"N71*БЕЗ_НАСОСА","v":0},{"$f":"O71*НАСОС","v":0},{"$f":"P71*БЕЗ_НАСОСА","v":0},{"$f":"Q71*НАСОС","v":0},{"$f":"R71*БЕЗ_НАСОСА","v":0},{"$f":"S71*НАСОС","v":0},{"$f":"T71*БЕЗ_НАСОСА","v":0}]
[null,"Наработка  за отчетный месяц в км.(с учетом приведенного)",null,null,null,null,null,null,null,{"$f":"(M71+O71+Q71+S71)/60*50+L71","v":0},null,"км. "]
[null,null,null,null,null,null,null,null,null,null,null,null,null,null,null,null,"Текущая норма",null,null,null,null,"Пробег по спидометру, км",null,null,{"$f":"L71","v":0}]
[null,null,"Руководитель подразделения",null,null,null,null,null,null,null,null,"Старший водитель",null,null,null,null,"1 км",null,null,null,null,"Наработка с насосом м.ч.",null,null,{"$f":"(M71+O71+Q71+S71)/60","v":0}]
[null,null,"<_____>______________________2015г.",null,null,null,null,null,null,null,null,"<_____>_____________2015г.",null,null,null,null,"1 мин с насосом",null,null,9.2999999999999992E-3,null,"Наработка без насоса",null,null,{"$f":"N71+P71+R71+T71","v":0}]
[null,null,null,null,null,"Коряков В.Н.",null,null,null,null,null,"                     Ломакин В.В.",null,null,null,null,"1 мин без насоса",null,null,9.2999999999999992E-3,null,"Приведенный пробег",null,null,{"$f":"Y75*50","v":0}]
[null,null,null,null,null,null,null,null,null,null,null,null,null,null,null,null,null,null,null,null,null,"Общий пробег",null,null,{"$f":"Y74+Y77","v":0}]

{"sheet":"Столб ","index":15,"n_rows":78,"n_cols":26,"rows_kept":78,"cut":false,"hidden":false,"merged":[[0,0,0,25],[1,0,1,5],[1,6,1,10],[1,17,1,19],[1,20,1,21],[2,0,2,22],[2,23,2,25],[6,0,6,11],[6,12,6,22],[7,0,7,23],[8,4,8,5],[8,6,8,8],[8,9,8,10],[8,11,8,18],[3,0,3,9],[3,10,3,12],[3,13,3,14],[3,15,3,17],[4,10,4,22],[5,0,5,7],[5,8,5,22],[9,4,9,5],[9,6,9,8],[9,9,9,10],[9,11,9,18],[10,0,10,25],[11,0,13,0],[11,1,13,5],[11,6,11,20],[11,21,12,22],[11,23,13,23],[11,24,12,25],[12,6,12,7],[12,8,12,9],[12,10,13,10],[12,11,13,11],[12,12,12,13],[12,14,12,15],[12,16,12,17],[12,18,12,19],[12,20,13,20],[20,1,20,5],[21,1,21,5],[22,1,22,5],[23,1,23,5],[24,1,24,5],[25,1,25,5],[14,1,14,5],[15,1,15,5],[16,1,16,5],[17,1,17,5],[18,1,18,5],[19,1,19,5],[32,1,32,5],[33,1,33,5],[34,1,34,5],[35,1,35,5],[36,1,36,5],[37,1,37,5],[26,1,26,5],[27,1,27,5],[28,1,28,5],[29,1,29,5],[30,1,30,5],[31,1,31,5],[44,1,44,5],[45,1,45,5],[46,1,46,5],[47,1,47,5],[48,1,48,5],[49,1,49,5],[38,1,38,5],[39,1,39,5],[40,1,40,5],[41,1,41,5],[42,1,42,5],[43,1,43,5],[56,1,56,5],[57,1,57,5],[58,1,58,5],[59,1,59,5],[60,1,60,5],[61,1,61,5],[50,1,50,5],[51,1,51,5],[52,1,52,5],[53,1,53,5],[54,1,54,5],[55,1,55,5],[68,1,68,5],[69,1,69,5],[70,0,70,10],[71,0,71,10],[72,9,72,10],[73,16,73,20],[62,1,62,5],[63,1,63,5],[64,1,64,5],[65,1,65,5],[66,1,66,5],[67,1,67,5],[77,21,77,23],[73,21,73,23],[74,19,74,20],[74,21,74,23],[75,19,75,20],[75,21,75,23],[76,11,76,15],[76,19,76,20],[76,21,76,23]]}
["Эксплуатационная карта"]
["      Работы механизма за",null,null,null,null,null,{"$f":"Нормы!G3","v":"Март   2015 г"},null,null,null,null,"Наименование и № подразделения   ",null,null,null,null,null,"КГКУ 9- ОПС",null,null,"37- ПЧ"]
["      Тип,марка,модель                                                   Аварийная осветительная установка TLG 600/400 S 2,7                                                                                                                                                   "]
[]
["      Остаток топлива  на 1-е число отчетного месяца",null,null,null,null,null,null,null,null,null,{"$f":"'отчёт '!F41","v":2.38},null,null,null,null,null,null,null,null,null,null,null,null,"литр."]
["      Заправлено топлива  за отчетный месяц",null,null,null,null,null,null,null,{"$f":"U71","v":0},null,null,null,null,null,null,null,null,null,null,null,null,null,null,"литр."]
["      Остаток топлива  на 1-е число следующего за отчетным месяцем",null,null,null,null,null,null,null,null,null,null,null,{"$f":"X71","v":2.38},null,null,null,null,null,null,null,null,null,null,"литр."]
["Результат расхода топлива за отчетный месяц"]
[null,null,null,null,"фактически",null,{"$f":"V71","v":0},null,null,"литр.",null," Экономия _________________литр."]
[null,null,null,null,"по нормам",null,{"$f":"W71","v":0},null,null,"литр.",null,"Перерасход _________________литр."]
[]
["дата","Наименование и место работы автомобиля(То,работа на пожаре,учениях и др)",null,null,null,null,"работа механизма",null,null,null,null,null,null,null,null,null,null,null,null,null,null,"расход топлива в литрах",null,"Остаток топлива ","подписи"]
[null,null,null,null,null,null,"время выезда",null,"время возвращения ",null,"показания спидометра перед выездом ","пройдено км к месту работы и обратно","на пожарах(в мин)",null,"на учениях (в мин)",null," при смене караула (в мин)",null,"на прочих работах",null,"заправлено топлива "]
[null,null,null,null,null,null,"часы","минуты","часы","минуты",null,null,"с насосом","без насоса","с насосом","без насоса","с насосом","без насоса","с насосом","без насоса",null,"фактически","по нормам",null,"водителя","начальника караула"]
[1,2,null,null,null,null,3,4,5,6,7,8,9,10,11,12,13,14,15,16,17,18,19,20,21,22]
["1,03","Смена караула",null,null,null,null,null,null,null,null,null,null,null,null,null,null,null,null,null,null,null,{"$f":"W16","v":0},{"$f":"IF(L16=\"\",0,L16)*КИЛОМЕТР+(M16+O16+Q16+S16)*НАСОС+(N16+P16+R16+T16)*БЕЗ_НАСОСА","v":0},{"$f":"Остаток_на_начало_месяца-W16+U16","v":2.38}]
[null,null,null,null,null,null,null,null,null,null,null,null,null,null,null,null,null,null,null,null,null,{"$f":"W17","v":0},0,{"$f":"IF(W17=0,\"\",X16-W17+U17)","v":""}]
[null,null,null,null,null,null,null,null,null,null,null,null,null,null,null,null,null,null,null,null,null,{"$f":"W18","v":0},0,""]
[null,null,null,null,null,null,null,null,null,null,null,null,null,null,null,null,null,null,null,null,null,0,0,""]
[null,null,null,null,null,null,null,null,null,null,null,null,null,null,null,null,null,null,null,null,null,0,0,""]
[null,null,null,null,null,null,null,null,null,null,null,null,null,null,null,null,null,null,null,null,null,0,0,""]
[null,null,null,null,null,null,null,null,null,null,null,null,null,null,null,null,null,null,null,null,null,0,0,""]
[null,null,null,null,null,null,null,null,null,null,null,null,null,null,null,null,null,null,null,null,null,0,0,""]
[null,null,null,null,null,null,null,null,null,null,null,null,null,null,null,null,null,null,null,null,null,0,0,""]
[null,null,null,null,null,null,null,null,null,null,null,null,null,null,null,null,null,null,null,null,null,0,0,""]
[null,null,null,null,null,null,null,null,null,null,null,null,null,null,null,null,null,null,null,null,null,0,0,""]
[null,null,null,null,null,null,null,null,null,null,null,null,null,null,null,null,null,null,null,null,null,0,0,""]
[null,null,null,null,null,null,null,null,null,null,null,null,null,null,null,null,null,null,null,null,null,0,0,""]
[null,null,null,null,null,null,null,null,null,null,null,null,null,null,null,null,null,null,null,null,null,0,0,""]
[null,null,null,null,null,null,null,null,null,null,null,null,null,null,null,null,null,null,null,null,null,0,0,""]
[null,null,null,null,null,null,null,null,null,null,null,null,null,null,null,null,null,null,null,null,null,0,0,""]
[null,null,null,null,null,null,null,null,null,null,null,null,null,null,null,null,null,null,null,null,null,0,0,""]
[null,null,null,null,null,null,null,null,null,null,null,null,null,null,null,null,null,null,null,null,null,0,0,""]
[null,null,null,null,null,null,null,null,null,null,null,null,null,null,null,null,null,null,null,null,null,0,0,""]
[null,null,null,null,null,null,null,null,null,null,null,null,null,null,null,null,null,null,null,null,null,0,0,""]
[null,null,null,null,null,null,null,null,null,null,null,null,null,null,null,null,null,null,null,null,null,0,0,""]
[null,null,null,null,null,null,null,null,null,null,null,null,null,null,null,null,null,null,null,null,null,0,0,""]
[null,null,null,null,null,null,null,null,null,null,null,null,null,null,null,null,null,null,null,null,null,0,0,""]
[null,null,null,null,null,null,null,null,null,null,null,null,null,null,null,null,null,null,null,null,null,0,0,""]
[null,null,null,null,null,null,null,null,null,null,null,null,null,null,null,null,null,null,null,null,null,0,0,""]
[null,null,null,null,null,null,null,null,null,null,null,null,null,null,null,null,null,null,null,null,null,0,0,""]
[null,null,null,null,null,null,null,null,null,null,null,null,null,null,null,null,null,null,null,null,null,0,0,""]
[null,null,null,null,null,null,null,null,null,null,null,null,null,null,null,null,null,null,null,null,null,0,0,""]
[null,null,null,null,null,null,null,null,null,null,null,null,null,null,null,null,null,null,null,null,null,0,0,""]
[null,null,null,null,null,null,null,null,null,null,null,null,null,null,null,null,null,null,null,null,null,0,0,""]
[null,null,null,null,null,null,null,null,null,null,null,null,null,null,null,null,null,null,null,null,null,0,0,""]
[null,null,null,null,null,null,null,null,null,null,null,null,null,null,null,null,null,null,null,null,null,0,0,""]
[null,null,null,null,null,null,null,null,null,null,null,null,null,null,null,null,null,null,null,null,null,0,{"$f":"IF(L48=\"\",0,L48)*КИЛОМЕТР+(M48+O48+Q48+S48)*НАСОС+(N48+P48+R48+T48)*БЕЗ_НАСОСА","v":0},""]
[null,null,null,null,null,null,null,null,null,null,null,null,null,null,null,null,null,null,null,null,null,0,0,""]
[null,null,null,null,null,null,null,null,null,null,null,null,null,null,null,null,null,null,null,null,null,0,0,""]
[null,null,null,null,null,null,null,null,null,null,null,null,null,null,null,null,null,null,null,null,null,0,0,""]
[null,null,null,null,null,null,null,null,null,null,null,null,null,null,null,null,null,null,null,null,null,0,0,""]
[null,null,null,null,null,null,null,null,null,null,null,null,null,null,null,null,null,null,null,null,null,0,0,""]
[null,null,null,null,null,null,null,null,null,null,null,null,null,null,null,null,null,null,null,null,null,0,0,""]
[null,null,null,null,null,null,null,null,null,null,null,null,null,null,null,null,null,null,null,null,null,0,0,""]
[null,null,null,null,null,null,null,null,null,null,null,null,null,null,null,null,null,null,null,null,null,0,0,""]
[null,null,null,null,null,null,null,null,null,null,null,{"$f":"IF(K58=\"\",\"\",K58-K57)","v":""},null,null,null,null,null,null,null,null,null,0,0,""]
[null,null,null,null,null,null,null,null,null,null,null,"",null,null,null,null,null,null,null,null,null,0,0,""]
[null,null,null,null,null,null,null,null,null,null,null,"",null,null,null,null,null,null,null,null,null,0,0,""]
[null,null,null,null,null,null,null,null,null,null,null,"",null,null,null,null,null,null,null,null,null,0,0,""]
[null,null,null,null,null,null,null,null,null,null,null,"",null,null,null,null,null,null,null,null,null,0,0,""]
[null,null,null,null,null,null,null,null,null,null,null,"",null,null,null,null,null,null,null,null,null,0,0,""]
[null,null,null,null,null,null,null,null,null,null,null,"",null,null,null,null,null,null,null,null,null,0,0,""]
[null,null,null,null,null,null,null,null,null,null,null,{"$f":"IF(K65=\"\",\"\",K65-K64)","v":""},null,null,null,null,null,null,null,null,null,0,0,""]
[null,null,null,null,null,null,null,null,null,null,null,{"$f":"IF(K66=\"\",\"\",K66-K65)","v":""},null,null,null,null,null,null,null,null,null,0,0,""]
[null,null,null,null,null,null,null,null,null,null,null,"",null,null,null,null,null,null,null,null,null,0,0,""]
[null,null,null,null,null,null,null,null,null,null,null,"",null,null,null,null,null,null,null,null,null,0,0,""]
[null,null,null,null,null,null,null,null,null,null,null,"",null,null,null,null,null,null,null,null,null,0,0,""]
[null,null,null,null,null,null,null,null,null,null,null,"",null,null,null,null,null,null,null,null,null,0,0,""]
[null,null,null,null,null,null,null,null,null,null,null,null,null,null,null,null,null,null,null,null,null,0,0,""]
["                    ИТОГО за месяц",null,null,null,null,null,null,null,null,null,null,{"$f":"SUM(L16:L70)","v":0},0,0,0,0,0,0,0,0,0,0,0,{"$f":"Остаток_на_начало_месяца+Заправлено-W71","v":2.38}]
["                    Израсходовано топлива по элементам работы(в литрах)",null,null,null,null,null,null,null,null,null,null,{"$f":"L71*КИЛОМЕТР","v":0},{"$f":"M71*НАСОС","v":0},{"$f":"N71*БЕЗ_НАСОСА","v":0},{"$f":"O71*НАСОС","v":0},{"$f":"P71*БЕЗ_НАСОСА","v":0},{"$f":"Q71*НАСОС","v":0},{"$f":"R71*БЕЗ_НАСОСА","v":0},{"$f":"S71*НАСОС","v":0},{"$f":"T71*БЕЗ_НАСОСА","v":0}]
[null,"Наработка  за отчетный месяц в км.(с учетом приведенного)",null,null,null,null,null,null,null,{"$f":"(M71+O71+Q71+S71)/60*50+L71","v":0},null,"км. "]
[null,null,null,null,null,null,null,null,null,null,null,null,null,null,null,null,"Текущая норма",null,null,null,null,"Пробег по спидометру, км",null,null,{"$f":"L71","v":0}]
[null,null,"Руководитель подразделения",null,null,null,null,null,null,null,null,"Старший водитель",null,null,null,null,"1 км",null,null,null,null,"Наработка с насосом м.ч.",null,null,{"$f":"(M71+O71+Q71+S71)/60","v":0}]
[null,null,"<_____>______________________2015г.",null,null,null,null,null,null,null,null,"<_____>_____________2015г.",null,null,null,null,"1 мин с насосом",null,null,0.02,null,"Наработка без насоса",null,null,{"$f":"N71+P71+R71+T71","v":0}]
[null,null,null,null,null,"Коряков В.Н.",null,null,null,null,null,"                     Ломакин В.В.",null,null,null,null,"1 мин без насоса",null,null,0.02,null,"Приведенный пробег",null,null,{"$f":"Y75*50","v":0}]
[null,null,null,null,null,null,null,null,null,null,null,null,null,null,null,null,null,null,null,null,null,"Общий пробег",null,null,{"$f":"Y74+Y77","v":0}]

{"sheet":"Дымосос","index":16,"n_rows":78,"n_cols":26,"rows_kept":78,"cut":false,"hidden":false,"merged":[[67,1,67,5],[66,1,66,5],[65,1,65,5],[64,1,64,5],[63,1,63,5],[62,1,62,5],[0,0,0,25],[1,0,1,5],[1,6,1,10],[1,17,1,19],[1,20,1,21],[2,0,2,22],[2,23,2,25],[6,0,6,11],[6,12,6,22],[7,0,7,23],[8,4,8,5],[8,6,8,8],[8,9,8,10],[8,11,8,18],[3,0,3,9],[3,10,3,12],[3,13,3,14],[3,15,3,17],[4,10,4,22],[5,0,5,7],[5,8,5,22],[9,4,9,5],[9,6,9,8],[9,9,9,10],[9,11,9,18],[10,0,10,25],[11,0,13,0],[11,1,13,5],[11,6,11,20],[11,21,12,22],[11,23,13,23],[11,24,12,25],[12,6,12,7],[12,8,12,9],[12,10,13,10],[12,11,13,11],[12,12,12,13],[12,14,12,15],[12,16,12,17],[12,18,12,19],[12,20,13,20],[20,1,20,5],[21,1,21,5],[22,1,22,5],[23,1,23,5],[24,1,24,5],[25,1,25,5],[14,1,14,5],[15,1,15,5],[16,1,16,5],[17,1,17,5],[18,1,18,5],[19,1,19,5],[32,1,32,5],[33,1,33,5],[34,1,34,5],[35,1,35,5],[36,1,36,5],[37,1,37,5],[26,1,26,5],[27,1,27,5],[28,1,28,5],[29,1,29,5],[30,1,30,5],[31,1,31,5],[44,1,44,5],[45,1,45,5],[46,1,46,5],[47,1,47,5],[48,1,48,5],[49,1,49,5],[38,1,38,5],[39,1,39,5],[40,1,40,5],[41,1,41,5],[42,1,42,5],[43,1,43,5],[56,1,56,5],[57,1,57,5],[58,1,58,5],[59,1,59,5],[60,1,60,5],[61,1,61,5],[50,1,50,5],[51,1,51,5],[52,1,52,5],[53,1,53,5],[54,1,54,5],[55,1,55,5],[68,1,68,5],[69,1,69,5],[70,0,70,10],[71,0,71,10],[72,9,72,10],[73,16,73,20],[77,21,77,23],[73,21,73,23],[74,19,74,20],[74,21,74,23],[75,19,75,20],[75,21,75,23],[76,11,76,15],[76,19,76,20],[76,21,76,23]]}
["Эксплуатационная карта"]
["      Работы механизма за",null,null,null,null,null,{"$f":"Нормы!G3","v":"Март   2015 г"},null,null,null,null,"Наименование и № подразделения   ",null,null,null,null,null,"КГКУ 9- ОПС",null,null,"37- ПЧ"]
["      Тип,марка,модель                                                   Дымосос \"Буран\" ДПМ - 20                                                                                                                                                   "]
[]
["      Остаток топлива  на 1-е число отчетного месяца",null,null,null,null,null,null,null,null,null,{"$f":"'отчёт '!F42","v":2.76},null,null,null,null,null,null,null,null,null,null,null,null,"литр."]
["      Заправлено топлива  за отчетный месяц",null,null,null,null,null,null,null,{"$f":"U71","v":0},null,null,null,null,null,null,null,null,null,null,null,null,null,null,"литр."]
["      Остаток топлива  на 1-е число следующего за отчетным месяцем",null,null,null,null,null,null,null,null,null,null,null,{"$f":"X71","v":2.76},null,null,null,null,null,null,null,null,null,null,"литр."]
["Результат расхода топлива за отчетный месяц"]
[null,null,null,null,"фактически",null,{"$f":"V71","v":0},null,null,"литр.",null," Экономия _________________литр."]
[null,null,null,null,"по нормам",null,{"$f":"W71","v":0},null,null,"литр.",null,"Перерасход _________________литр."]
[]
["дата","Наименование и место работы автомобиля(То,работа на пожаре,учениях и др)",null,null,null,null,"работа механизма",null,null,null,null,null,null,null,null,null,null,null,null,null,null,"расход топлива в литрах",null,"Остаток топлива ","подписи"]
[null,null,null,null,null,null,"время выезда",null,"время возвращения ",null,"показания спидометра перед выездом ","пройдено км к месту работы и обратно","на пожарах(в мин)",null,"на учениях (в мин)",null," при смене караула (в мин)",null,"на прочих работах",null,"заправлено топлива "]
[null,null,null,null,null,null,"часы","минуты","часы","минуты",null,null,"с насосом","без насоса","с насосом","без насоса","с насосом","без насоса","с насосом","без насоса",null,"фактически","по нормам",null,"водителя","начальника караула"]
[1,2,null,null,null,null,3,4,5,6,7,8,9,10,11,12,13,14,15,16,17,18,19,20,21,22]
["1,03","Смена караула",null,null,null,null,null,null,null,null,null,null,null,null,null,null,null,null,null,null,null,{"$f":"W16","v":0},{"$f":"IF(L16=\"\",0,L16)*КИЛОМЕТР+(M16+O16+Q16+S16)*НАСОС+(N16+P16+R16+T16)*БЕЗ_НАСОСА","v":0},{"$f":"Остаток_на_начало_месяца-W16+U16","v":2.76}]
[null,null,null,null,null,null,null,null,null,null,null,null,null,null,null,null,null,null,null,null,null,{"$f":"W17","v":0},0,{"$f":"IF(W17=0,\"\",X16-W17+U17)","v":""}]
[null,null,null,null,null,null,null,null,null,null,null,null,null,null,null,null,null,null,null,null,null,{"$f":"W18","v":0},0,""]
[null,null,null,null,null,null,null,null,null,null,null,null,null,null,null,null,null,null,null,null,null,0,0,""]
[null,null,null,null,null,null,null,null,null,null,null,null,null,null,null,null,null,null,null,null,null,0,0,""]
[null,null,null,null,null,null,null,null,null,null,null,null,null,null,null,null,null,null,null,null,null,0,0,""]
[null,null,null,null,null,null,null,null,null,null,null,null,null,null,null,null,null,null,null,null,null,0,0,""]
[null,null,null,null,null,null,null,null,null,null,null,null,null,null,null,null,null,null,null,null,null,0,0,""]
[null,null,null,null,null,null,null,null,null,null,null,null,null,null,null,null,null,null,null,null,null,0,0,""]
[null,null,null,null,null,null,null,null,null,null,null,null,null,null,null,null,null,null,null,null,null,0,0,""]
[null,null,null,null,null,null,null,null,null,null,null,null,null,null,null,null,null,null,null,null,null,0,0,""]
[null,null,null,null,null,null,null,null,null,null,null,null,null,null,null,null,null,null,null,null,null,0,0,""]
[null,null,null,null,null,null,null,null,null,null,null,null,null,null,null,null,null,null,null,null,null,0,0,""]
[null,null,null,null,null,null,null,null,null,null,null,null,null,null,null,null,null,null,null,null,null,0,0,""]
[null,null,null,null,null,null,null,null,null,null,null,null,null,null,null,null,null,null,null,null,null,0,0,""]
[null,null,null,null,null,null,null,null,null,null,null,null,null,null,null,null,null,null,null,null,null,0,0,""]
[null,null,null,null,null,null,null,null,null,null,null,null,null,null,null,null,null,null,null,null,null,0,0,""]
[null,null,null,null,null,null,null,null,null,null,null,null,null,null,null,null,null,null,null,null,null,0,0,""]
[null,null,null,null,null,null,null,null,null,null,null,null,null,null,null,null,null,null,null,null,null,0,0,""]
[null,null,null,null,null,null,null,null,null,null,null,null,null,null,null,null,null,null,null,null,null,0,0,""]
[null,null,null,null,null,null,null,null,null,null,null,null,null,null,null,null,null,null,null,null,null,0,0,""]
[null,null,null,null,null,null,null,null,null,null,null,null,null,null,null,null,null,null,null,null,null,0,0,""]
[null,null,null,null,null,null,null,null,null,null,null,null,null,null,null,null,null,null,null,null,null,0,0,""]
[null,null,null,null,null,null,null,null,null,null,null,null,null,null,null,null,null,null,null,null,null,0,0,""]
[null,null,null,null,null,null,null,null,null,null,null,null,null,null,null,null,null,null,null,null,null,0,0,""]
[null,null,null,null,null,null,null,null,null,null,null,null,null,null,null,null,null,null,null,null,null,0,0,""]
[null,null,null,null,null,null,null,null,null,null,null,null,null,null,null,null,null,null,null,null,null,0,0,""]
[null,null,null,null,null,null,null,null,null,null,null,null,null,null,null,null,null,null,null,null,null,0,0,""]
[null,null,null,null,null,null,null,null,null,null,null,null,null,null,null,null,null,null,null,null,null,0,0,""]
[null,null,null,null,null,null,null,null,null,null,null,null,null,null,null,null,null,null,null,null,null,0,0,""]
[null,null,null,null,null,null,null,null,null,null,null,null,null,null,null,null,null,null,null,null,null,0,0,""]
[null,null,null,null,null,null,null,null,null,null,null,null,null,null,null,null,null,null,null,null,null,0,0,""]
[null,null,null,null,null,null,null,null,null,null,null,null,null,null,null,null,null,null,null,null,null,0,{"$f":"IF(L48=\"\",0,L48)*КИЛОМЕТР+(M48+O48+Q48+S48)*НАСОС+(N48+P48+R48+T48)*БЕЗ_НАСОСА","v":0},""]
[null,null,null,null,null,null,null,null,null,null,null,null,null,null,null,null,null,null,null,null,null,0,0,""]
[null,null,null,null,null,null,null,null,null,null,null,null,null,null,null,null,null,null,null,null,null,0,0,""]
[null,null,null,null,null,null,null,null,null,null,null,null,null,null,null,null,null,null,null,null,null,0,0,""]
[null,null,null,null,null,null,null,null,null,null,null,null,null,null,null,null,null,null,null,null,null,0,0,""]
[null,null,null,null,null,null,null,null,null,null,null,null,null,null,null,null,null,null,null,null,null,0,0,""]
[null,null,null,null,null,null,null,null,null,null,null,null,null,null,null,null,null,null,null,null,null,0,0,""]
[null,null,null,null,null,null,null,null,null,null,null,null,null,null,null,null,null,null,null,null,null,0,0,""]
[null,null,null,null,null,null,null,null,null,null,null,null,null,null,null,null,null,null,null,null,null,0,0,""]
[null,null,null,null,null,null,null,null,null,null,null,{"$f":"IF(K58=\"\",\"\",K58-K57)","v":""},null,null,null,null,null,null,null,null,null,0,0,""]
[null,null,null,null,null,null,null,null,null,null,null,"",null,null,null,null,null,null,null,null,null,0,0,""]
[null,null,null,null,null,null,null,null,null,null,null,"",null,null,null,null,null,null,null,null,null,0,0,""]
[null,null,null,null,null,null,null,null,null,null,null,"",null,null,null,null,null,null,null,null,null,0,0,""]
[null,null,null,null,null,null,null,null,null,null,null,"",null,null,null,null,null,null,null,null,null,0,0,""]
[null,null,null,null,null,null,null,null,null,null,null,"",null,null,null,null,null,null,null,null,null,0,0,""]
[null,null,null,null,null,null,null,null,null,null,null,"",null,null,null,null,null,null,null,null,null,0,0,""]
[null,null,null,null,null,null,null,null,null,null,null,{"$f":"IF(K65=\"\",\"\",K65-K64)","v":""},null,null,null,null,null,null,null,null,null,0,0,""]
[null,null,null,null,null,null,null,null,null,null,null,{"$f":"IF(K66=\"\",\"\",K66-K65)","v":""},null,null,null,null,null,null,null,null,null,0,0,""]
[null,null,null,null,null,null,null,null,null,null,null,"",null,null,null,null,null,null,null,null,null,0,0,""]
[null,null,null,null,null,null,null,null,null,null,null,"",null,null,null,null,null,null,null,null,null,0,0,""]
[null,null,null,null,null,null,null,null,null,null,null,"",null,null,null,null,null,null,null,null,null,0,0,""]
[null,null,null,null,null,null,null,null,null,null,null,"",null,null,null,null,null,null,null,null,null,0,0,{"$f":"IF(W69=0,\"\",X68-W69+U69)","v":""}]
[null,null,null,null,null,null,null,null,null,null,null,null,null,null,null,null,null,null,null,null,null,0,0,""]
["                    ИТОГО за месяц",null,null,null,null,null,null,null,null,null,null,{"$f":"SUM(L16:L70)","v":0},0,0,0,0,0,0,0,0,0,0,0,{"$f":"Остаток_на_начало_месяца+Заправлено-W71","v":2.76}]
["                    Израсходовано топлива по элементам работы(в литрах)",null,null,null,null,null,null,null,null,null,null,{"$f":"L71*КИЛОМЕТР","v":0},{"$f":"M71*НАСОС","v":0},{"$f":"N71*БЕЗ_НАСОСА","v":0},{"$f":"O71*НАСОС","v":0},{"$f":"P71*БЕЗ_НАСОСА","v":0},{"$f":"Q71*НАСОС","v":0},{"$f":"R71*БЕЗ_НАСОСА","v":0},{"$f":"S71*НАСОС","v":0},{"$f":"T71*БЕЗ_НАСОСА","v":0}]
[null,"Наработка  за отчетный месяц в км.(с учетом приведенного)",null,null,null,null,null,null,null,{"$f":"(M71+O71+Q71+S71)/60*50+L71","v":0},null,"км. "]
[null,null,null,null,null,null,null,null,null,null,null,null,null,null,null,null,"Текущая норма",null,null,null,null,"Пробег по спидометру, км",null,null,{"$f":"L71","v":0}]
[null,null,"Руководитель подразделения",null,null,null,null,null,null,null,null,"Старший водитель",null,null,null,null,"1 км",null,null,null,null,"Наработка с насосом м.ч.",null,null,{"$f":"(M71+O71+Q71+S71)/60","v":0}]
[null,null,"<_____>______________________2015г.",null,null,null,null,null,null,null,null,"<_____>_____________2015г.",null,null,null,null,"1 мин с насосом",null,null,7.6999999999999999E-2,null,"Наработка без насоса",null,null,{"$f":"N71+P71+R71+T71","v":0}]
[null,null,null,null,null,"Коряков В.Н.",null,null,null,null,null,"                     Ломакин В.В.",null,null,null,null,"1 мин без насоса",null,null,7.6999999999999999E-2,null,"Приведенный пробег",null,null,{"$f":"Y75*50","v":0}]
[null,null,null,null,null,null,null,null,null,null,null,null,null,null,null,null,null,null,null,null,null,"Общий пробег",null,null,{"$f":"Y74+Y77","v":0}]

{"sheet":" ВРМ-160","index":17,"n_rows":78,"n_cols":26,"rows_kept":78,"cut":false,"hidden":false,"merged":[[77,21,77,23],[73,21,73,23],[74,19,74,20],[74,21,74,23],[75,19,75,20],[75,21,75,23],[76,19,76,20],[76,21,76,23],[68,1,68,5],[69,1,69,5],[70,0,70,10],[71,0,71,10],[72,9,72,10],[73,16,73,20],[76,11,76,15],[62,1,62,5],[63,1,63,5],[64,1,64,5],[65,1,65,5],[66,1,66,5],[67,1,67,5],[56,1,56,5],[57,1,57,5],[58,1,58,5],[59,1,59,5],[60,1,60,5],[61,1,61,5],[50,1,50,5],[51,1,51,5],[52,1,52,5],[53,1,53,5],[54,1,54,5],[55,1,55,5],[44,1,44,5],[45,1,45,5],[46,1,46,5],[47,1,47,5],[48,1,48,5],[49,1,49,5],[38,1,38,5],[39,1,39,5],[40,1,40,5],[41,1,41,5],[42,1,42,5],[43,1,43,5],[32,1,32,5],[33,1,33,5],[34,1,34,5],[35,1,35,5],[36,1,36,5],[37,1,37,5],[26,1,26,5],[27,1,27,5],[28,1,28,5],[29,1,29,5],[30,1,30,5],[31,1,31,5],[20,1,20,5],[21,1,21,5],[22,1,22,5],[23,1,23,5],[24,1,24,5],[25,1,25,5],[14,1,14,5],[15,1,15,5],[16,1,16,5],[17,1,17,5],[18,1,18,5],[19,1,19,5],[11,24,12,25],[12,6,12,7],[12,8,12,9],[12,10,13,10],[12,11,13,11],[12,12,12,13],[12,14,12,15],[12,16,12,17],[12,18,12,19],[12,20,13,20],[9,4,9,5],[9,6,9,8],[9,9,9,10],[9,11,9,18],[10,0,10,25],[11,0,13,0],[11,1,13,5],[11,6,11,20],[11,21,12,22],[11,23,13,23],[7,0,7,23],[8,4,8,5],[8,6,8,8],[8,9,8,10],[8,11,8,18],[3,0,3,9],[3,10,3,12],[3,13,3,14],[3,15,3,17],[4,10,4,22],[5,0,5,7],[5,8,5,22],[0,0,0,25],[1,0,1,5],[1,6,1,10],[1,17,1,19],[1,20,1,21],[2,0,2,22],[2,23,2,25],[6,0,6,11],[6,12,6,22]]}
["Эксплуатационная карта"]
["      Работы механизма за",null,null,null,null,null,{"$f":"Нормы!G3","v":"Март   2015 г"},null,null,null,null,"Наименование и № подразделения   ",null,null,null,null,null,"КГКУ 9- ОПС",null,null,"37- ПЧ"]
["      Тип,марка,модель                                                   Моновентилятор ВРМ-160                                                                                                                                                   "]
[]
["      Остаток топлива  на 1-е число отчетного месяца",null,null,null,null,null,null,null,null,null,{"$f":"'отчёт '!F43","v":0.44},null,null,null,null,null,null,null,null,null,null,null,null,"литр."]
["      Заправлено топлива  за отчетный месяц",null,null,null,null,null,null,null,{"$f":"U71","v":0},null,null,null,null,null,null,null,null,null,null,null,null,null,null,"литр."]
["      Остаток топлива  на 1-е число следующего за отчетным месяцем",null,null,null,null,null,null,null,null,null,null,null,{"$f":"X71","v":0.44},null,null,null,null,null,null,null,null,null,null,"литр."]
["Результат расхода топлива за отчетный месяц"]
[null,null,null,null,"фактически",null,{"$f":"V71","v":0},null,null,"литр.",null," Экономия _________________литр."]
[null,null,null,null,"по нормам",null,{"$f":"W71","v":0},null,null,"литр.",null,"Перерасход _________________литр."]
[]
["дата","Наименование и место работы автомобиля(То,работа на пожаре,учениях и др)",null,null,null,null,"работа механизма",null,null,null,null,null,null,null,null,null,null,null,null,null,null,"расход топлива в литрах",null,"Остаток топлива ","подписи"]
[null,null,null,null,null,null,"время выезда",null,"время возвращения ",null,"показания спидометра перед выездом ","пройдено км к месту работы и обратно","на пожарах(в мин)",null,"на учениях (в мин)",null," при смене караула (в мин)",null,"на прочих работах",null,"заправлено топлива "]
[null,null,null,null,null,null,"часы","минуты","часы","минуты",null,null,"с насосом","без насоса","с насосом","без насоса","с насосом","без насоса","с насосом","без насоса",null,"фактически","по нормам",null,"водителя","начальника караула"]
[1,2,null,null,null,null,3,4,5,6,7,8,9,10,11,12,13,14,15,16,17,18,19,20,21,22]
["1,03","Смена караула",null,null,null,null,null,null,null,null,null,null,null,null,null,null,null,null,null,null,null,{"$f":"W16","v":0},{"$f":"IF(L16=\"\",0,L16)*КИЛОМЕТР+(M16+O16+Q16+S16)*НАСОС+(N16+P16+R16+T16)*БЕЗ_НАСОСА","v":0},{"$f":"Остаток_на_начало_месяца-W16+U16","v":0.44}]
[null,null,null,null,null,null,null,null,null,null,null,null,null,null,null,null,null,null,null,null,null,{"$f":"W17","v":0},0,{"$f":"IF(W17=0,\"\",X16-W17+U17)","v":""}]
[null,null,null,null,null,null,null,null,null,null,null,null,null,null,null,null,null,null,null,null,null,{"$f":"W18","v":0},0,""]
[null,null,null,null,null,null,null,null,null,null,null,null,null,null,null,null,null,null,null,null,null,0,0,""]
[null,null,null,null,null,null,null,null,null,null,null,null,null,null,null,null,null,null,null,null,null,0,0,""]
[null,null,null,null,null,null,null,null,null,null,null,null,null,null,null,null,null,null,null,null,null,0,0,""]
[null,null,null,null,null,null,null,null,null,null,null,null,null,null,null,null,null,null,null,null,null,0,0,""]
[null,null,null,null,null,null,null,null,null,null,null,null,null,null,null,null,null,null,null,null,null,0,0,""]
[null,null,null,null,null,null,null,null,null,null,null,null,null,null,null,null,null,null,null,null,null,0,0,""]
[null,null,null,null,null,null,null,null,null,null,null,null,null,null,null,null,null,null,null,null,null,0,0,""]
[null,null,null,null,null,null,null,null,null,null,null,null,null,null,null,null,null,null,null,null,null,0,0,""]
[null,null,null,null,null,null,null,null,null,null,null,null,null,null,null,null,null,null,null,null,null,0,0,""]
[null,null,null,null,null,null,null,null,null,null,null,null,null,null,null,null,null,null,null,null,null,0,0,""]
[null,null,null,null,null,null,null,null,null,null,null,null,null,null,null,null,null,null,null,null,null,0,0,""]
[null,null,null,null,null,null,null,null,null,null,null,null,null,null,null,null,null,null,null,null,null,0,0,""]
[null,null,null,null,null,null,null,null,null,null,null,null,null,null,null,null,null,null,null,null,null,0,0,""]
[null,null,null,null,null,null,null,null,null,null,null,null,null,null,null,null,null,null,null,null,null,0,0,""]
[null,null,null,null,null,null,null,null,null,null,null,null,null,null,null,null,null,null,null,null,null,0,0,""]
[null,null,null,null,null,null,null,null,null,null,null,null,null,null,null,null,null,null,null,null,null,0,0,""]
[null,null,null,null,null,null,null,null,null,null,null,null,null,null,null,null,null,null,null,null,null,0,0,""]
[null,null,null,null,null,null,null,null,null,null,null,null,null,null,null,null,null,null,null,null,null,0,0,""]
[null,null,null,null,null,null,null,null,null,null,null,null,null,null,null,null,null,null,null,null,null,0,0,""]
[null,null,null,null,null,null,null,null,null,null,null,null,null,null,null,null,null,null,null,null,null,0,0,""]
[null,null,null,null,null,null,null,null,null,null,null,null,null,null,null,null,null,null,null,null,null,0,0,""]
[null,null,null,null,null,null,null,null,null,null,null,null,null,null,null,null,null,null,null,null,null,0,0,""]
[null,null,null,null,null,null,null,null,null,null,null,null,null,null,null,null,null,null,null,null,null,0,0,""]
[null,null,null,null,null,null,null,null,null,null,null,null,null,null,null,null,null,null,null,null,null,0,0,""]
[null,null,null,null,null,null,null,null,null,null,null,null,null,null,null,null,null,null,null,null,null,0,0,""]
[null,null,null,null,null,null,null,null,null,null,null,null,null,null,null,null,null,null,null,null,null,0,0,""]
[null,null,null,null,null,null,null,null,null,null,null,null,null,null,null,null,null,null,null,null,null,0,0,""]
[null,null,null,null,null,null,null,null,null,null,null,null,null,null,null,null,null,null,null,null,null,0,0,""]
[null,null,null,null,null,null,null,null,null,null,null,null,null,null,null,null,null,null,null,null,null,0,0,""]
[null,null,null,null,null,null,null,null,null,null,null,null,null,null,null,null,null,null,null,null,null,0,{"$f":"IF(L48=\"\",0,L48)*КИЛОМЕТР+(M48+O48+Q48+S48)*НАСОС+(N48+P48+R48+T48)*БЕЗ_НАСОСА","v":0},""]
[null,null,null,null,null,null,null,null,null,null,null,null,null,null,null,null,null,null,null,null,null,0,0,""]
[null,null,null,null,null,null,null,null,null,null,null,null,null,null,null,null,null,null,null,null,null,0,0,""]
[null,null,null,null,null,null,null,null,null,null,null,null,null,null,null,null,null,null,null,null,null,0,0,""]
[null,null,null,null,null,null,null,null,null,null,null,null,null,null,null,null,null,null,null,null,null,0,0,""]
[null,null,null,null,null,null,null,null,null,null,null,null,null,null,null,null,null,null,null,null,null,0,0,""]
[null,null,null,null,null,null,null,null,null,null,null,null,null,null,null,null,null,null,null,null,null,0,0,""]
[null,null,null,null,null,null,null,null,null,null,null,null,null,null,null,null,null,null,null,null,null,0,0,""]
[null,null,null,null,null,null,null,null,null,null,null,null,null,null,null,null,null,null,null,null,null,0,0,""]
[null,null,null,null,null,null,null,null,null,null,null,{"$f":"IF(K58=\"\",\"\",K58-K57)","v":""},null,null,null,null,null,null,null,null,null,0,0,""]
[null,null,null,null,null,null,null,null,null,null,null,"",null,null,null,null,null,null,null,null,null,0,0,""]
[null,null,null,null,null,null,null,null,null,null,null,"",null,null,null,null,null,null,null,null,null,0,0,""]
[null,null,null,null,null,null,null,null,null,null,null,"",null,null,null,null,null,null,null,null,null,0,0,""]
[null,null,null,null,null,null,null,null,null,null,null,"",null,null,null,null,null,null,null,null,null,0,0,""]
[null,null,null,null,null,null,null,null,null,null,null,"",null,null,null,null,null,null,null,null,null,0,0,""]
[null,null,null,null,null,null,null,null,null,null,null,"",null,null,null,null,null,null,null,null,null,0,0,""]
[null,null,null,null,null,null,null,null,null,null,null,{"$f":"IF(K65=\"\",\"\",K65-K64)","v":""},null,null,null,null,null,null,null,null,null,0,0,""]
[null,null,null,null,null,null,null,null,null,null,null,{"$f":"IF(K66=\"\",\"\",K66-K65)","v":""},null,null,null,null,null,null,null,null,null,0,0,""]
[null,null,null,null,null,null,null,null,null,null,null,"",null,null,null,null,null,null,null,null,null,0,0,""]
[null,null,null,null,null,null,null,null,null,null,null,"",null,null,null,null,null,null,null,null,null,0,0,""]
[null,null,null,null,null,null,null,null,null,null,null,"",null,null,null,null,null,null,null,null,null,0,0,""]
[null,null,null,null,null,null,null,null,null,null,null,"",null,null,null,null,null,null,null,null,null,0,0,""]
[null,null,null,null,null,null,null,null,null,null,null,null,null,null,null,null,null,null,null,null,null,0,0,""]
["                    ИТОГО за месяц",null,null,null,null,null,null,null,null,null,null,{"$f":"SUM(L16:L70)","v":0},0,0,0,0,0,0,0,0,0,0,0,{"$f":"Остаток_на_начало_месяца+Заправлено-W71","v":0.44}]
["                    Израсходовано топлива по элементам работы(в литрах)",null,null,null,null,null,null,null,null,null,null,{"$f":"L71*КИЛОМЕТР","v":0},{"$f":"M71*НАСОС","v":0},{"$f":"N71*БЕЗ_НАСОСА","v":0},{"$f":"O71*НАСОС","v":0},{"$f":"P71*БЕЗ_НАСОСА","v":0},{"$f":"Q71*НАСОС","v":0},{"$f":"R71*БЕЗ_НАСОСА","v":0},{"$f":"S71*НАСОС","v":0},{"$f":"T71*БЕЗ_НАСОСА","v":0}]
[null,"Наработка  за отчетный месяц в км.(с учетом приведенного)",null,null,null,null,null,null,null,{"$f":"(M71+O71+Q71+S71)/60*50+L71","v":0},null,"км. "]
[null,null,null,null,null,null,null,null,null,null,null,null,null,null,null,null,"Текущая норма",null,null,null,null,"Пробег по спидометру, км",null,null,{"$f":"L71","v":0}]
[null,null,"Руководитель подразделения",null,null,null,null,null,null,null,null,"Старший водитель",null,null,null,null,"1 км",null,null,null,null,"Наработка с насосом м.ч.",null,null,{"$f":"(M71+O71+Q71+S71)/60","v":0}]
[null,null,"<_____>______________________2015г.",null,null,null,null,null,null,null,null,"<_____>_____________2015г.",null,null,null,null,"1 мин с насосом",null,null,0.01,null,"Наработка без насоса",null,null,{"$f":"N71+P71+R71+T71","v":0}]
[null,null,null,null,null,"Коряков В.Н.",null,null,null,null,null,"                     Ломакин В.В.",null,null,null,null,"1 мин без насоса",null,null,0.01,null,"Приведенный пробег",null,null,{"$f":"Y75*50","v":0}]
[null,null,null,null,null,null,null,null,null,null,null,null,null,null,null,null,null,null,null,null,null,"Общий пробег",null,null,{"$f":"Y74+Y77","v":0}]

{"sheet":"Вепрь АПВ-6","index":18,"n_rows":78,"n_cols":26,"rows_kept":78,"cut":false,"hidden":false,"merged":[[0,0,0,25],[1,0,1,5],[1,6,1,10],[1,17,1,19],[1,20,1,21],[2,0,2,22],[2,23,2,25],[6,0,6,11],[6,12,6,22],[7,0,7,23],[8,4,8,5],[8,6,8,8],[8,9,8,10],[8,11,8,18],[3,0,3,9],[3,10,3,12],[3,13,3,14],[3,15,3,17],[4,10,4,22],[5,0,5,7],[5,8,5,22],[9,4,9,5],[9,6,9,8],[9,9,9,10],[9,11,9,18],[10,0,10,25],[11,0,13,0],[11,1,13,5],[11,6,11,20],[11,21,12,22],[11,23,13,23],[11,24,12,25],[12,6,12,7],[12,8,12,9],[12,10,13,10],[12,11,13,11],[12,12,12,13],[12,14,12,15],[12,16,12,17],[12,18,12,19],[12,20,13,20],[20,1,20,5],[21,1,21,5],[22,1,22,5],[23,1,23,5],[24,1,24,5],[25,1,25,5],[14,1,14,5],[15,1,15,5],[16,1,16,5],[17,1,17,5],[18,1,18,5],[19,1,19,5],[32,1,32,5],[33,1,33,5],[34,1,34,5],[35,1,35,5],[36,1,36,5],[37,1,37,5],[26,1,26,5],[27,1,27,5],[28,1,28,5],[29,1,29,5],[30,1,30,5],[31,1,31,5],[44,1,44,5],[45,1,45,5],[46,1,46,5],[47,1,47,5],[48,1,48,5],[49,1,49,5],[38,1,38,5],[39,1,39,5],[40,1,40,5],[41,1,41,5],[42,1,42,5],[43,1,43,5],[56,1,56,5],[57,1,57,5],[58,1,58,5],[59,1,59,5],[60,1,60,5],[61,1,61,5],[50,1,50,5],[51,1,51,5],[52,1,52,5],[53,1,53,5],[54,1,54,5],[55,1,55,5],[68,1,68,5],[69,1,69,5],[70,0,70,10],[71,0,71,10],[72,9,72,10],[73,16,73,20],[62,1,62,5],[63,1,63,5],[64,1,64,5],[65,1,65,5],[66,1,66,5],[67,1,67,5],[77,21,77,23],[73,21,73,23],[74,19,74,20],[74,21,74,23],[75,19,75,20],[75,21,75,23],[76,11,76,15],[76,19,76,20],[76,21,76,23]]}
["Эксплуатационная карта"]
["      Работы механизма за",null,null,null,null,null,{"$f":"Нормы!G3","v":"Март   2015 г"},null,null,null,null,"Наименование и № подразделения   ",null,null,null,null,null,"КГКУ 9- ОПС",null,null,"37- ПЧ"]
["      Тип,марка,модель                                                   Генератор \"Вепрь\" АПВ 6-230 ВХ Т3 699                                                                                                                                                  "]
[]
["      Остаток топлива  на 1-е число отчетного месяца",null,null,null,null,null,null,null,null,null,{"$f":"'отчёт '!F44","v":3.56},null,null,null,null,null,null,null,null,null,null,null,null,"литр."]
["      Заправлено топлива  за отчетный месяц",null,null,null,null,null,null,null,{"$f":"U71","v":0},null,null,null,null,null,null,null,null,null,null,null,null,null,null,"литр."]
["      Остаток топлива  на 1-е число следующего за отчетным месяцем",null,null,null,null,null,null,null,null,null,null,null,{"$f":"X71","v":3.56},null,null,null,null,null,null,null,null,null,null,"литр."]
["Результат расхода топлива за отчетный месяц"]
[null,null,null,null,"фактически",null,{"$f":"V71","v":0},null,null,"литр.",null," Экономия _________________литр."]
[null,null,null,null,"по нормам",null,{"$f":"W71","v":0},null,null,"литр.",null,"Перерасход _________________литр."]
[]
["дата","Наименование и место работы автомобиля(То,работа на пожаре,учениях и др)",null,null,null,null,"работа механизма",null,null,null,null,null,null,null,null,null,null,null,null,null,null,"расход топлива в литрах",null,"Остаток топлива ","подписи"]
[null,null,null,null,null,null,"время выезда",null,"время возвращения ",null,"показания спидометра перед выездом ","пройдено км к месту работы и обратно","на пожарах(в мин)",null,"на учениях (в мин)",null," при смене караула (в мин)",null,"на прочих работах",null,"заправлено топлива "]
[null,null,null,null,null,null,"часы","минуты","часы","минуты",null,null,"с насосом","без насоса","с насосом","без насоса","с насосом","без насоса","с насосом","без насоса",null,"фактически","по нормам",null,"водителя","начальника караула"]
[1,2,null,null,null,null,3,4,5,6,7,8,9,10,11,12,13,14,15,16,17,18,19,20,21,22]
["1,03","Смена караула",null,null,null,null,null,null,null,null,null,null,null,null,null,null,null,null,null,null,null,{"$f":"W16","v":0},{"$f":"IF(L16=\"\",0,L16)*КИЛОМЕТР+(M16+O16+Q16+S16)*НАСОС+(N16+P16+R16+T16)*БЕЗ_НАСОСА","v":0},{"$f":"Остаток_на_начало_месяца-W16+U16","v":3.56}]
[null,null,null,null,null,null,null,null,null,null,null,null,null,null,null,null,null,null,null,null,null,{"$f":"W17","v":0},0,{"$f":"IF(W17=0,\"\",X16-W17+U17)","v":""}]
[null,null,null,null,null,null,null,null,null,null,null,null,null,null,null,null,null,null,null,null,null,{"$f":"W18","v":0},0,""]
[null,null,null,null,null,null,null,null,null,null,null,null,null,null,null,null,null,null,null,null,null,0,0,""]
[null,null,null,null,null,null,null,null,null,null,null,null,null,null,null,null,null,null,null,null,null,0,0,""]
[null,null,null,null,null,null,null,null,null,null,null,null,null,null,null,null,null,null,null,null,null,0,0,""]
[null,null,null,null,null,null,null,null,null,null,null,null,null,null,null,null,null,null,null,null,null,0,0,""]
[null,null,null,null,null,null,null,null,null,null,null,null,null,null,null,null,null,null,null,null,null,0,0,""]
[null,null,null,null,null,null,null,null,null,null,null,null,null,null,null,null,null,null,null,null,null,0,0,""]
[null,null,null,null,null,null,null,null,null,null,null,null,null,null,null,null,null,null,null,null,null,0,0,""]
[null,null,null,null,null,null,null,null,null,null,null,null,null,null,null,null,null,null,null,null,null,0,0,""]
[null,null,null,null,null,null,null,null,null,null,null,null,null,null,null,null,null,null,null,null,null,0,0,""]
[null,null,null,null,null,null,null,null,null,null,null,null,null,null,null,null,null,null,null,null,null,0,0,""]
[null,null,null,null,null,null,null,null,null,null,null,null,null,null,null,null,null,null,null,null,null,0,0,""]
[null,null,null,null,null,null,null,null,null,null,null,null,null,null,null,null,null,null,null,null,null,0,0,""]
[null,null,null,null,null,null,null,null,null,null,null,null,null,null,null,null,null,null,null,null,null,0,0,""]
[null,null,null,null,null,null,null,null,null,null,null,null,null,null,null,null,null,null,null,null,null,0,0,""]
[null,null,null,null,null,null,null,null,null,null,null,null,null,null,null,null,null,null,null,null,null,0,0,""]
[null,null,null,null,null,null,null,null,null,null,null,null,null,null,null,null,null,null,null,null,null,0,0,""]
[null,null,null,null,null,null,null,null,null,null,null,null,null,null,null,null,null,null,null,null,null,0,0,""]
[null,null,null,null,null,null,null,null,null,null,null,null,null,null,null,null,null,null,null,null,null,0,0,""]
[null,null,null,null,null,null,null,null,null,null,null,null,null,null,null,null,null,null,null,null,null,0,0,""]
[null,null,null,null,null,null,null,null,null,null,null,null,null,null,null,null,null,null,null,null,null,0,0,""]
[null,null,null,null,null,null,null,null,null,null,null,null,null,null,null,null,null,null,null,null,null,0,0,""]
[null,null,null,null,null,null,null,null,null,null,null,null,null,null,null,null,null,null,null,null,null,0,0,""]
[null,null,null,null,null,null,null,null,null,null,null,null,null,null,null,null,null,null,null,null,null,0,0,""]
[null,null,null,null,null,null,null,null,null,null,null,null,null,null,null,null,null,null,null,null,null,0,0,""]
[null,null,null,null,null,null,null,null,null,null,null,null,null,null,null,null,null,null,null,null,null,0,0,""]
[null,null,null,null,null,null,null,null,null,null,null,null,null,null,null,null,null,null,null,null,null,0,0,""]
[null,null,null,null,null,null,null,null,null,null,null,null,null,null,null,null,null,null,null,null,null,0,0,""]
[null,null,null,null,null,null,null,null,null,null,null,null,null,null,null,null,null,null,null,null,null,0,0,""]
[null,null,null,null,null,null,null,null,null,null,null,null,null,null,null,null,null,null,null,null,null,0,0,""]
[null,null,null,null,null,null,null,null,null,null,null,null,null,null,null,null,null,null,null,null,null,0,{"$f":"IF(L48=\"\",0,L48)*КИЛОМЕТР+(M48+O48+Q48+S48)*НАСОС+(N48+P48+R48+T48)*БЕЗ_НАСОСА","v":0},""]
[null,null,null,null,null,null,null,null,null,null,null,null,null,null,null,null,null,null,null,null,null,0,0,""]
[null,null,null,null,null,null,null,null,null,null,null,null,null,null,null,null,null,null,null,null,null,0,0,""]
[null,null,null,null,null,null,null,null,null,null,null,null,null,null,null,null,null,null,null,null,null,0,0,""]
[null,null,null,null,null,null,null,null,null,null,null,null,null,null,null,null,null,null,null,null,null,0,0,""]
[null,null,null,null,null,null,null,null,null,null,null,null,null,null,null,null,null,null,null,null,null,0,0,""]
[null,null,null,null,null,null,null,null,null,null,null,null,null,null,null,null,null,null,null,null,null,0,0,""]
[null,null,null,null,null,null,null,null,null,null,null,null,null,null,null,null,null,null,null,null,null,0,0,""]
[null,null,null,null,null,null,null,null,null,null,null,null,null,null,null,null,null,null,null,null,null,0,0,""]
[null,null,null,null,null,null,null,null,null,null,null,{"$f":"IF(K58=\"\",\"\",K58-K57)","v":""},null,null,null,null,null,null,null,null,null,0,0,""]
[null,null,null,null,null,null,null,null,null,null,null,"",null,null,null,null,null,null,null,null,null,0,0,""]
[null,null,null,null,null,null,null,null,null,null,null,"",null,null,null,null,null,null,null,null,null,0,0,""]
[null,null,null,null,null,null,null,null,null,null,null,"",null,null,null,null,null,null,null,null,null,0,0,""]
[null,null,null,null,null,null,null,null,null,null,null,"",null,null,null,null,null,null,null,null,null,0,0,""]
[null,null,null,null,null,null,null,null,null,null,null,"",null,null,null,null,null,null,null,null,null,0,0,""]
[null,null,null,null,null,null,null,null,null,null,null,"",null,null,null,null,null,null,null,null,null,0,0,""]
[null,null,null,null,null,null,null,null,null,null,null,{"$f":"IF(K65=\"\",\"\",K65-K64)","v":""},null,null,null,null,null,null,null,null,null,0,0,""]
[null,null,null,null,null,null,null,null,null,null,null,{"$f":"IF(K66=\"\",\"\",K66-K65)","v":""},null,null,null,null,null,null,null,null,null,0,0,""]
[null,null,null,null,null,null,null,null,null,null,null,"",null,null,null,null,null,null,null,null,null,0,0,""]
[null,null,null,null,null,null,null,null,null,null,null,"",null,null,null,null,null,null,null,null,null,0,0,""]
[null,null,null,null,null,null,null,null,null,null,null,"",null,null,null,null,null,null,null,null,null,0,0,""]
[null,null,null,null,null,null,null,null,null,null,null,"",null,null,null,null,null,null,null,null,null,0,0,""]
[null,null,null,null,null,null,null,null,null,null,null,null,null,null,null,null,null,null,null,null,null,0,0,""]
["                    ИТОГО за месяц",null,null,null,null,null,null,null,null,null,null,{"$f":"SUM(L16:L70)","v":0},0,0,0,0,0,0,0,0,0,0,0,{"$f":"Остаток_на_начало_месяца+Заправлено-W71","v":3.56}]
["                    Израсходовано топлива по элементам работы(в литрах)",null,null,null,null,null,null,null,null,null,null,{"$f":"L71*КИЛОМЕТР","v":0},{"$f":"M71*НАСОС","v":0},{"$f":"N71*БЕЗ_НАСОСА","v":0},{"$f":"O71*НАСОС","v":0},{"$f":"P71*БЕЗ_НАСОСА","v":0},{"$f":"Q71*НАСОС","v":0},{"$f":"R71*БЕЗ_НАСОСА","v":0},{"$f":"S71*НАСОС","v":0},{"$f":"T71*БЕЗ_НАСОСА","v":0}]
[null,"Наработка  за отчетный месяц в км.(с учетом приведенного)",null,null,null,null,null,null,null,{"$f":"(M71+O71+Q71+S71)/60*50+L71","v":0},null,"км. "]
[null,null,null,null,null,null,null,null,null,null,null,null,null,null,null,null,"Текущая норма",null,null,null,null,"Пробег по спидометру, км",null,null,{"$f":"L71","v":0}]
[null,null,"Руководитель подразделения",null,null,null,null,null,null,null,null,"Старший водитель",null,null,null,null,"1 км",null,null,null,null,"Наработка с насосом м.ч.",null,null,{"$f":"(M71+O71+Q71+S71)/60","v":0}]
[null,null,"<_____>______________________2015г.",null,null,null,null,null,null,null,null,"<_____>_______________2015г.",null,null,null,null,"1 мин с насосом",null,null,0.04,null,"Наработка без насоса",null,null,{"$f":"N71+P71+R71+T71","v":0}]
[null,null,null,null,null,"Коряков В.Н.",null,null,null,null,null,"                     Ломакин В.В.",null,null,null,null,"1 мин без насоса",null,null,0.04,null,"Приведенный пробег",null,null,{"$f":"Y75*50","v":0}]
[null,null,null,null,null,null,null,null,null,null,null,null,null,null,null,null,null,null,null,null,null,"Общий пробег",null,null,{"$f":"Y74+Y77","v":0}]

{"sheet":"SH-6000","index":19,"n_rows":78,"n_cols":26,"rows_kept":78,"cut":false,"hidden":false,"merged":[[77,21,77,23],[73,21,73,23],[74,19,74,20],[74,21,74,23],[75,19,75,20],[75,21,75,23],[76,19,76,20],[76,21,76,23],[68,1,68,5],[69,1,69,5],[70,0,70,10],[71,0,71,10],[72,9,72,10],[73,16,73,20],[76,11,76,15],[62,1,62,5],[63,1,63,5],[64,1,64,5],[65,1,65,5],[66,1,66,5],[67,1,67,5],[56,1,56,5],[57,1,57,5],[58,1,58,5],[59,1,59,5],[60,1,60,5],[61,1,61,5],[50,1,50,5],[51,1,51,5],[52,1,52,5],[53,1,53,5],[54,1,54,5],[55,1,55,5],[44,1,44,5],[45,1,45,5],[46,1,46,5],[47,1,47,5],[48,1,48,5],[49,1,49,5],[38,1,38,5],[39,1,39,5],[40,1,40,5],[41,1,41,5],[42,1,42,5],[43,1,43,5],[32,1,32,5],[33,1,33,5],[34,1,34,5],[35,1,35,5],[36,1,36,5],[37,1,37,5],[26,1,26,5],[27,1,27,5],[28,1,28,5],[29,1,29,5],[30,1,30,5],[31,1,31,5],[20,1,20,5],[21,1,21,5],[22,1,22,5],[23,1,23,5],[24,1,24,5],[25,1,25,5],[14,1,14,5],[15,1,15,5],[16,1,16,5],[17,1,17,5],[18,1,18,5],[19,1,19,5],[11,24,12,25],[12,6,12,7],[12,8,12,9],[12,10,13,10],[12,11,13,11],[12,12,12,13],[12,14,12,15],[12,16,12,17],[12,18,12,19],[12,20,13,20],[9,4,9,5],[9,6,9,8],[9,9,9,10],[9,11,9,18],[10,0,10,25],[11,0,13,0],[11,1,13,5],[11,6,11,20],[11,21,12,22],[11,23,13,23],[7,0,7,23],[8,4,8,5],[8,6,8,8],[8,9,8,10],[8,11,8,18],[3,0,3,9],[3,10,3,12],[3,13,3,14],[3,15,3,17],[4,10,4,22],[5,0,5,7],[5,8,5,22],[0,0,0,25],[1,0,1,5],[1,6,1,10],[1,17,1,19],[1,20,1,21],[2,0,2,22],[2,23,2,25],[6,0,6,11],[6,12,6,22]]}
["Эксплуатационная карта"]
["      Работы механизма за",null,null,null,null,null,{"$f":"Нормы!G3","v":"Март   2015 г"},null,null,null,null,"Наименование и № подразделения   ",null,null,null,null,null,"КГКУ 9- ОПС",null,null,"37- ПЧ"]
["      Тип,марка,модель                                                   Генератор SH-6000                                                                                                                                                   "]
[]
["      Остаток топлива  на 1-е число отчетного месяца",null,null,null,null,null,null,null,null,null,{"$f":"'отчёт '!F45","v":4.03},null,null,null,null,null,null,null,null,null,null,null,null,"литр."]
["      Заправлено топлива  за отчетный месяц",null,null,null,null,null,null,null,{"$f":"U71","v":0},null,null,null,null,null,null,null,null,null,null,null,null,null,null,"литр."]
["      Остаток топлива  на 1-е число следующего за отчетным месяцем",null,null,null,null,null,null,null,null,null,null,null,{"$f":"X71","v":4.03},null,null,null,null,null,null,null,null,null,null,"литр."]
["Результат расхода топлива за отчетный месяц"]
[null,null,null,null,"фактически",null,{"$f":"V71","v":0},null,null,"литр.",null," Экономия _________________литр."]
[null,null,null,null,"по нормам",null,{"$f":"W71","v":0},null,null,"литр.",null,"Перерасход _________________литр."]
[]
["дата","Наименование и место работы автомобиля(То,работа на пожаре,учениях и др)",null,null,null,null,"работа механизма",null,null,null,null,null,null,null,null,null,null,null,null,null,null,"расход топлива в литрах",null,"Остаток топлива ","подписи"]
[null,null,null,null,null,null,"время выезда",null,"время возвращения ",null,"показания спидометра перед выездом ","пройдено км к месту работы и обратно","на пожарах(в мин)",null,"на учениях (в мин)",null," при смене караула (в мин)",null,"на прочих работах",null,"заправлено топлива "]
[null,null,null,null,null,null,"часы","минуты","часы","минуты",null,null,"с насосом","без насоса","с насосом","без насоса","с насосом","без насоса","с насосом","без насоса",null,"фактически","по нормам",null,"водителя","начальника караула"]
[1,2,null,null,null,null,3,4,5,6,7,8,9,10,11,12,13,14,15,16,17,18,19,20,21,22]
["1,03","Смена караула",null,null,null,null,null,null,null,null,null,null,null,null,null,null,null,null,null,null,null,{"$f":"W16","v":0},{"$f":"IF(L16=\"\",0,L16)*КИЛОМЕТР+(M16+O16+Q16+S16)*НАСОС+(N16+P16+R16+T16)*БЕЗ_НАСОСА","v":0},{"$f":"Остаток_на_начало_месяца-W16+U16","v":4.03}]
[null,null,null,null,null,null,null,null,null,null,null,null,null,null,null,null,null,null,null,null,null,{"$f":"W17","v":0},0,{"$f":"IF(W17=0,\"\",X16-W17+U17)","v":""}]
[null,null,null,null,null,null,null,null,null,null,null,null,null,null,null,null,null,null,null,null,null,{"$f":"W18","v":0},0,""]
[null,null,null,null,null,null,null,null,null,null,null,null,null,null,null,null,null,null,null,null,null,0,0,""]
[null,null,null,null,null,null,null,null,null,null,null,null,null,null,null,null,null,null,null,null,null,0,0,""]
[null,null,null,null,null,null,null,null,null,null,null,null,null,null,null,null,null,null,null,null,null,0,0,""]
[null,null,null,null,null,null,null,null,null,null,null,null,null,null,null,null,null,null,null,null,null,0,0,""]
[null,null,null,null,null,null,null,null,null,null,null,null,null,null,null,null,null,null,null,null,null,0,0,""]
[null,null,null,null,null,null,null,null,null,null,null,null,null,null,null,null,null,null,null,null,null,0,0,""]
[null,null,null,null,null,null,null,null,null,null,null,null,null,null,null,null,null,null,null,null,null,0,0,""]
[null,null,null,null,null,null,null,null,null,null,null,null,null,null,null,null,null,null,null,null,null,0,0,""]
[null,null,null,null,null,null,null,null,null,null,null,null,null,null,null,null,null,null,null,null,null,0,0,""]
[null,null,null,null,null,null,null,null,null,null,null,null,null,null,null,null,null,null,null,null,null,0,0,""]
[null,null,null,null,null,null,null,null,null,null,null,null,null,null,null,null,null,null,null,null,null,0,0,""]
[null,null,null,null,null,null,null,null,null,null,null,null,null,null,null,null,null,null,null,null,null,0,0,""]
[null,null,null,null,null,null,null,null,null,null,null,null,null,null,null,null,null,null,null,null,null,0,0,""]
[null,null,null,null,null,null,null,null,null,null,null,null,null,null,null,null,null,null,null,null,null,0,0,""]
[null,null,null,null,null,null,null,null,null,null,null,null,null,null,null,null,null,null,null,null,null,0,0,""]
[null,null,null,null,null,null,null,null,null,null,null,null,null,null,null,null,null,null,null,null,null,0,0,""]
[null,null,null,null,null,null,null,null,null,null,null,null,null,null,null,null,null,null,null,null,null,0,0,""]
[null,null,null,null,null,null,null,null,null,null,null,null,null,null,null,null,null,null,null,null,null,0,0,""]
[null,null,null,null,null,null,null,null,null,null,null,null,null,null,null,null,null,null,null,null,null,0,0,""]
[null,null,null,null,null,null,null,null,null,null,null,null,null,null,null,null,null,null,null,null,null,0,0,""]
[null,null,null,null,null,null,null,null,null,null,null,null,null,null,null,null,null,null,null,null,null,0,0,""]
[null,null,null,null,null,null,null,null,null,null,null,null,null,null,null,null,null,null,null,null,null,0,0,""]
[null,null,null,null,null,null,null,null,null,null,null,null,null,null,null,null,null,null,null,null,null,0,0,""]
[null,null,null,null,null,null,null,null,null,null,null,null,null,null,null,null,null,null,null,null,null,0,0,""]
[null,null,null,null,null,null,null,null,null,null,null,null,null,null,null,null,null,null,null,null,null,0,0,""]
[null,null,null,null,null,null,null,null,null,null,null,null,null,null,null,null,null,null,null,null,null,0,0,""]
[null,null,null,null,null,null,null,null,null,null,null,null,null,null,null,null,null,null,null,null,null,0,0,""]
[null,null,null,null,null,null,null,null,null,null,null,null,null,null,null,null,null,null,null,null,null,0,0,""]
[null,null,null,null,null,null,null,null,null,null,null,null,null,null,null,null,null,null,null,null,null,0,0,""]
[null,null,null,null,null,null,null,null,null,null,null,null,null,null,null,null,null,null,null,null,null,0,{"$f":"IF(L48=\"\",0,L48)*КИЛОМЕТР+(M48+O48+Q48+S48)*НАСОС+(N48+P48+R48+T48)*БЕЗ_НАСОСА","v":0},""]
[null,null,null,null,null,null,null,null,null,null,null,null,null,null,null,null,null,null,null,null,null,0,0,""]
[null,null,null,null,null,null,null,null,null,null,null,null,null,null,null,null,null,null,null,null,null,0,0,""]
[null,null,null,null,null,null,null,null,null,null,null,null,null,null,null,null,null,null,null,null,null,0,0,""]
[null,null,null,null,null,null,null,null,null,null,null,null,null,null,null,null,null,null,null,null,null,0,0,""]
[null,null,null,null,null,null,null,null,null,null,null,null,null,null,null,null,null,null,null,null,null,0,0,""]
[null,null,null,null,null,null,null,null,null,null,null,null,null,null,null,null,null,null,null,null,null,0,0,""]
[null,null,null,null,null,null,null,null,null,null,null,null,null,null,null,null,null,null,null,null,null,0,0,""]
[null,null,null,null,null,null,null,null,null,null,null,null,null,null,null,null,null,null,null,null,null,0,0,""]
[null,null,null,null,null,null,null,null,null,null,null,{"$f":"IF(K58=\"\",\"\",K58-K57)","v":""},null,null,null,null,null,null,null,null,null,0,0,""]
[null,null,null,null,null,null,null,null,null,null,null,"",null,null,null,null,null,null,null,null,null,0,0,""]
[null,null,null,null,null,null,null,null,null,null,null,"",null,null,null,null,null,null,null,null,null,0,0,""]
[null,null,null,null,null,null,null,null,null,null,null,"",null,null,null,null,null,null,null,null,null,0,0,""]
[null,null,null,null,null,null,null,null,null,null,null,"",null,null,null,null,null,null,null,null,null,0,0,""]
[null,null,null,null,null,null,null,null,null,null,null,"",null,null,null,null,null,null,null,null,null,0,0,""]
[null,null,null,null,null,null,null,null,null,null,null,"",null,null,null,null,null,null,null,null,null,0,0,""]
[null,null,null,null,null,null,null,null,null,null,null,{"$f":"IF(K65=\"\",\"\",K65-K64)","v":""},null,null,null,null,null,null,null,null,null,0,0,""]
[null,null,null,null,null,null,null,null,null,null,null,{"$f":"IF(K66=\"\",\"\",K66-K65)","v":""},null,null,null,null,null,null,null,null,null,0,0,""]
[null,null,null,null,null,null,null,null,null,null,null,"",null,null,null,null,null,null,null,null,null,0,0,""]
[null,null,null,null,null,null,null,null,null,null,null,"",null,null,null,null,null,null,null,null,null,0,0,""]
[null,null,null,null,null,null,null,null,null,null,null,"",null,null,null,null,null,null,null,null,null,0,0,""]
[null,null,null,null,null,null,null,null,null,null,null,"",null,null,null,null,null,null,null,null,null,0,0,""]
[null,null,null,null,null,null,null,null,null,null,null,null,null,null,null,null,null,null,null,null,null,0,0,""]
["                    ИТОГО за месяц",null,null,null,null,null,null,null,null,null,null,{"$f":"SUM(L16:L70)","v":0},0,0,0,0,0,0,0,0,0,0,0,{"$f":"Остаток_на_начало_месяца+Заправлено-W71","v":4.03}]
["                    Израсходовано топлива по элементам работы(в литрах)",null,null,null,null,null,null,null,null,null,null,{"$f":"L71*КИЛОМЕТР","v":0},{"$f":"M71*НАСОС","v":0},{"$f":"N71*БЕЗ_НАСОСА","v":0},{"$f":"O71*НАСОС","v":0},{"$f":"P71*БЕЗ_НАСОСА","v":0},{"$f":"Q71*НАСОС","v":0},{"$f":"R71*БЕЗ_НАСОСА","v":0},{"$f":"S71*НАСОС","v":0},{"$f":"T71*БЕЗ_НАСОСА","v":0}]
[null,"Наработка  за отчетный месяц в км.(с учетом приведенного)",null,null,null,null,null,null,null,{"$f":"(M71+O71+Q71+S71)/60*50+L71","v":0},null,"км. "]
[null,null,null,null,null,null,null,null,null,null,null,null,null,null,null,null,"Текущая норма",null,null,null,null,"Пробег по спидометру, км",null,null,{"$f":"L71","v":0}]
[null,null,"Руководитель подразделения",null,null,null,null,null,null,null,null,"Старший водитель",null,null,null,null,"1 км",null,null,null,null,"Наработка с насосом м.ч.",null,null,{"$f":"(M71+O71+Q71+S71)/60","v":0}]
[null,null,"<_____>______________________2015г.",null,null,null,null,null,null,null,null,"<_____>_____________2015г.",null,null,null,null,"1 мин с насосом",null,null,3.9E-2,null,"Наработка без насоса",null,null,{"$f":"N71+P71+R71+T71","v":0}]
[null,null,null,null,null,"Коряков В.Н.",null,null,null,null,null,"                     Ломакин В.В.",null,null,null,null,"1 мин без насоса",null,null,3.9E-2,null,"Приведенный пробег",null,null,{"$f":"Y75*50","v":0}]
[null,null,null,null,null,null,null,null,null,null,null,null,null,null,null,null,null,null,null,null,null,"Общий пробег",null,null,{"$f":"Y74+Y77","v":0}]

{"sheet":" SH-6500","index":20,"n_rows":78,"n_cols":26,"rows_kept":78,"cut":false,"hidden":false,"merged":[[77,21,77,23],[73,21,73,23],[74,19,74,20],[74,21,74,23],[75,19,75,20],[75,21,75,23],[76,19,76,20],[76,21,76,23],[68,1,68,5],[69,1,69,5],[70,0,70,10],[71,0,71,10],[72,9,72,10],[73,16,73,20],[76,11,76,15],[62,1,62,5],[63,1,63,5],[64,1,64,5],[65,1,65,5],[66,1,66,5],[67,1,67,5],[56,1,56,5],[57,1,57,5],[58,1,58,5],[59,1,59,5],[60,1,60,5],[61,1,61,5],[50,1,50,5],[51,1,51,5],[52,1,52,5],[53,1,53,5],[54,1,54,5],[55,1,55,5],[44,1,44,5],[45,1,45,5],[46,1,46,5],[47,1,47,5],[48,1,48,5],[49,1,49,5],[38,1,38,5],[39,1,39,5],[40,1,40,5],[41,1,41,5],[42,1,42,5],[43,1,43,5],[32,1,32,5],[33,1,33,5],[35,1,35,5],[36,1,36,5],[37,1,37,5],[34,1,34,5],[26,1,26,5],[27,1,27,5],[28,1,28,5],[29,1,29,5],[30,1,30,5],[31,1,31,5],[20,1,20,5],[21,1,21,5],[22,1,22,5],[23,1,23,5],[24,1,24,5],[25,1,25,5],[14,1,14,5],[15,1,15,5],[16,1,16,5],[17,1,17,5],[19,1,19,5],[11,24,12,25],[12,6,12,7],[12,8,12,9],[12,10,13,10],[12,11,13,11],[12,12,12,13],[12,14,12,15],[12,16,12,17],[12,18,12,19],[12,20,13,20],[18,1,18,5],[9,4,9,5],[9,6,9,8],[9,9,9,10],[9,11,9,18],[10,0,10,25],[11,0,13,0],[11,1,13,5],[11,6,11,20],[11,21,12,22],[11,23,13,23],[7,0,7,23],[8,4,8,5],[8,6,8,8],[8,9,8,10],[8,11,8,18],[3,0,3,9],[3,10,3,12],[3,13,3,14],[3,15,3,17],[4,10,4,22],[5,0,5,7],[5,8,5,22],[0,0,0,25],[1,0,1,5],[1,6,1,10],[1,17,1,19],[1,20,1,21],[2,0,2,22],[2,23,2,25],[6,0,6,11],[6,12,6,22]]}
["Эксплуатационная карта"]
["      Работы механизма за",null,null,null,null,null,{"$f":"Нормы!G3","v":"Март   2015 г"},null,null,null,null,"Наименование и № подразделения   ",null,null,null,null,null,"КГКУ 9- ОПС",null,null,"37- ПЧ"]
["      Тип,марка,модель                                                   Генератор SH-6500                                                                                                                                                  "]
[]
["      Остаток топлива  на 1-е число отчетного месяца",null,null,null,null,null,null,null,null,null,{"$f":"'отчёт '!F46","v":4.78},null,null,null,null,null,null,null,null,null,null,null,null,"литр."]
["      Заправлено топлива  за отчетный месяц",null,null,null,null,null,null,null,{"$f":"U71","v":0},null,null,null,null,null,null,null,null,null,null,null,null,null,null,"литр."]
["      Остаток топлива  на 1-е число следующего за отчетным месяцем",null,null,null,null,null,null,null,null,null,null,null,{"$f":"X71","v":4.78},null,null,null,null,null,null,null,null,null,null,"литр."]
["Результат расхода топлива за отчетный месяц"]
[null,null,null,null,"фактически",null,{"$f":"V71","v":0},null,null,"литр.",null," Экономия _________________литр."]
[null,null,null,null,"по нормам",null,{"$f":"W71","v":0},null,null,"литр.",null,"Перерасход _________________литр."]
[]
["дата","Наименование и место работы автомобиля(То,работа на пожаре,учениях и др)",null,null,null,null,"работа механизма",null,null,null,null,null,null,null,null,null,null,null,null,null,null,"расход топлива в литрах",null,"Остаток топлива ","подписи"]
[null,null,null,null,null,null,"время выезда",null,"время возвращения ",null,"показания спидометра перед выездом ","пройдено км к месту работы и обратно","на пожарах(в мин)",null,"на учениях (в мин)",null," при смене караула (в мин)",null,"на прочих работах",null,"заправлено топлива "]
[null,null,null,null,null,null,"часы","минуты","часы","минуты",null,null,"с насосом","без насоса","с насосом","без насоса","с насосом","без насоса","с насосом","без насоса",null,"фактически","по нормам",null,"водителя","начальника караула"]
[1,2,null,null,null,null,3,4,5,6,7,8,9,10,11,12,13,14,15,16,17,18,19,20,21,22]
["1,03","Смена караула",null,null,null,null,null,null,null,null,null,null,null,null,null,null,null,null,null,null,null,{"$f":"W16","v":0},{"$f":"IF(L16=\"\",0,L16)*КИЛОМЕТР+(M16+O16+Q16+S16)*НАСОС+(N16+P16+R16+T16)*БЕЗ_НАСОСА","v":0},{"$f":"Остаток_на_начало_месяца-W16+U16","v":4.78}]
[null,null,null,null,null,null,null,null,null,null,null,null,null,null,null,null,null,null,null,null,null,{"$f":"W17","v":0},0,{"$f":"IF(W17=0,\"\",X16-W17+U17)","v":""}]
[null,null,null,null,null,null,null,null,null,null,null,null,null,null,null,null,null,null,null,null,null,{"$f":"W18","v":0},0,""]
[null,null,null,null,null,null,null,null,null,null,null,null,null,null,null,null,null,null,null,null,null,0,0,""]
[null,null,null,null,null,null,null,null,null,null,null,null,null,null,null,null,null,null,null,null,null,0,0,""]
[null,null,null,null,null,null,null,null,null,null,null,null,null,null,null,null,null,null,null,null,null,0,0,""]
[null,null,null,null,null,null,null,null,null,null,null,null,null,null,null,null,null,null,null,null,null,0,0,""]
[null,null,null,null,null,null,null,null,null,null,null,null,null,null,null,null,null,null,null,null,null,0,0,""]
[null,null,null,null,null,null,null,null,null,null,null,null,null,null,null,null,null,null,null,null,null,0,0,""]
[null,null,null,null,null,null,null,null,null,null,null,null,null,null,null,null,null,null,null,null,null,0,0,""]
[null,null,null,null,null,null,null,null,null,null,null,null,null,null,null,null,null,null,null,null,null,0,0,""]
[null,null,null,null,null,null,null,null,null,null,null,null,null,null,null,null,null,null,null,null,null,0,0,""]
[null,null,null,null,null,null,null,null,null,null,null,null,null,null,null,null,null,null,null,null,null,0,0,""]
[null,null,null,null,null,null,null,null,null,null,null,null,null,null,null,null,null,null,null,null,null,0,0,""]
[null,null,null,null,null,null,null,null,null,null,null,null,null,null,null,null,null,null,null,null,null,0,0,""]
[null,null,null,null,null,null,null,null,null,null,null,null,null,null,null,null,null,null,null,null,null,0,0,""]
[null,null,null,null,null,null,null,null,null,null,null,null,null,null,null,null,null,null,null,null,null,0,0,""]
[null,null,null,null,null,null,null,null,null,null,null,null,null,null,null,null,null,null,null,null,null,0,0,""]
[null,null,null,null,null,null,null,null,null,null,null,null,null,null,null,null,null,null,null,null,null,0,0,""]
[null,null,null,null,null,null,null,null,null,null,null,null,null,null,null,null,null,null,null,null,null,0,0,""]
[null,null,null,null,null,null,null,null,null,null,null,null,null,null,null,null,null,null,null,null,null,0,0,""]
[null,null,null,null,null,null,null,null,null,null,null,null,null,null,null,null,null,null,null,null,null,0,0,""]
[null,null,null,null,null,null,null,null,null,null,null,null,null,null,null,null,null,null,null,null,null,0,0,""]
[null,null,null,null,null,null,null,null,null,null,null,null,null,null,null,null,null,null,null,null,null,0,0,""]
[null,null,null,null,null,null,null,null,null,null,null,null,null,null,null,null,null,null,null,null,null,0,0,""]
[null,null,null,null,null,null,null,null,null,null,null,null,null,null,null,null,null,null,null,null,null,0,0,""]
[null,null,null,null,null,null,null,null,null,null,null,null,null,null,null,null,null,null,null,null,null,0,0,""]
[null,null,null,null,null,null,null,null,null,null,null,null,null,null,null,null,null,null,null,null,null,0,0,""]
[null,null,null,null,null,null,null,null,null,null,null,null,null,null,null,null,null,null,null,null,null,0,0,""]
[null,null,null,null,null,null,null,null,null,null,null,null,null,null,null,null,null,null,null,null,null,0,0,""]
[null,null,null,null,null,null,null,null,null,null,null,null,null,null,null,null,null,null,null,null,null,0,0,""]
[null,null,null,null,null,null,null,null,null,null,null,null,null,null,null,null,null,null,null,null,null,0,0,""]
[null,null,null,null,null,null,null,null,null,null,null,null,null,null,null,null,null,null,null,null,null,0,{"$f":"IF(L48=\"\",0,L48)*КИЛОМЕТР+(M48+O48+Q48+S48)*НАСОС+(N48+P48+R48+T48)*БЕЗ_НАСОСА","v":0},""]
[null,null,null,null,null,null,null,null,null,null,null,null,null,null,null,null,null,null,null,null,null,0,0,""]
[null,null,null,null,null,null,null,null,null,null,null,null,null,null,null,null,null,null,null,null,null,0,0,""]
[null,null,null,null,null,null,null,null,null,null,null,null,null,null,null,null,null,null,null,null,null,0,0,""]
[null,null,null,null,null,null,null,null,null,null,null,null,null,null,null,null,null,null,null,null,null,0,0,""]
[null,null,null,null,null,null,null,null,null,null,null,null,null,null,null,null,null,null,null,null,null,0,0,""]
[null,null,null,null,null,null,null,null,null,null,null,null,null,null,null,null,null,null,null,null,null,0,0,""]
[null,null,null,null,null,null,null,null,null,null,null,null,null,null,null,null,null,null,null,null,null,0,0,""]
[null,null,null,null,null,null,null,null,null,null,null,null,null,null,null,null,null,null,null,null,null,0,0,""]
[null,null,null,null,null,null,null,null,null,null,null,{"$f":"IF(K58=\"\",\"\",K58-K57)","v":""},null,null,null,null,null,null,null,null,null,0,0,""]
[null,null,null,null,null,null,null,null,null,null,null,"",null,null,null,null,null,null,null,null,null,0,0,""]
[null,null,null,null,null,null,null,null,null,null,null,"",null,null,null,null,null,null,null,null,null,0,0,""]
[null,null,null,null,null,null,null,null,null,null,null,"",null,null,null,null,null,null,null,null,null,0,0,""]
[null,null,null,null,null,null,null,null,null,null,null,"",null,null,null,null,null,null,null,null,null,0,0,""]
[null,null,null,null,null,null,null,null,null,null,null,"",null,null,null,null,null,null,null,null,null,0,0,""]
[null,null,null,null,null,null,null,null,null,null,null,"",null,null,null,null,null,null,null,null,null,0,0,""]
[null,null,null,null,null,null,null,null,null,null,null,{"$f":"IF(K65=\"\",\"\",K65-K64)","v":""},null,null,null,null,null,null,null,null,null,0,0,""]
[null,null,null,null,null,null,null,null,null,null,null,{"$f":"IF(K66=\"\",\"\",K66-K65)","v":""},null,null,null,null,null,null,null,null,null,0,0,""]
[null,null,null,null,null,null,null,null,null,null,null,"",null,null,null,null,null,null,null,null,null,0,0,""]
[null,null,null,null,null,null,null,null,null,null,null,"",null,null,null,null,null,null,null,null,null,0,0,""]
[null,null,null,null,null,null,null,null,null,null,null,"",null,null,null,null,null,null,null,null,null,0,0,""]
[null,null,null,null,null,null,null,null,null,null,null,"",null,null,null,null,null,null,null,null,null,0,0,""]
[null,null,null,null,null,null,null,null,null,null,null,null,null,null,null,null,null,null,null,null,null,0,0,""]
["                    ИТОГО за месяц",null,null,null,null,null,null,null,null,null,null,{"$f":"SUM(L16:L70)","v":0},0,0,0,0,0,0,0,0,0,0,0,{"$f":"Остаток_на_начало_месяца+Заправлено-W71","v":4.78}]
["                    Израсходовано топлива по элементам работы(в литрах)",null,null,null,null,null,null,null,null,null,null,{"$f":"L71*КИЛОМЕТР","v":0},{"$f":"M71*НАСОС","v":0},{"$f":"N71*БЕЗ_НАСОСА","v":0},{"$f":"O71*НАСОС","v":0},{"$f":"P71*БЕЗ_НАСОСА","v":0},{"$f":"Q71*НАСОС","v":0},{"$f":"R71*БЕЗ_НАСОСА","v":0},{"$f":"S71*НАСОС","v":0},{"$f":"T71*БЕЗ_НАСОСА","v":0}]
[null,"Наработка  за отчетный месяц в км.(с учетом приведенного)",null,null,null,null,null,null,null,{"$f":"(M71+O71+Q71+S71)/60*50+L71","v":0},null,"км. "]
[null,null,null,null,null,null,null,null,null,null,null,null,null,null,null,null,"Текущая норма",null,null,null,null,"Пробег по спидометру, км",null,null,{"$f":"L71","v":0}]
[null,null,"Руководитель подразделения",null,null,null,null,null,null,null,null,"Старший водитель",null,null,null,null,"1 км",null,null,null,null,"Наработка с насосом м.ч.",null,null,{"$f":"(M71+O71+Q71+S71)/60","v":0}]
[null,null,"<_____>______________________2015г.",null,null,null,null,null,null,null,null,"<_____>_______________2015г.",null,null,null,null,"1 мин с насосом",null,null,4.7E-2,null,"Наработка без насоса",null,null,{"$f":"N71+P71+R71+T71","v":0}]
[null,null,null,null,null,"Коряков В.Н.",null,null,null,null,null,"                     Ломакин В.В.",null,null,null,null,"1 мин без насоса",null,null,4.7E-2,null,"Приведенный пробег",null,null,{"$f":"Y75*50","v":0}]
[null,null,null,null,null,null,null,null,null,null,null,null,null,null,null,null,null,null,null,null,null,"Общий пробег",null,null,{"$f":"Y74+Y77","v":0}]

{"sheet":"АДП-16","index":21,"n_rows":78,"n_cols":26,"rows_kept":78,"cut":false,"hidden":false,"merged":[[0,0,0,25],[1,0,1,5],[1,6,1,10],[1,17,1,19],[1,20,1,21],[2,0,2,22],[2,23,2,25],[6,0,6,11],[6,12,6,22],[7,0,7,23],[8,4,8,5],[8,6,8,8],[8,9,8,10],[8,11,8,18],[3,0,3,9],[3,10,3,12],[3,13,3,14],[3,15,3,17],[4,10,4,22],[5,0,5,7],[5,8,5,22],[9,4,9,5],[9,6,9,8],[9,9,9,10],[9,11,9,18],[10,0,10,25],[11,0,13,0],[11,1,13,5],[11,6,11,20],[11,21,12,22],[11,23,13,23],[11,24,12,25],[12,6,12,7],[12,8,12,9],[12,10,13,10],[12,11,13,11],[12,12,12,13],[12,14,12,15],[12,16,12,17],[12,18,12,19],[12,20,13,20],[20,1,20,5],[21,1,21,5],[22,1,22,5],[23,1,23,5],[24,1,24,5],[25,1,25,5],[14,1,14,5],[15,1,15,5],[16,1,16,5],[17,1,17,5],[18,1,18,5],[19,1,19,5],[32,1,32,5],[33,1,33,5],[34,1,34,5],[35,1,35,5],[36,1,36,5],[37,1,37,5],[26,1,26,5],[27,1,27,5],[28,1,28,5],[29,1,29,5],[30,1,30,5],[31,1,31,5],[44,1,44,5],[45,1,45,5],[46,1,46,5],[47,1,47,5],[48,1,48,5],[49,1,49,5],[38,1,38,5],[39,1,39,5],[40,1,40,5],[41,1,41,5],[42,1,42,5],[43,1,43,5],[56,1,56,5],[57,1,57,5],[58,1,58,5],[59,1,59,5],[60,1,60,5],[61,1,61,5],[50,1,50,5],[51,1,51,5],[52,1,52,5],[53,1,53,5],[54,1,54,5],[55,1,55,5],[68,1,68,5],[69,1,69,5],[70,0,70,10],[71,0,71,10],[72,9,72,10],[73,16,73,20],[62,1,62,5],[63,1,63,5],[64,1,64,5],[65,1,65,5],[66,1,66,5],[67,1,67,5],[77,21,77,23],[73,21,73,23],[74,19,74,20],[74,21,74,23],[75,19,75,20],[75,21,75,23],[76,11,76,15],[76,19,76,20],[76,21,76,23]]}
["Эксплуатационная карта"]
["      Работы механизма за",null,null,null,null,null,{"$f":"Нормы!G3","v":"Март   2015 г"},null,null,null,null,"Наименование и № подразделения   ",null,null,null,null,null,"КГКУ 9- ОПС",null,null,"37- ПЧ"]
["      Тип,марка,модель                                                   Генератор АДП 16-Т 400 ВЛ                                                                                                                                                  "]
[]
["      Остаток топлива  на 1-е число отчетного месяца",null,null,null,null,null,null,null,null,null,{"$f":"'отчёт '!F47","v":16.52},null,null,null,null,null,null,null,null,null,null,null,null,"литр."]
["      Заправлено топлива  за отчетный месяц",null,null,null,null,null,null,null,{"$f":"U71","v":0},null,null,null,null,null,null,null,null,null,null,null,null,null,null,"литр."]
["      Остаток топлива  на 1-е число следующего за отчетным месяцем",null,null,null,null,null,null,null,null,null,null,null,{"$f":"X71","v":16.52},null,null,null,null,null,null,null,null,null,null,"литр."]
["Результат расхода топлива за отчетный месяц"]
[null,null,null,null,"фактически",null,{"$f":"V71","v":0},null,null,"литр.",null," Экономия _________________литр."]
[null,null,null,null,"по нормам",null,{"$f":"W71","v":0},null,null,"литр.",null,"Перерасход _________________литр."]
[]
["дата","Наименование и место работы автомобиля(То,работа на пожаре,учениях и др)",null,null,null,null,"работа механизма",null,null,null,null,null,null,null,null,null,null,null,null,null,null,"расход топлива в литрах",null,"Остаток топлива ","подписи"]
[null,null,null,null,null,null,"время выезда",null,"время возвращения ",null,"показания спидометра перед выездом ","пройдено км к месту работы и обратно","на пожарах(в мин)",null,"на учениях (в мин)",null," при смене караула (в мин)",null,"на прочих работах",null,"заправлено топлива "]
[null,null,null,null,null,null,"часы","минуты","часы","минуты",null,null,"с насосом","без насоса","с насосом","без насоса","с насосом","без насоса","с насосом","без насоса",null,"фактически","по нормам",null,"водителя","начальника караула"]
[1,2,null,null,null,null,3,4,5,6,7,8,9,10,11,12,13,14,15,16,17,18,19,20,21,22]
["1,03","Смена караула",null,null,null,null,null,null,null,null,null,null,null,null,null,null,null,null,null,null,null,{"$f":"W16","v":0},{"$f":"IF(L16=\"\",0,L16)*КИЛОМЕТР+(M16+O16+Q16+S16)*НАСОС+(N16+P16+R16+T16)*БЕЗ_НАСОСА","v":0},{"$f":"Остаток_на_начало_месяца-W16+U16","v":16.52}]
[null,null,null,null,null,null,null,null,null,null,null,null,null,null,null,null,null,null,null,null,null,{"$f":"W17","v":0},0,{"$f":"IF(W17=0,\"\",X16-W17+U17)","v":""}]
[null,null,null,null,null,null,null,null,null,null,null,null,null,null,null,null,null,null,null,null,null,{"$f":"W18","v":0},0,""]
[null,null,null,null,null,null,null,null,null,null,null,null,null,null,null,null,null,null,null,null,null,0,0,""]
[null,null,null,null,null,null,null,null,null,null,null,null,null,null,null,null,null,null,null,null,null,0,0,""]
[null,null,null,null,null,null,null,null,null,null,null,null,null,null,null,null,null,null,null,null,null,0,0,""]
[null,null,null,null,null,null,null,null,null,null,null,null,null,null,null,null,null,null,null,null,null,0,0,""]
[null,null,null,null,null,null,null,null,null,null,null,null,null,null,null,null,null,null,null,null,null,0,0,""]
[null,null,null,null,null,null,null,null,null,null,null,null,null,null,null,null,null,null,null,null,null,0,0,""]
[null,null,null,null,null,null,null,null,null,null,null,null,null,null,null,null,null,null,null,null,null,0,0,""]
[null,null,null,null,null,null,null,null,null,null,null,null,null,null,null,null,null,null,null,null,null,0,0,""]
[null,null,null,null,null,null,null,null,null,null,null,null,null,null,null,null,null,null,null,null,null,0,0,""]
[null,null,null,null,null,null,null,null,null,null,null,null,null,null,null,null,null,null,null,null,null,0,0,""]
[null,null,null,null,null,null,null,null,null,null,null,null,null,null,null,null,null,null,null,null,null,0,0,""]
[null,null,null,null,null,null,null,null,null,null,null,null,null,null,null,null,null,null,null,null,null,0,0,""]
[null,null,null,null,null,null,null,null,null,null,null,null,null,null,null,null,null,null,null,null,null,0,0,""]
[null,null,null,null,null,null,null,null,null,null,null,null,null,null,null,null,null,null,null,null,null,0,0,""]
[null,null,null,null,null,null,null,null,null,null,null,null,null,null,null,null,null,null,null,null,null,0,0,""]
[null,null,null,null,null,null,null,null,null,null,null,null,null,null,null,null,null,null,null,null,null,0,0,""]
[null,null,null,null,null,null,null,null,null,null,null,null,null,null,null,null,null,null,null,null,null,0,0,""]
[null,null,null,null,null,null,null,null,null,null,null,null,null,null,null,null,null,null,null,null,null,0,0,""]
[null,null,null,null,null,null,null,null,null,null,null,null,null,null,null,null,null,null,null,null,null,0,0,""]
[null,null,null,null,null,null,null,null,null,null,null,null,null,null,null,null,null,null,null,null,null,0,0,""]
[null,null,null,null,null,null,null,null,null,null,null,null,null,null,null,null,null,null,null,null,null,0,0,""]
[null,null,null,null,null,null,null,null,null,null,null,null,null,null,null,null,null,null,null,null,null,0,0,""]
[null,null,null,null,null,null,null,null,null,null,null,null,null,null,null,null,null,null,null,null,null,0,0,""]
[null,null,null,null,null,null,null,null,null,null,null,null,null,null,null,null,null,null,null,null,null,0,0,""]
[null,null,null,null,null,null,null,null,null,null,null,null,null,null,null,null,null,null,null,null,null,0,0,""]
[null,null,null,null,null,null,null,null,null,null,null,null,null,null,null,null,null,null,null,null,null,0,0,""]
[null,null,null,null,null,null,null,null,null,null,null,null,null,null,null,null,null,null,null,null,null,0,0,""]
[null,null,null,null,null,null,null,null,null,null,null,null,null,null,null,null,null,null,null,null,null,0,0,""]
[null,null,null,null,null,null,null,null,null,null,null,null,null,null,null,null,null,null,null,null,null,0,0,""]
[null,null,null,null,null,null,null,null,null,null,null,null,null,null,null,null,null,null,null,null,null,0,{"$f":"IF(L48=\"\",0,L48)*КИЛОМЕТР+(M48+O48+Q48+S48)*НАСОС+(N48+P48+R48+T48)*БЕЗ_НАСОСА","v":0},""]
[null,null,null,null,null,null,null,null,null,null,null,null,null,null,null,null,null,null,null,null,null,0,0,""]
[null,null,null,null,null,null,null,null,null,null,null,null,null,null,null,null,null,null,null,null,null,0,0,""]
[null,null,null,null,null,null,null,null,null,null,null,null,null,null,null,null,null,null,null,null,null,0,0,""]
[null,null,null,null,null,null,null,null,null,null,null,null,null,null,null,null,null,null,null,null,null,0,0,""]
[null,null,null,null,null,null,null,null,null,null,null,null,null,null,null,null,null,null,null,null,null,0,0,""]
[null,null,null,null,null,null,null,null,null,null,null,null,null,null,null,null,null,null,null,null,null,0,0,""]
[null,null,null,null,null,null,null,null,null,null,null,null,null,null,null,null,null,null,null,null,null,0,0,""]
[null,null,null,null,null,null,null,null,null,null,null,null,null,null,null,null,null,null,null,null,null,0,0,""]
[null,null,null,null,null,null,null,null,null,null,null,{"$f":"IF(K58=\"\",\"\",K58-K57)","v":""},null,null,null,null,null,null,null,null,null,0,0,""]
[null,null,null,null,null,null,null,null,null,null,null,"",null,null,null,null,null,null,null,null,null,0,0,""]
[null,null,null,null,null,null,null,null,null,null,null,"",null,null,null,null,null,null,null,null,null,0,0,""]
[null,null,null,null,null,null,null,null,null,null,null,"",null,null,null,null,null,null,null,null,null,0,0,""]
[null,null,null,null,null,null,null,null,null,null,null,"",null,null,null,null,null,null,null,null,null,0,0,""]
[null,null,null,null,null,null,null,null,null,null,null,"",null,null,null,null,null,null,null,null,null,0,0,""]
[null,null,null,null,null,null,null,null,null,null,null,"",null,null,null,null,null,null,null,null,null,0,0,""]
[null,null,null,null,null,null,null,null,null,null,null,"",null,null,null,null,null,null,null,null,null,0,0,""]
[null,null,null,null,null,null,null,null,null,null,null,{"$f":"IF(K66=\"\",\"\",K66-K65)","v":""},null,null,null,null,null,null,null,null,null,0,0,""]
[null,null,null,null,null,null,null,null,null,null,null,"",null,null,null,null,null,null,null,null,null,0,0,""]
[null,null,null,null,null,null,null,null,null,null,null,"",null,null,null,null,null,null,null,null,null,0,0,""]
[null,null,null,null,null,null,null,null,null,null,null,"",null,null,null,null,null,null,null,null,null,0,0,""]
[null,null,null,null,null,null,null,null,null,null,null,"",null,null,null,null,null,null,null,null,null,0,0,""]
[null,null,null,null,null,null,null,null,null,null,null,null,null,null,null,null,null,null,null,null,null,0,0,""]
["                    ИТОГО за месяц",null,null,null,null,null,null,null,null,null,null,{"$f":"SUM(L16:L70)","v":0},0,0,0,0,0,0,0,0,0,0,0,{"$f":"Остаток_на_начало_месяца+Заправлено-W71","v":16.52}]
["                    Израсходовано топлива по элементам работы(в литрах)",null,null,null,null,null,null,null,null,null,null,{"$f":"L71*КИЛОМЕТР","v":0},{"$f":"M71*НАСОС","v":0},{"$f":"N71*БЕЗ_НАСОСА","v":0},{"$f":"O71*НАСОС","v":0},{"$f":"P71*БЕЗ_НАСОСА","v":0},{"$f":"Q71*НАСОС","v":0},{"$f":"R71*БЕЗ_НАСОСА","v":0},{"$f":"S71*НАСОС","v":0},{"$f":"T71*БЕЗ_НАСОСА","v":0}]
[null,"Наработка  за отчетный месяц в км.(с учетом приведенного)",null,null,null,null,null,null,null,{"$f":"(M71+O71+Q71+S71)/60*50+L71","v":0},null,"км. "]
[null,null,null,null,null,null,null,null,null,null,null,null,null,null,null,null,"Текущая норма",null,null,null,null,"Пробег по спидометру, км",null,null,{"$f":"L71","v":0}]
[null,null,"Руководитель подразделения",null,null,null,null,null,null,null,null,"Старший водитель",null,null,null,null,"1 км",null,null,null,null,"Наработка с насосом м.ч.",null,null,{"$f":"(M71+O71+Q71+S71)/60","v":0}]
[null,null,"<_____>______________________2015г.",null,null,null,null,null,null,null,null,"<_____>_______________2015г.",null,null,null,null,"1 мин с насосом",null,null,4.2999999999999997E-2,null,"Наработка без насоса",null,null,{"$f":"N71+P71+R71+T71","v":0}]
[null,null,null,null,null,"Коряков В.Н.",null,null,null,null,null,"                     Ломакин В.В.",null,null,null,null,"1 мин без насоса",null,null,4.2999999999999997E-2,null,"Приведенный пробег",null,null,{"$f":"Y75*50","v":0}]
[null,null,null,null,null,null,null,null,null,null,null,null,null,null,null,null,null,null,null,null,null,"Общий пробег",null,null,{"$f":"Y74+Y77","v":0}]

{"sheet":"Бензокоса","index":22,"n_rows":46,"n_cols":26,"rows_kept":46,"cut":false,"hidden":false,"merged":[[45,21,45,23],[41,21,41,23],[42,19,42,20],[42,21,42,23],[43,19,43,20],[43,21,43,23],[44,19,44,20],[44,21,44,23],[41,16,41,20],[44,11,44,15],[30,1,30,5],[31,1,31,5],[32,1,32,5],[33,1,33,5],[34,1,34,5],[35,1,35,5],[36,1,36,5],[37,1,37,5],[38,0,38,10],[39,0,39,10],[40,9,40,10],[28,1,28,5],[29,1,29,5],[27,1,27,5],[21,1,21,5],[22,1,22,5],[23,1,23,5],[24,1,24,5],[25,1,25,5],[26,1,26,5],[19,1,19,5],[20,1,20,5],[14,1,14,5],[15,1,15,5],[16,1,16,5],[17,1,17,5],[18,1,18,5],[11,24,12,25],[12,6,12,7],[12,8,12,9],[12,10,13,10],[12,11,13,11],[12,12,12,13],[12,14,12,15],[12,16,12,17],[12,18,12,19],[12,20,13,20],[9,4,9,5],[9,6,9,8],[9,9,9,10],[9,11,9,18],[10,0,10,25],[11,0,13,0],[11,1,13,5],[11,6,11,20],[11,21,12,22],[11,23,13,23],[7,0,7,23],[8,4,8,5],[8,6,8,8],[8,9,8,10],[8,11,8,18],[6,0,6,11],[6,12,6,22],[5,0,5,7],[5,8,5,22],[0,0,0,25],[1,0,1,5],[1,6,1,10],[1,17,1,19],[1,20,1,21],[2,0,2,22],[2,23,2,25],[3,0,3,9],[3,10,3,12],[3,13,3,14],[3,15,3,17],[4,10,4,22]]}
["Эксплуатационная карта"]
["      Работы механизма за",null,null,null,null,null,{"$f":"Нормы!G3","v":"Март   2015 г"},null,null,null,null,"Наименование и № подразделения   ",null,null,null,null,null,"КГКУ 9- ОПС",null,null,"37- ПЧ"]
["      Тип,марка,модель                                                   Бензокоса          SPARTA                                                                                                                                        "]
[]
["      Остаток топлива  на 1-е число отчетного месяца",null,null,null,null,null,null,null,null,null,{"$f":"'отчёт '!F48","v":0.08},null,null,null,null,null,null,null,null,null,null,null,null,"литр."]
["      Заправлено топлива  за отчетный месяц",null,null,null,null,null,null,null,{"$f":"U39","v":0},null,null,null,null,null,null,null,null,null,null,null,null,null,null,"литр."]
["      Остаток топлива  на 1-е число следующего за отчетным месяцем",null,null,null,null,null,null,null,null,null,null,null,{"$f":"X39","v":0.08},null,null,null,null,null,null,null,null,null,null,"литр."]
["Результат расхода топлива за отчетный месяц"]
[null,null,null,null,"фактически",null,{"$f":"V39","v":0},null,null,"литр.",null," Экономия _________________литр."]
[null,null,null,null,"по нормам",null,{"$f":"W39","v":0},null,null,"литр.",null,"Перерасход _________________литр."]
[]
["дата","Наименование и место работы автомобиля(То,работа на пожаре,учениях и др)",null,null,null,null,"работа механизма",null,null,null,null,null,null,null,null,null,null,null,null,null,null,"расход топлива в литрах",null,"Остаток топлива ","подписи"]
[null,null,null,null,null,null,"время выезда",null,"время возвращения ",null,"показания спидометра перед выездом ","пройдено км к месту работы и обратно","на пожарах(в мин)",null,"на учениях (в мин)",null," при смене караула (в мин)",null,"на прочих работах",null,"заправлено топлива "]
[null,null,null,null,null,null,"часы","минуты","часы","минуты",null,null,"с насосом","без насоса","с насосом","без насоса","с насосом","без насоса","с насосом","без насоса",null,"фактически","по нормам",null,"водителя","начальника караула"]
[1,2,null,null,null,null,3,4,5,6,7,8,9,10,11,12,13,14,15,16,17,18,19,20,21,22]
["1,08","Окос территории 37-ПЧ",null,null,null,null,"16","00","18","00",null,null,null,null,null,null,null,null,null,null,null,{"$f":"W16","v":0},{"$f":"IF(L16=\"\",0,L16)*КИЛОМЕТР+(M16+O16+Q16+S16)*НАСОС+(N16+P16+R16+T16)*БЕЗ_НАСОСА","v":0},{"$f":"Остаток_на_начало_месяца-W16+U16","v":0.08}]
[null,null,null,null,null,null,null,null,null,null,null,null,null,null,null,null,null,null,null,null,null,{"$f":"W17","v":0},{"$f":"IF(L17=\"\",0,L17)*КИЛОМЕТР+(M17+O17+Q17+S17)*НАСОС+(N17+P17+R17+T17)*БЕЗ_НАСОСА","v":0},{"$f":"IF(W17=0,\"\",X16-W17+U17)","v":""}]
[null,null,null,null,null,null,null,null,null,null,null,null,null,null,null,null,null,null,null,null,null,0,0,""]
[null,null,null,null,null,null,null,null,null,null,null,null,null,null,null,null,null,null,null,null,null,0,0,""]
[null,null,null,null,null,null,null,null,null,null,null,null,null,null,null,null,null,null,null,null,null,0,0,""]
[null,null,null,null,null,null,null,null,null,null,null,null,null,null,null,null,null,null,null,null,null,0,0,""]
[null,null,null,null,null,null,null,null,null,null,null,null,null,null,null,null,null,null,null,null,null,0,0,""]
[null,null,null,null,null,null,null,null,null,null,null,null,null,null,null,null,null,null,null,null,null,0,0,""]
[null,null,null,null,null,null,null,null,null,null,null,null,null,null,null,null,null,null,null,null,null,0,0,""]
[null,null,null,null,null,null,null,null,null,null,null,null,null,null,null,null,null,null,null,null,null,0,0,""]
[null,null,null,null,null,null,null,null,null,null,null,null,null,null,null,null,null,null,null,null,null,0,0,""]
[null,null,null,null,null,null,null,null,null,null,null,null,null,null,null,null,null,null,null,null,null,0,0,""]
[null,null,null,null,null,null,null,null,null,null,null,null,null,null,null,null,null,null,null,null,null,0,0,""]
[null,null,null,null,null,null,null,null,null,null,null,{"$f":"IF(K30=\"\",\"\",K30-K29)","v":""},null,null,null,null,null,null,null,null,null,{"$f":"W29","v":0},{"$f":"IF(L29=\"\",0,L29)*КИЛОМЕТР+(M29+O29+Q29+S29)*НАСОС+(N29+P29+R29+T29)*БЕЗ_НАСОСА","v":0},""]
[null,null,null,null,null,null,null,null,null,null,null,"",null,null,null,null,null,null,null,null,null,0,0,""]
[null,null,null,null,null,null,null,null,null,null,null,"",null,null,null,null,null,null,null,null,null,0,0,{"$f":"IF(W31=0,\"\",X30-W31+U31)","v":""}]
[null,null,null,null,null,null,null,null,null,null,null,"",null,null,null,null,null,null,null,null,null,0,0,""]
[null,null,null,null,null,null,null,null,null,null,null,"",null,null,null,null,null,null,null,null,null,0,0,""]
[null,null,null,null,null,null,null,null,null,null,null,"",null,null,null,null,null,null,null,null,null,0,0,""]
[null,null,null,null,null,null,null,null,null,null,null,"",null,null,null,null,null,null,null,null,null,0,0,""]
[null,null,null,null,null,null,null,null,null,null,null,"",null,null,null,null,null,null,null,null,null,0,0,""]
[null,null,null,null,null,null,null,null,null,null,null,"",null,null,null,null,null,null,null,null,null,0,0,""]
[null,null,null,null,null,null,null,null,null,null,null,null,null,null,null,null,null,null,null,null,null,0,0,""]
["                    ИТОГО за месяц",null,null,null,null,null,null,null,null,null,null,{"$f":"SUM(L16:L38)","v":0},0,0,0,0,0,0,0,0,0,0,0,{"$f":"Остаток_на_начало_месяца+Заправлено-W39","v":0.08}]
["                    Израсходовано топлива по элементам работы(в литрах)",null,null,null,null,null,null,null,null,null,null,{"$f":"L39*КИЛОМЕТР","v":0},{"$f":"M39*НАСОС","v":0},{"$f":"N39*БЕЗ_НАСОСА","v":0},{"$f":"O39*НАСОС","v":0},{"$f":"P39*БЕЗ_НАСОСА","v":0},{"$f":"Q39*НАСОС","v":0},{"$f":"R39*БЕЗ_НАСОСА","v":0},{"$f":"S39*НАСОС","v":0},{"$f":"T39*БЕЗ_НАСОСА","v":0}]
[null,"Наработка  за отчетный месяц в км.(с учетом приведенного)",null,null,null,null,null,null,null,{"$f":"(M39+O39+Q39+S39)/60*50+L39","v":0},null,"км. "]
[null,null,null,null,null,null,null,null,null,null,null,null,null,null,null,null,"Текущая норма",null,null,null,null,"Пробег по спидометру, км",null,null,{"$f":"L39","v":0}]
[null,null,"Руководитель подразделения",null,null,null,null,null,null,null,null,"Старший водитель",null,null,null,null,"1 км",null,null,null,null,"Наработка с насосом м.ч.",null,null,{"$f":"(M39+O39+Q39+S39)/60","v":0}]
[null,null,"<_____>______________________2015г.",null,null,null,null,null,null,null,null,"<_____>_______________2015г.",null,null,null,null,"1 мин с насосом",null,null,0.01,null,"Наработка без насоса",null,null,{"$f":"N39+P39+R39+T39","v":0}]
[null,null,null,null,null,null,null,null,null,null,null,null,null,null,null,null,"1 мин без насоса",null,null,0.01,null,"Приведенный пробег",null,null,{"$f":"Y43*50","v":0}]
[null,null,null,null,null,null,null,null,null,null,null,null,null,null,null,null,null,null,null,null,null,"Общий пробег",null,null,{"$f":"Y42+Y45","v":0}]